Workbook

Sheet Start
B2: Siatka płac
B5: J | C5: Jak używać pliku:
B6: 1 | C6: Zasilić zakładkę danymi zakładkę „Lista pracowników”
B7: 2 | C7: Przypisać stanowiskom w „Zestawieniu stanowisk” numer kategorii zaszeregowania
B8: 3 | C8: Wpisać miminum kategorii zaszeregowania i ich rozpiętość w „Siatce płac”
B9: 4 | C9: Edytując watrości w zakładce "Siatka Płac" oraz numery kategorii zaszeregowania w zakładce "Zestawienie stanowisk" przeprowadzamy symulacje zmian w siatce płac w organizacji
B12: Zakładki: | C12: Lista pracowników | F12: Zestawienie stanowisk | J12: Siatka płac
C14: Objaśnienia do Listy pracowników | F14: Objaśnienia do zestawienia stanowisk
C16: Plik pozwala wprowadzić:
C17: Do 12 kategorii zaszeregowania | G17: Do 600 pracowników | J17: Do 60 stanowisk
C19: Dla zoobrazowania działania pliku jest on zasilony przykładowymi danymi.
A24: AUTOR: Paweł Szaradowski

Sheet Lista pracowników
B1: Lista pracowników | G1: Liczba pracowników: | H1: =SUM(A5:A600) -> 426
B2: Zestawienie stanowisk | C2: Siatka płac | D2: Menu | E2: Objaśnienia
A4: po | B4: Stanowisko | C4: Wynagrodzenie zasadnicze brutto | D4: Nazwisko i imię pracownika | E4: Kategoria zaszeregowania | F4: wartość compa ratio (miejsce w siatce płac) | G4: Kwartyl w siatce płac | H4: koszt miesięczny "podciągnięcia" do minimum kategorii | M4: =MAX('Siatka płac'!B6:B17) -> 7
A5: =IF(ISBLANK(B5),0,1) -> 1 | B5: Monter | C5: 1500 | D5: Pracownik 1 | E5: =IFERROR((VLOOKUP(B5,'Zestawienie stanowisk'!$B$5:$E$65,4,FALSE)),"-") -> 1 | F5: =IFERROR(((C5-(VLOOKUP(E5,'Siatka płac'!$B$6:$E$17,3,FALSE)))/(VLOOKUP(E5,'Siatka płac'!$B$6:$E$17,4,FALSE)-VLOOKUP(E5,'Siatka płac'!$B$6:$E$17,3,FALSE))),"-") -> -0.25 | G5: =IFERROR((INDEX($N$5:$N$10,MATCH(F5,$M$5:$M$10,-1))),"-") -> poniżej min. | H5: =IF(G5="poniżej min.",((VLOOKUP(E5,'Siatka płac'!$B$6:$D$17,3,FALSE)-C5)*(13-'Zestawienie stanowisk'!$H$1)),"-") -> 500 | M5: 10 | N5: powyżej maks.
A6: 1 | B6: Operator | C6: 2300 | D6: Pracownik 2 | E6: =IFERROR((VLOOKUP(B6,'Zestawienie stanowisk'!$B$5:$E$65,4,FALSE)),"-") -> 1 | F6: =IFERROR(((C6-(VLOOKUP(E6,'Siatka płac'!$B$6:$E$17,3,FALSE)))/(VLOOKUP(E6,'Siatka płac'!$B$6:$E$17,4,FALSE)-VLOOKUP(E6,'Siatka płac'!$B$6:$E$17,3,FALSE))),"-") -> 0.15 | G6: I | H6: =IF(G6="poniżej min.",((VLOOKUP(E6,'Siatka płac'!$B$6:$D$17,3,FALSE)-C6)*(13-'Zestawienie stanowisk'!$H$1)),"-") -> - | M6: 1 | N6: IV
A7: 1 | B7: Spawacz | C7: 3500 | D7: Pracownik 3 | E7: =IFERROR((VLOOKUP(B7,'Zestawienie stanowisk'!$B$5:$E$65,4,FALSE)),"-") -> 1 | F7: =IFERROR(((C7-(VLOOKUP(E7,'Siatka płac'!$B$6:$E$17,3,FALSE)))/(VLOOKUP(E7,'Siatka płac'!$B$6:$E$17,4,FALSE)-VLOOKUP(E7,'Siatka płac'!$B$6:$E$17,3,FALSE))),"-") -> 0.75 | G7: III | H7: =IF(G7="poniżej min.",((VLOOKUP(E7,'Siatka płac'!$B$6:$D$17,3,FALSE)-C7)*(13-'Zestawienie stanowisk'!$H$1)),"-") -> - | M7: 0.75 | N7: III
A8: 1 | B8: Mechanik | C8: 1800 | D8: Pracownik 4 | E8: =IFERROR((VLOOKUP(B8,'Zestawienie stanowisk'!$B$5:$E$65,4,FALSE)),"-") -> 1 | F8: =IFERROR(((C8-(VLOOKUP(E8,'Siatka płac'!$B$6:$E$17,3,FALSE)))/(VLOOKUP(E8,'Siatka płac'!$B$6:$E$17,4,FALSE)-VLOOKUP(E8,'Siatka płac'!$B$6:$E$17,3,FALSE))),"-") -> -0.1 | G8: poniżej min. | H8: =IF(G8="poniżej min.",((VLOOKUP(E8,'Siatka płac'!$B$6:$D$17,3,FALSE)-C8)*(13-'Zestawienie stanowisk'!$H$1)),"-") -> 200 | M8: 0.5 | N8: II
A9: 1 | B9: Elektryk | C9: 4500 | D9: Pracownik 5 | E9: =IFERROR((VLOOKUP(B9,'Zestawienie stanowisk'!$B$5:$E$65,4,FALSE)),"-") -> 1 | F9: =IFERROR(((C9-(VLOOKUP(E9,'Siatka płac'!$B$6:$E$17,3,FALSE)))/(VLOOKUP(E9,'Siatka płac'!$B$6:$E$17,4,FALSE)-VLOOKUP(E9,'Siatka płac'!$B$6:$E$17,3,FALSE))),"-") -> 1.25 | G9: powyżej maks. | H9: =IF(G9="poniżej min.",((VLOOKUP(E9,'Siatka płac'!$B$6:$D$17,3,FALSE)-C9)*(13-'Zestawienie stanowisk'!$H$1)),"-") -> - | M9: 0.25 | N9: I
A10: 1 | B10: Kierowca | C10: 3000 | D10: Pracownik 6 | E10: =IFERROR((VLOOKUP(B10,'Zestawienie stanowisk'!$B$5:$E$65,4,FALSE)),"-") -> 1 | F10: =IFERROR(((C10-(VLOOKUP(E10,'Siatka płac'!$B$6:$E$17,3,FALSE)))/(VLOOKUP(E10,'Siatka płac'!$B$6:$E$17,4,FALSE)-VLOOKUP(E10,'Siatka płac'!$B$6:$E$17,3,FALSE))),"-") -> 0.5 | G10: II | H10: =IF(G10="poniżej min.",((VLOOKUP(E10,'Siatka płac'!$B$6:$D$17,3,FALSE)-C10)*(13-'Zestawienie stanowisk'!$H$1)),"-") -> - | M10: 0 | N10: poniżej min.
A11: 1 | B11: Automatyk | C11: 4400 | D11: Pracownik 7 | E11: =IFERROR((VLOOKUP(B11,'Zestawienie stanowisk'!$B$5:$E$65,4,FALSE)),"-") -> 1 | F11: =IFERROR(((C11-(VLOOKUP(E11,'Siatka płac'!$B$6:$E$17,3,FALSE)))/(VLOOKUP(E11,'Siatka płac'!$B$6:$E$17,4,FALSE)-VLOOKUP(E11,'Siatka płac'!$B$6:$E$17,3,FALSE))),"-") -> 1.2 | G11: powyżej maks. | H11: =IF(G11="poniżej min.",((VLOOKUP(E11,'Siatka płac'!$B$6:$D$17,3,FALSE)-C11)*(13-'Zestawienie stanowisk'!$H$1)),"-") -> -
A12: 1 | B12: Magazynier | C12: 4000 | D12: Pracownik 8 | E12: =IFERROR((VLOOKUP(B12,'Zestawienie stanowisk'!$B$5:$E$65,4,FALSE)),"-") -> 1 | F12: =IFERROR(((C12-(VLOOKUP(E12,'Siatka płac'!$B$6:$E$17,3,FALSE)))/(VLOOKUP(E12,'Siatka płac'!$B$6:$E$17,4,FALSE)-VLOOKUP(E12,'Siatka płac'!$B$6:$E$17,3,FALSE))),"-") -> 1 | G12: IV | H12: =IF(G12="poniżej min.",((VLOOKUP(E12,'Siatka płac'!$B$6:$D$17,3,FALSE)-C12)*(13-'Zestawienie stanowisk'!$H$1)),"-") -> -
A13: 1 | B13: Inżynier procesu | C13: 7000 | D13: Pracownik 9 | E13: =IFERROR((VLOOKUP(B13,'Zestawienie stanowisk'!$B$5:$E$65,4,FALSE)),"-") -> 1 | F13: =IFERROR(((C13-(VLOOKUP(E13,'Siatka płac'!$B$6:$E$17,3,FALSE)))/(VLOOKUP(E13,'Siatka płac'!$B$6:$E$17,4,FALSE)-VLOOKUP(E13,'Siatka płac'!$B$6:$E$17,3,FALSE))),"-") -> 2.5 | G13: powyżej maks. | H13: =IF(G13="poniżej min.",((VLOOKUP(E13,'Siatka płac'!$B$6:$D$17,3,FALSE)-C13)*(13-'Zestawienie stanowisk'!$H$1)),"-") -> -
A14: 1 | B14: Mistrz | C14: 5500 | D14: Pracownik 10 | E14: =IFERROR((VLOOKUP(B14,'Zestawienie stanowisk'!$B$5:$E$65,4,FALSE)),"-") -> 1 | F14: =IFERROR(((C14-(VLOOKUP(E14,'Siatka płac'!$B$6:$E$17,3,FALSE)))/(VLOOKUP(E14,'Siatka płac'!$B$6:$E$17,4,FALSE)-VLOOKUP(E14,'Siatka płac'!$B$6:$E$17,3,FALSE))),"-") -> 1.75 | G14: powyżej maks. | H14: =IF(G14="poniżej min.",((VLOOKUP(E14,'Siatka płac'!$B$6:$D$17,3,FALSE)-C14)*(13-'Zestawienie stanowisk'!$H$1)),"-") -> -
A15: 1 | B15: Specjalista ds. personalnych | C15: 5500 | D15: Pracownik 11 | E15: =IFERROR((VLOOKUP(B15,'Zestawienie stanowisk'!$B$5:$E$65,4,FALSE)),"-") -> 1 | F15: =IFERROR(((C15-(VLOOKUP(E15,'Siatka płac'!$B$6:$E$17,3,FALSE)))/(VLOOKUP(E15,'Siatka płac'!$B$6:$E$17,4,FALSE)-VLOOKUP(E15,'Siatka płac'!$B$6:$E$17,3,FALSE))),"-") -> 1.75 | G15: powyżej maks. | H15: =IF(G15="poniżej min.",((VLOOKUP(E15,'Siatka płac'!$B$6:$D$17,3,FALSE)-C15)*(13-'Zestawienie stanowisk'!$H$1)),"-") -> -
A16: 1 | B16: Administrator serwerów | C16: 8000 | D16: Pracownik 12 | E16: =IFERROR((VLOOKUP(B16,'Zestawienie stanowisk'!$B$5:$E$65,4,FALSE)),"-") -> 1 | F16: =IFERROR(((C16-(VLOOKUP(E16,'Siatka płac'!$B$6:$E$17,3,FALSE)))/(VLOOKUP(E16,'Siatka płac'!$B$6:$E$17,4,FALSE)-VLOOKUP(E16,'Siatka płac'!$B$6:$E$17,3,FALSE))),"-") -> 3 | G16: powyżej maks. | H16: =IF(G16="poniżej min.",((VLOOKUP(E16,'Siatka płac'!$B$6:$D$17,3,FALSE)-C16)*(13-'Zestawienie stanowisk'!$H$1)),"-") -> -
A17: 1 | B17: Specjalista ds. księgowych | C17: 5000 | D17: Pracownik 13 | E17: =IFERROR((VLOOKUP(B17,'Zestawienie stanowisk'!$B$5:$E$65,4,FALSE)),"-") -> 1 | F17: =IFERROR(((C17-(VLOOKUP(E17,'Siatka płac'!$B$6:$E$17,3,FALSE)))/(VLOOKUP(E17,'Siatka płac'!$B$6:$E$17,4,FALSE)-VLOOKUP(E17,'Siatka płac'!$B$6:$E$17,3,FALSE))),"-") -> 1.5 | G17: powyżej maks. | H17: =IF(G17="poniżej min.",((VLOOKUP(E17,'Siatka płac'!$B$6:$D$17,3,FALSE)-C17)*(13-'Zestawienie stanowisk'!$H$1)),"-") -> -
A18: 1 | B18: Specjalista ds. planowania | C18: 5500 | D18: Pracownik 14 | E18: =IFERROR((VLOOKUP(B18,'Zestawienie stanowisk'!$B$5:$E$65,4,FALSE)),"-") -> 1 | F18: =IFERROR(((C18-(VLOOKUP(E18,'Siatka płac'!$B$6:$E$17,3,FALSE)))/(VLOOKUP(E18,'Siatka płac'!$B$6:$E$17,4,FALSE)-VLOOKUP(E18,'Siatka płac'!$B$6:$E$17,3,FALSE))),"-") -> 1.75 | G18: powyżej maks. | H18: =IF(G18="poniżej min.",((VLOOKUP(E18,'Siatka płac'!$B$6:$D$17,3,FALSE)-C18)*(13-'Zestawienie stanowisk'!$H$1)),"-") -> -
A19: 1 | B19: Kierownik produkcji | C19: 8000 | D19: Pracownik 15 | E19: =IFERROR((VLOOKUP(B19,'Zestawienie stanowisk'!$B$5:$E$65,4,FALSE)),"-") -> 1 | F19: =IFERROR(((C19-(VLOOKUP(E19,'Siatka płac'!$B$6:$E$17,3,FALSE)))/(VLOOKUP(E19,'Siatka płac'!$B$6:$E$17,4,FALSE)-VLOOKUP(E19,'Siatka płac'!$B$6:$E$17,3,FALSE))),"-") -> 3 | G19: powyżej maks. | H19: =IF(G19="poniżej min.",((VLOOKUP(E19,'Siatka płac'!$B$6:$D$17,3,FALSE)-C19)*(13-'Zestawienie stanowisk'!$H$1)),"-") -> -
A20: 1 | B20: Kierownik działu jakości | C20: 12000 | D20: Pracownik 16 | E20: =IFERROR((VLOOKUP(B20,'Zestawienie stanowisk'!$B$5:$E$65,4,FALSE)),"-") -> 1 | F20: =IFERROR(((C20-(VLOOKUP(E20,'Siatka płac'!$B$6:$E$17,3,FALSE)))/(VLOOKUP(E20,'Siatka płac'!$B$6:$E$17,4,FALSE)-VLOOKUP(E20,'Siatka płac'!$B$6:$E$17,3,FALSE))),"-") -> 5 | G20: powyżej maks. | H20: =IF(G20="poniżej min.",((VLOOKUP(E20,'Siatka płac'!$B$6:$D$17,3,FALSE)-C20)*(13-'Zestawienie stanowisk'!$H$1)),"-") -> -
A21: 1 | B21: Kierownik magazynu | C21: 10000 | D21: Pracownik 17 | E21: =IFERROR((VLOOKUP(B21,'Zestawienie stanowisk'!$B$5:$E$65,4,FALSE)),"-") -> 1 | F21: =IFERROR(((C21-(VLOOKUP(E21,'Siatka płac'!$B$6:$E$17,3,FALSE)))/(VLOOKUP(E21,'Siatka płac'!$B$6:$E$17,4,FALSE)-VLOOKUP(E21,'Siatka płac'!$B$6:$E$17,3,FALSE))),"-") -> 4 | G21: powyżej maks. | H21: =IF(G21="poniżej min.",((VLOOKUP(E21,'Siatka płac'!$B$6:$D$17,3,FALSE)-C21)*(13-'Zestawienie stanowisk'!$H$1)),"-") -> -
A22: 1 | B22: Dyrektor finansowy | C22: 54000 | D22: Pracownik 18 | E22: =IFERROR((VLOOKUP(B22,'Zestawienie stanowisk'!$B$5:$E$65,4,FALSE)),"-") -> 1 | F22: =IFERROR(((C22-(VLOOKUP(E22,'Siatka płac'!$B$6:$E$17,3,FALSE)))/(VLOOKUP(E22,'Siatka płac'!$B$6:$E$17,4,FALSE)-VLOOKUP(E22,'Siatka płac'!$B$6:$E$17,3,FALSE))),"-") -> 26 | G22: - | H22: =IF(G22="poniżej min.",((VLOOKUP(E22,'Siatka płac'!$B$6:$D$17,3,FALSE)-C22)*(13-'Zestawienie stanowisk'!$H$1)),"-") -> -
A23: 1 | B23: Dyrektor produkcji | C23: 40000 | D23: Pracownik 19 | E23: =IFERROR((VLOOKUP(B23,'Zestawienie stanowisk'!$B$5:$E$65,4,FALSE)),"-") -> 1 | F23: =IFERROR(((C23-(VLOOKUP(E23,'Siatka płac'!$B$6:$E$17,3,FALSE)))/(VLOOKUP(E23,'Siatka płac'!$B$6:$E$17,4,FALSE)-VLOOKUP(E23,'Siatka płac'!$B$6:$E$17,3,FALSE))),"-") -> 19 | G23: - | H23: =IF(G23="poniżej min.",((VLOOKUP(E23,'Siatka płac'!$B$6:$D$17,3,FALSE)-C23)*(13-'Zestawienie stanowisk'!$H$1)),"-") -> -
A24: 1 | B24: Monter | C24: 2500 | D24: Pracownik 20 | E24: =IFERROR((VLOOKUP(B24,'Zestawienie stanowisk'!$B$5:$E$65,4,FALSE)),"-") -> 1 | F24: =IFERROR(((C24-(VLOOKUP(E24,'Siatka płac'!$B$6:$E$17,3,FALSE)))/(VLOOKUP(E24,'Siatka płac'!$B$6:$E$17,4,FALSE)-VLOOKUP(E24,'Siatka płac'!$B$6:$E$17,3,FALSE))),"-") -> 0.25 | G24: I | H24: =IF(G24="poniżej min.",((VLOOKUP(E24,'Siatka płac'!$B$6:$D$17,3,FALSE)-C24)*(13-'Zestawienie stanowisk'!$H$1)),"-") -> -
A25: 1 | B25: Monter | C25: 2500 | D25: Pracownik 21 | E25: =IFERROR((VLOOKUP(B25,'Zestawienie stanowisk'!$B$5:$E$65,4,FALSE)),"-") -> 1 | F25: =IFERROR(((C25-(VLOOKUP(E25,'Siatka płac'!$B$6:$E$17,3,FALSE)))/(VLOOKUP(E25,'Siatka płac'!$B$6:$E$17,4,FALSE)-VLOOKUP(E25,'Siatka płac'!$B$6:$E$17,3,FALSE))),"-") -> 0.25 | G25: I | H25: =IF(G25="poniżej min.",((VLOOKUP(E25,'Siatka płac'!$B$6:$D$17,3,FALSE)-C25)*(13-'Zestawienie stanowisk'!$H$1)),"-") -> -
A26: 1 | B26: Spawacz | C26: 3500 | D26: Pracownik 22 | E26: =IFERROR((VLOOKUP(B26,'Zestawienie stanowisk'!$B$5:$E$65,4,FALSE)),"-") -> 1 | F26: =IFERROR(((C26-(VLOOKUP(E26,'Siatka płac'!$B$6:$E$17,3,FALSE)))/(VLOOKUP(E26,'Siatka płac'!$B$6:$E$17,4,FALSE)-VLOOKUP(E26,'Siatka płac'!$B$6:$E$17,3,FALSE))),"-") -> 0.75 | G26: III | H26: =IF(G26="poniżej min.",((VLOOKUP(E26,'Siatka płac'!$B$6:$D$17,3,FALSE)-C26)*(13-'Zestawienie stanowisk'!$H$1)),"-") -> -
A27: 1 | B27: Spawacz | C27: 3500 | D27: Pracownik 23 | E27: =IFERROR((VLOOKUP(B27,'Zestawienie stanowisk'!$B$5:$E$65,4,FALSE)),"-") -> 1 | F27: =IFERROR(((C27-(VLOOKUP(E27,'Siatka płac'!$B$6:$E$17,3,FALSE)))/(VLOOKUP(E27,'Siatka płac'!$B$6:$E$17,4,FALSE)-VLOOKUP(E27,'Siatka płac'!$B$6:$E$17,3,FALSE))),"-") -> 0.75 | G27: III | H27: =IF(G27="poniżej min.",((VLOOKUP(E27,'Siatka płac'!$B$6:$D$17,3,FALSE)-C27)*(13-'Zestawienie stanowisk'!$H$1)),"-") -> -
A28: 1 | B28: Spawacz | C28: 3500 | D28: Pracownik 24 | E28: =IFERROR((VLOOKUP(B28,'Zestawienie stanowisk'!$B$5:$E$65,4,FALSE)),"-") -> 1 | F28: =IFERROR(((C28-(VLOOKUP(E28,'Siatka płac'!$B$6:$E$17,3,FALSE)))/(VLOOKUP(E28,'Siatka płac'!$B$6:$E$17,4,FALSE)-VLOOKUP(E28,'Siatka płac'!$B$6:$E$17,3,FALSE))),"-") -> 0.75 | G28: III | H28: =IF(G28="poniżej min.",((VLOOKUP(E28,'Siatka płac'!$B$6:$D$17,3,FALSE)-C28)*(13-'Zestawienie stanowisk'!$H$1)),"-") -> -
A29: 1 | B29: Spawacz | C29: 3500 | D29: Pracownik 25 | E29: =IFERROR((VLOOKUP(B29,'Zestawienie stanowisk'!$B$5:$E$65,4,FALSE)),"-") -> 1 | F29: =IFERROR(((C29-(VLOOKUP(E29,'Siatka płac'!$B$6:$E$17,3,FALSE)))/(VLOOKUP(E29,'Siatka płac'!$B$6:$E$17,4,FALSE)-VLOOKUP(E29,'Siatka płac'!$B$6:$E$17,3,FALSE))),"-") -> 0.75 | G29: III | H29: =IF(G29="poniżej min.",((VLOOKUP(E29,'Siatka płac'!$B$6:$D$17,3,FALSE)-C29)*(13-'Zestawienie stanowisk'!$H$1)),"-") -> -
A30: 1 | B30: Spawacz | C30: 3500 | D30: Pracownik 26 | E30: =IFERROR((VLOOKUP(B30,'Zestawienie stanowisk'!$B$5:$E$65,4,FALSE)),"-") -> 1 | F30: =IFERROR(((C30-(VLOOKUP(E30,'Siatka płac'!$B$6:$E$17,3,FALSE)))/(VLOOKUP(E30,'Siatka płac'!$B$6:$E$17,4,FALSE)-VLOOKUP(E30,'Siatka płac'!$B$6:$E$17,3,FALSE))),"-") -> 0.75 | G30: III | H30: =IF(G30="poniżej min.",((VLOOKUP(E30,'Siatka płac'!$B$6:$D$17,3,FALSE)-C30)*(13-'Zestawienie stanowisk'!$H$1)),"-") -> -
A31: 1 | B31: Spawacz | C31: 3500 | D31: Pracownik 27 | E31: =IFERROR((VLOOKUP(B31,'Zestawienie stanowisk'!$B$5:$E$65,4,FALSE)),"-") -> 1 | F31: =IFERROR(((C31-(VLOOKUP(E31,'Siatka płac'!$B$6:$E$17,3,FALSE)))/(VLOOKUP(E31,'Siatka płac'!$B$6:$E$17,4,FALSE)-VLOOKUP(E31,'Siatka płac'!$B$6:$E$17,3,FALSE))),"-") -> 0.75 | G31: III | H31: =IF(G31="poniżej min.",((VLOOKUP(E31,'Siatka płac'!$B$6:$D$17,3,FALSE)-C31)*(13-'Zestawienie stanowisk'!$H$1)),"-") -> -
A32: 1 | B32: Spawacz | C32: 3500 | D32: Pracownik 28 | E32: =IFERROR((VLOOKUP(B32,'Zestawienie stanowisk'!$B$5:$E$65,4,FALSE)),"-") -> 1 | F32: =IFERROR(((C32-(VLOOKUP(E32,'Siatka płac'!$B$6:$E$17,3,FALSE)))/(VLOOKUP(E32,'Siatka płac'!$B$6:$E$17,4,FALSE)-VLOOKUP(E32,'Siatka płac'!$B$6:$E$17,3,FALSE))),"-") -> 0.75 | G32: III | H32: =IF(G32="poniżej min.",((VLOOKUP(E32,'Siatka płac'!$B$6:$D$17,3,FALSE)-C32)*(13-'Zestawienie stanowisk'!$H$1)),"-") -> -
A33: 1 | B33: Spawacz | C33: 3500 | D33: Pracownik 29 | E33: =IFERROR((VLOOKUP(B33,'Zestawienie stanowisk'!$B$5:$E$65,4,FALSE)),"-") -> 1 | F33: =IFERROR(((C33-(VLOOKUP(E33,'Siatka płac'!$B$6:$E$17,3,FALSE)))/(VLOOKUP(E33,'Siatka płac'!$B$6:$E$17,4,FALSE)-VLOOKUP(E33,'Siatka płac'!$B$6:$E$17,3,FALSE))),"-") -> 0.75 | G33: III | H33: =IF(G33="poniżej min.",((VLOOKUP(E33,'Siatka płac'!$B$6:$D$17,3,FALSE)-C33)*(13-'Zestawienie stanowisk'!$H$1)),"-") -> -
A34: 1 | B34: Spawacz | C34: 3500 | D34: Pracownik 30 | E34: =IFERROR((VLOOKUP(B34,'Zestawienie stanowisk'!$B$5:$E$65,4,FALSE)),"-") -> 1 | F34: =IFERROR(((C34-(VLOOKUP(E34,'Siatka płac'!$B$6:$E$17,3,FALSE)))/(VLOOKUP(E34,'Siatka płac'!$B$6:$E$17,4,FALSE)-VLOOKUP(E34,'Siatka płac'!$B$6:$E$17,3,FALSE))),"-") -> 0.75 | G34: III | H34: =IF(G34="poniżej min.",((VLOOKUP(E34,'Siatka płac'!$B$6:$D$17,3,FALSE)-C34)*(13-'Zestawienie stanowisk'!$H$1)),"-") -> -
A35: 1 | B35: Spawacz | C35: 3500 | D35: Pracownik 31 | E35: =IFERROR((VLOOKUP(B35,'Zestawienie stanowisk'!$B$5:$E$65,4,FALSE)),"-") -> 1 | F35: =IFERROR(((C35-(VLOOKUP(E35,'Siatka płac'!$B$6:$E$17,3,FALSE)))/(VLOOKUP(E35,'Siatka płac'!$B$6:$E$17,4,FALSE)-VLOOKUP(E35,'Siatka płac'!$B$6:$E$17,3,FALSE))),"-") -> 0.75 | G35: III | H35: =IF(G35="poniżej min.",((VLOOKUP(E35,'Siatka płac'!$B$6:$D$17,3,FALSE)-C35)*(13-'Zestawienie stanowisk'!$H$1)),"-") -> -
A36: 1 | B36: Spawacz | C36: 4000 | D36: Pracownik 32 | E36: =IFERROR((VLOOKUP(B36,'Zestawienie stanowisk'!$B$5:$E$65,4,FALSE)),"-") -> 1 | F36: =IFERROR(((C36-(VLOOKUP(E36,'Siatka płac'!$B$6:$E$17,3,FALSE)))/(VLOOKUP(E36,'Siatka płac'!$B$6:$E$17,4,FALSE)-VLOOKUP(E36,'Siatka płac'!$B$6:$E$17,3,FALSE))),"-") -> 1 | G36: IV | H36: =IF(G36="poniżej min.",((VLOOKUP(E36,'Siatka płac'!$B$6:$D$17,3,FALSE)-C36)*(13-'Zestawienie stanowisk'!$H$1)),"-") -> -
A37: 1 | B37: Spawacz | C37: 4000 | D37: Pracownik 33 | E37: =IFERROR((VLOOKUP(B37,'Zestawienie stanowisk'!$B$5:$E$65,4,FALSE)),"-") -> 1 | F37: =IFERROR(((C37-(VLOOKUP(E37,'Siatka płac'!$B$6:$E$17,3,FALSE)))/(VLOOKUP(E37,'Siatka płac'!$B$6:$E$17,4,FALSE)-VLOOKUP(E37,'Siatka płac'!$B$6:$E$17,3,FALSE))),"-") -> 1 | G37: IV | H37: =IF(G37="poniżej min.",((VLOOKUP(E37,'Siatka płac'!$B$6:$D$17,3,FALSE)-C37)*(13-'Zestawienie stanowisk'!$H$1)),"-") -> -
A38: 1 | B38: Spawacz | C38: 4000 | D38: Pracownik 34 | E38: =IFERROR((VLOOKUP(B38,'Zestawienie stanowisk'!$B$5:$E$65,4,FALSE)),"-") -> 1 | F38: =IFERROR(((C38-(VLOOKUP(E38,'Siatka płac'!$B$6:$E$17,3,FALSE)))/(VLOOKUP(E38,'Siatka płac'!$B$6:$E$17,4,FALSE)-VLOOKUP(E38,'Siatka płac'!$B$6:$E$17,3,FALSE))),"-") -> 1 | G38: IV | H38: =IF(G38="poniżej min.",((VLOOKUP(E38,'Siatka płac'!$B$6:$D$17,3,FALSE)-C38)*(13-'Zestawienie stanowisk'!$H$1)),"-") -> -
A39: 1 | B39: Spawacz | C39: 4000 | D39: Pracownik 35 | E39: =IFERROR((VLOOKUP(B39,'Zestawienie stanowisk'!$B$5:$E$65,4,FALSE)),"-") -> 1 | F39: =IFERROR(((C39-(VLOOKUP(E39,'Siatka płac'!$B$6:$E$17,3,FALSE)))/(VLOOKUP(E39,'Siatka płac'!$B$6:$E$17,4,FALSE)-VLOOKUP(E39,'Siatka płac'!$B$6:$E$17,3,FALSE))),"-") -> 1 | G39: IV | H39: =IF(G39="poniżej min.",((VLOOKUP(E39,'Siatka płac'!$B$6:$D$17,3,FALSE)-C39)*(13-'Zestawienie stanowisk'!$H$1)),"-") -> -
A40: 1 | B40: Spawacz | C40: 4000 | D40: Pracownik 36 | E40: =IFERROR((VLOOKUP(B40,'Zestawienie stanowisk'!$B$5:$E$65,4,FALSE)),"-") -> 1 | F40: =IFERROR(((C40-(VLOOKUP(E40,'Siatka płac'!$B$6:$E$17,3,FALSE)))/(VLOOKUP(E40,'Siatka płac'!$B$6:$E$17,4,FALSE)-VLOOKUP(E40,'Siatka płac'!$B$6:$E$17,3,FALSE))),"-") -> 1 | G40: IV | H40: =IF(G40="poniżej min.",((VLOOKUP(E40,'Siatka płac'!$B$6:$D$17,3,FALSE)-C40)*(13-'Zestawienie stanowisk'!$H$1)),"-") -> -
A41: 1 | B41: Spawacz | C41: 4000 | D41: Pracownik 37 | E41: =IFERROR((VLOOKUP(B41,'Zestawienie stanowisk'!$B$5:$E$65,4,FALSE)),"-") -> 1 | F41: =IFERROR(((C41-(VLOOKUP(E41,'Siatka płac'!$B$6:$E$17,3,FALSE)))/(VLOOKUP(E41,'Siatka płac'!$B$6:$E$17,4,FALSE)-VLOOKUP(E41,'Siatka płac'!$B$6:$E$17,3,FALSE))),"-") -> 1 | G41: IV | H41: =IF(G41="poniżej min.",((VLOOKUP(E41,'Siatka płac'!$B$6:$D$17,3,FALSE)-C41)*(13-'Zestawienie stanowisk'!$H$1)),"-") -> -
A42: 1 | B42: Spawacz | C42: 4000 | D42: Pracownik 38 | E42: =IFERROR((VLOOKUP(B42,'Zestawienie stanowisk'!$B$5:$E$65,4,FALSE)),"-") -> 1 | F42: =IFERROR(((C42-(VLOOKUP(E42,'Siatka płac'!$B$6:$E$17,3,FALSE)))/(VLOOKUP(E42,'Siatka płac'!$B$6:$E$17,4,FALSE)-VLOOKUP(E42,'Siatka płac'!$B$6:$E$17,3,FALSE))),"-") -> 1 | G42: IV | H42: =IF(G42="poniżej min.",((VLOOKUP(E42,'Siatka płac'!$B$6:$D$17,3,FALSE)-C42)*(13-'Zestawienie stanowisk'!$H$1)),"-") -> -
A43: 1 | B43: Spawacz | C43: 4000 | D43: Pracownik 39 | E43: =IFERROR((VLOOKUP(B43,'Zestawienie stanowisk'!$B$5:$E$65,4,FALSE)),"-") -> 1 | F43: =IFERROR(((C43-(VLOOKUP(E43,'Siatka płac'!$B$6:$E$17,3,FALSE)))/(VLOOKUP(E43,'Siatka płac'!$B$6:$E$17,4,FALSE)-VLOOKUP(E43,'Siatka płac'!$B$6:$E$17,3,FALSE))),"-") -> 1 | G43: IV | H43: =IF(G43="poniżej min.",((VLOOKUP(E43,'Siatka płac'!$B$6:$D$17,3,FALSE)-C43)*(13-'Zestawienie stanowisk'!$H$1)),"-") -> -
A44: 1 | B44: Spawacz | C44: 4000 | D44: Pracownik 40 | E44: =IFERROR((VLOOKUP(B44,'Zestawienie stanowisk'!$B$5:$E$65,4,FALSE)),"-") -> 1 | F44: =IFERROR(((C44-(VLOOKUP(E44,'Siatka płac'!$B$6:$E$17,3,FALSE)))/(VLOOKUP(E44,'Siatka płac'!$B$6:$E$17,4,FALSE)-VLOOKUP(E44,'Siatka płac'!$B$6:$E$17,3,FALSE))),"-") -> 1 | G44: IV | H44: =IF(G44="poniżej min.",((VLOOKUP(E44,'Siatka płac'!$B$6:$D$17,3,FALSE)-C44)*(13-'Zestawienie stanowisk'!$H$1)),"-") -> -
A45: 1 | B45: Spawacz | C45: 4000 | D45: Pracownik 41 | E45: =IFERROR((VLOOKUP(B45,'Zestawienie stanowisk'!$B$5:$E$65,4,FALSE)),"-") -> 1 | F45: =IFERROR(((C45-(VLOOKUP(E45,'Siatka płac'!$B$6:$E$17,3,FALSE)))/(VLOOKUP(E45,'Siatka płac'!$B$6:$E$17,4,FALSE)-VLOOKUP(E45,'Siatka płac'!$B$6:$E$17,3,FALSE))),"-") -> 1 | G45: IV | H45: =IF(G45="poniżej min.",((VLOOKUP(E45,'Siatka płac'!$B$6:$D$17,3,FALSE)-C45)*(13-'Zestawienie stanowisk'!$H$1)),"-") -> -
A46: 1 | B46: Spawacz | C46: 4000 | D46: Pracownik 42 | E46: =IFERROR((VLOOKUP(B46,'Zestawienie stanowisk'!$B$5:$E$65,4,FALSE)),"-") -> 1 | F46: =IFERROR(((C46-(VLOOKUP(E46,'Siatka płac'!$B$6:$E$17,3,FALSE)))/(VLOOKUP(E46,'Siatka płac'!$B$6:$E$17,4,FALSE)-VLOOKUP(E46,'Siatka płac'!$B$6:$E$17,3,FALSE))),"-") -> 1 | G46: IV | H46: =IF(G46="poniżej min.",((VLOOKUP(E46,'Siatka płac'!$B$6:$D$17,3,FALSE)-C46)*(13-'Zestawienie stanowisk'!$H$1)),"-") -> -
A47: 1 | B47: Spawacz | C47: 4000 | D47: Pracownik 43 | E47: =IFERROR((VLOOKUP(B47,'Zestawienie stanowisk'!$B$5:$E$65,4,FALSE)),"-") -> 1 | F47: =IFERROR(((C47-(VLOOKUP(E47,'Siatka płac'!$B$6:$E$17,3,FALSE)))/(VLOOKUP(E47,'Siatka płac'!$B$6:$E$17,4,FALSE)-VLOOKUP(E47,'Siatka płac'!$B$6:$E$17,3,FALSE))),"-") -> 1 | G47: IV | H47: =IF(G47="poniżej min.",((VLOOKUP(E47,'Siatka płac'!$B$6:$D$17,3,FALSE)-C47)*(13-'Zestawienie stanowisk'!$H$1)),"-") -> -
A48: 1 | B48: Spawacz | C48: 4500 | D48: Pracownik 44 | E48: =IFERROR((VLOOKUP(B48,'Zestawienie stanowisk'!$B$5:$E$65,4,FALSE)),"-") -> 1 | F48: =IFERROR(((C48-(VLOOKUP(E48,'Siatka płac'!$B$6:$E$17,3,FALSE)))/(VLOOKUP(E48,'Siatka płac'!$B$6:$E$17,4,FALSE)-VLOOKUP(E48,'Siatka płac'!$B$6:$E$17,3,FALSE))),"-") -> 1.25 | G48: powyżej maks. | H48: =IF(G48="poniżej min.",((VLOOKUP(E48,'Siatka płac'!$B$6:$D$17,3,FALSE)-C48)*(13-'Zestawienie stanowisk'!$H$1)),"-") -> -
A49: 1 | B49: Spawacz | C49: 4500 | D49: Pracownik 45 | E49: =IFERROR((VLOOKUP(B49,'Zestawienie stanowisk'!$B$5:$E$65,4,FALSE)),"-") -> 1 | F49: =IFERROR(((C49-(VLOOKUP(E49,'Siatka płac'!$B$6:$E$17,3,FALSE)))/(VLOOKUP(E49,'Siatka płac'!$B$6:$E$17,4,FALSE)-VLOOKUP(E49,'Siatka płac'!$B$6:$E$17,3,FALSE))),"-") -> 1.25 | G49: powyżej maks. | H49: =IF(G49="poniżej min.",((VLOOKUP(E49,'Siatka płac'!$B$6:$D$17,3,FALSE)-C49)*(13-'Zestawienie stanowisk'!$H$1)),"-") -> -
A50: 1 | B50: Spawacz | C50: 4500 | D50: Pracownik 46 | E50: =IFERROR((VLOOKUP(B50,'Zestawienie stanowisk'!$B$5:$E$65,4,FALSE)),"-") -> 1 | F50: =IFERROR(((C50-(VLOOKUP(E50,'Siatka płac'!$B$6:$E$17,3,FALSE)))/(VLOOKUP(E50,'Siatka płac'!$B$6:$E$17,4,FALSE)-VLOOKUP(E50,'Siatka płac'!$B$6:$E$17,3,FALSE))),"-") -> 1.25 | G50: powyżej maks. | H50: =IF(G50="poniżej min.",((VLOOKUP(E50,'Siatka płac'!$B$6:$D$17,3,FALSE)-C50)*(13-'Zestawienie stanowisk'!$H$1)),"-") -> -
A51: 1 | B51: Spawacz | C51: 4500 | D51: Pracownik 47 | E51: =IFERROR((VLOOKUP(B51,'Zestawienie stanowisk'!$B$5:$E$65,4,FALSE)),"-") -> 1 | F51: =IFERROR(((C51-(VLOOKUP(E51,'Siatka płac'!$B$6:$E$17,3,FALSE)))/(VLOOKUP(E51,'Siatka płac'!$B$6:$E$17,4,FALSE)-VLOOKUP(E51,'Siatka płac'!$B$6:$E$17,3,FALSE))),"-") -> 1.25 | G51: powyżej maks. | H51: =IF(G51="poniżej min.",((VLOOKUP(E51,'Siatka płac'!$B$6:$D$17,3,FALSE)-C51)*(13-'Zestawienie stanowisk'!$H$1)),"-") -> -
A52: 1 | B52: Spawacz | C52: 4500 | D52: Pracownik 48 | E52: =IFERROR((VLOOKUP(B52,'Zestawienie stanowisk'!$B$5:$E$65,4,FALSE)),"-") -> 1 | F52: =IFERROR(((C52-(VLOOKUP(E52,'Siatka płac'!$B$6:$E$17,3,FALSE)))/(VLOOKUP(E52,'Siatka płac'!$B$6:$E$17,4,FALSE)-VLOOKUP(E52,'Siatka płac'!$B$6:$E$17,3,FALSE))),"-") -> 1.25 | G52: powyżej maks. | H52: =IF(G52="poniżej min.",((VLOOKUP(E52,'Siatka płac'!$B$6:$D$17,3,FALSE)-C52)*(13-'Zestawienie stanowisk'!$H$1)),"-") -> -
A53: 1 | B53: Spawacz | C53: 4500 | D53: Pracownik 49 | E53: =IFERROR((VLOOKUP(B53,'Zestawienie stanowisk'!$B$5:$E$65,4,FALSE)),"-") -> 1 | F53: =IFERROR(((C53-(VLOOKUP(E53,'Siatka płac'!$B$6:$E$17,3,FALSE)))/(VLOOKUP(E53,'Siatka płac'!$B$6:$E$17,4,FALSE)-VLOOKUP(E53,'Siatka płac'!$B$6:$E$17,3,FALSE))),"-") -> 1.25 | G53: powyżej maks. | H53: =IF(G53="poniżej min.",((VLOOKUP(E53,'Siatka płac'!$B$6:$D$17,3,FALSE)-C53)*(13-'Zestawienie stanowisk'!$H$1)),"-") -> -
A54: 1 | B54: Spawacz | C54: 4500 | D54: Pracownik 50 | E54: =IFERROR((VLOOKUP(B54,'Zestawienie stanowisk'!$B$5:$E$65,4,FALSE)),"-") -> 1 | F54: =IFERROR(((C54-(VLOOKUP(E54,'Siatka płac'!$B$6:$E$17,3,FALSE)))/(VLOOKUP(E54,'Siatka płac'!$B$6:$E$17,4,FALSE)-VLOOKUP(E54,'Siatka płac'!$B$6:$E$17,3,FALSE))),"-") -> 1.25 | G54: powyżej maks. | H54: =IF(G54="poniżej min.",((VLOOKUP(E54,'Siatka płac'!$B$6:$D$17,3,FALSE)-C54)*(13-'Zestawienie stanowisk'!$H$1)),"-") -> -
A55: 1 | B55: Spawacz | C55: 4500 | D55: Pracownik 51 | E55: =IFERROR((VLOOKUP(B55,'Zestawienie stanowisk'!$B$5:$E$65,4,FALSE)),"-") -> 1 | F55: =IFERROR(((C55-(VLOOKUP(E55,'Siatka płac'!$B$6:$E$17,3,FALSE)))/(VLOOKUP(E55,'Siatka płac'!$B$6:$E$17,4,FALSE)-VLOOKUP(E55,'Siatka płac'!$B$6:$E$17,3,FALSE))),"-") -> 1.25 | G55: powyżej maks. | H55: =IF(G55="poniżej min.",((VLOOKUP(E55,'Siatka płac'!$B$6:$D$17,3,FALSE)-C55)*(13-'Zestawienie stanowisk'!$H$1)),"-") -> -
A56: 1 | B56: Spawacz | C56: 4500 | D56: Pracownik 52 | E56: =IFERROR((VLOOKUP(B56,'Zestawienie stanowisk'!$B$5:$E$65,4,FALSE)),"-") -> 1 | F56: =IFERROR(((C56-(VLOOKUP(E56,'Siatka płac'!$B$6:$E$17,3,FALSE)))/(VLOOKUP(E56,'Siatka płac'!$B$6:$E$17,4,FALSE)-VLOOKUP(E56,'Siatka płac'!$B$6:$E$17,3,FALSE))),"-") -> 1.25 | G56: powyżej maks. | H56: =IF(G56="poniżej min.",((VLOOKUP(E56,'Siatka płac'!$B$6:$D$17,3,FALSE)-C56)*(13-'Zestawienie stanowisk'!$H$1)),"-") -> -
A57: 1 | B57: Spawacz | C57: 5000 | D57: Pracownik 53 | E57: =IFERROR((VLOOKUP(B57,'Zestawienie stanowisk'!$B$5:$E$65,4,FALSE)),"-") -> 1 | F57: =IFERROR(((C57-(VLOOKUP(E57,'Siatka płac'!$B$6:$E$17,3,FALSE)))/(VLOOKUP(E57,'Siatka płac'!$B$6:$E$17,4,FALSE)-VLOOKUP(E57,'Siatka płac'!$B$6:$E$17,3,FALSE))),"-") -> 1.5 | G57: powyżej maks. | H57: =IF(G57="poniżej min.",((VLOOKUP(E57,'Siatka płac'!$B$6:$D$17,3,FALSE)-C57)*(13-'Zestawienie stanowisk'!$H$1)),"-") -> -
A58: 1 | B58: Spawacz | C58: 5000 | D58: Pracownik 54 | E58: =IFERROR((VLOOKUP(B58,'Zestawienie stanowisk'!$B$5:$E$65,4,FALSE)),"-") -> 1 | F58: =IFERROR(((C58-(VLOOKUP(E58,'Siatka płac'!$B$6:$E$17,3,FALSE)))/(VLOOKUP(E58,'Siatka płac'!$B$6:$E$17,4,FALSE)-VLOOKUP(E58,'Siatka płac'!$B$6:$E$17,3,FALSE))),"-") -> 1.5 | G58: powyżej maks. | H58: =IF(G58="poniżej min.",((VLOOKUP(E58,'Siatka płac'!$B$6:$D$17,3,FALSE)-C58)*(13-'Zestawienie stanowisk'!$H$1)),"-") -> -
A59: 1 | B59: Spawacz | C59: 5000 | D59: Pracownik 55 | E59: =IFERROR((VLOOKUP(B59,'Zestawienie stanowisk'!$B$5:$E$65,4,FALSE)),"-") -> 1 | F59: =IFERROR(((C59-(VLOOKUP(E59,'Siatka płac'!$B$6:$E$17,3,FALSE)))/(VLOOKUP(E59,'Siatka płac'!$B$6:$E$17,4,FALSE)-VLOOKUP(E59,'Siatka płac'!$B$6:$E$17,3,FALSE))),"-") -> 1.5 | G59: powyżej maks. | H59: =IF(G59="poniżej min.",((VLOOKUP(E59,'Siatka płac'!$B$6:$D$17,3,FALSE)-C59)*(13-'Zestawienie stanowisk'!$H$1)),"-") -> -
A60: 1 | B60: Spawacz | C60: 5000 | D60: Pracownik 56 | E60: =IFERROR((VLOOKUP(B60,'Zestawienie stanowisk'!$B$5:$E$65,4,FALSE)),"-") -> 1 | F60: =IFERROR(((C60-(VLOOKUP(E60,'Siatka płac'!$B$6:$E$17,3,FALSE)))/(VLOOKUP(E60,'Siatka płac'!$B$6:$E$17,4,FALSE)-VLOOKUP(E60,'Siatka płac'!$B$6:$E$17,3,FALSE))),"-") -> 1.5 | G60: powyżej maks. | H60: =IF(G60="poniżej min.",((VLOOKUP(E60,'Siatka płac'!$B$6:$D$17,3,FALSE)-C60)*(13-'Zestawienie stanowisk'!$H$1)),"-") -> -
A61: 1 | B61: Spawacz | C61: 5000 | D61: Pracownik 57 | E61: =IFERROR((VLOOKUP(B61,'Zestawienie stanowisk'!$B$5:$E$65,4,FALSE)),"-") -> 1 | F61: =IFERROR(((C61-(VLOOKUP(E61,'Siatka płac'!$B$6:$E$17,3,FALSE)))/(VLOOKUP(E61,'Siatka płac'!$B$6:$E$17,4,FALSE)-VLOOKUP(E61,'Siatka płac'!$B$6:$E$17,3,FALSE))),"-") -> 1.5 | G61: powyżej maks. | H61: =IF(G61="poniżej min.",((VLOOKUP(E61,'Siatka płac'!$B$6:$D$17,3,FALSE)-C61)*(13-'Zestawienie stanowisk'!$H$1)),"-") -> -
A62: 1 | B62: Spawacz | C62: 5000 | D62: Pracownik 58 | E62: =IFERROR((VLOOKUP(B62,'Zestawienie stanowisk'!$B$5:$E$65,4,FALSE)),"-") -> 1 | F62: =IFERROR(((C62-(VLOOKUP(E62,'Siatka płac'!$B$6:$E$17,3,FALSE)))/(VLOOKUP(E62,'Siatka płac'!$B$6:$E$17,4,FALSE)-VLOOKUP(E62,'Siatka płac'!$B$6:$E$17,3,FALSE))),"-") -> 1.5 | G62: powyżej maks. | H62: =IF(G62="poniżej min.",((VLOOKUP(E62,'Siatka płac'!$B$6:$D$17,3,FALSE)-C62)*(13-'Zestawienie stanowisk'!$H$1)),"-") -> -
A63: 1 | B63: Spawacz | C63: 5000 | D63: Pracownik 59 | E63: =IFERROR((VLOOKUP(B63,'Zestawienie stanowisk'!$B$5:$E$65,4,FALSE)),"-") -> 1 | F63: =IFERROR(((C63-(VLOOKUP(E63,'Siatka płac'!$B$6:$E$17,3,FALSE)))/(VLOOKUP(E63,'Siatka płac'!$B$6:$E$17,4,FALSE)-VLOOKUP(E63,'Siatka płac'!$B$6:$E$17,3,FALSE))),"-") -> 1.5 | G63: powyżej maks. | H63: =IF(G63="poniżej min.",((VLOOKUP(E63,'Siatka płac'!$B$6:$D$17,3,FALSE)-C63)*(13-'Zestawienie stanowisk'!$H$1)),"-") -> -
A64: 1 | B64: Spawacz | C64: 5000 | D64: Pracownik 60 | E64: =IFERROR((VLOOKUP(B64,'Zestawienie stanowisk'!$B$5:$E$65,4,FALSE)),"-") -> 1 | F64: =IFERROR(((C64-(VLOOKUP(E64,'Siatka płac'!$B$6:$E$17,3,FALSE)))/(VLOOKUP(E64,'Siatka płac'!$B$6:$E$17,4,FALSE)-VLOOKUP(E64,'Siatka płac'!$B$6:$E$17,3,FALSE))),"-") -> 1.5 | G64: powyżej maks. | H64: =IF(G64="poniżej min.",((VLOOKUP(E64,'Siatka płac'!$B$6:$D$17,3,FALSE)-C64)*(13-'Zestawienie stanowisk'!$H$1)),"-") -> -
A65: 1 | B65: Spawacz | C65: 5000 | D65: Pracownik 61 | E65: =IFERROR((VLOOKUP(B65,'Zestawienie stanowisk'!$B$5:$E$65,4,FALSE)),"-") -> 1 | F65: =IFERROR(((C65-(VLOOKUP(E65,'Siatka płac'!$B$6:$E$17,3,FALSE)))/(VLOOKUP(E65,'Siatka płac'!$B$6:$E$17,4,FALSE)-VLOOKUP(E65,'Siatka płac'!$B$6:$E$17,3,FALSE))),"-") -> 1.5 | G65: powyżej maks. | H65: =IF(G65="poniżej min.",((VLOOKUP(E65,'Siatka płac'!$B$6:$D$17,3,FALSE)-C65)*(13-'Zestawienie stanowisk'!$H$1)),"-") -> -
A66: 1 | B66: Monter | C66: 2500 | D66: Pracownik 62 | E66: =IFERROR((VLOOKUP(B66,'Zestawienie stanowisk'!$B$5:$E$65,4,FALSE)),"-") -> 1 | F66: =IFERROR(((C66-(VLOOKUP(E66,'Siatka płac'!$B$6:$E$17,3,FALSE)))/(VLOOKUP(E66,'Siatka płac'!$B$6:$E$17,4,FALSE)-VLOOKUP(E66,'Siatka płac'!$B$6:$E$17,3,FALSE))),"-") -> 0.25 | G66: I | H66: =IF(G66="poniżej min.",((VLOOKUP(E66,'Siatka płac'!$B$6:$D$17,3,FALSE)-C66)*(13-'Zestawienie stanowisk'!$H$1)),"-") -> -
A67: 1 | B67: Monter | C67: 2500 | D67: Pracownik 63 | E67: =IFERROR((VLOOKUP(B67,'Zestawienie stanowisk'!$B$5:$E$65,4,FALSE)),"-") -> 1 | F67: =IFERROR(((C67-(VLOOKUP(E67,'Siatka płac'!$B$6:$E$17,3,FALSE)))/(VLOOKUP(E67,'Siatka płac'!$B$6:$E$17,4,FALSE)-VLOOKUP(E67,'Siatka płac'!$B$6:$E$17,3,FALSE))),"-") -> 0.25 | G67: I | H67: =IF(G67="poniżej min.",((VLOOKUP(E67,'Siatka płac'!$B$6:$D$17,3,FALSE)-C67)*(13-'Zestawienie stanowisk'!$H$1)),"-") -> -
A68: 1 | B68: Inżynier procesu | C68: 5000 | D68: Pracownik 64 | E68: =IFERROR((VLOOKUP(B68,'Zestawienie stanowisk'!$B$5:$E$65,4,FALSE)),"-") -> 1 | F68: =IFERROR(((C68-(VLOOKUP(E68,'Siatka płac'!$B$6:$E$17,3,FALSE)))/(VLOOKUP(E68,'Siatka płac'!$B$6:$E$17,4,FALSE)-VLOOKUP(E68,'Siatka płac'!$B$6:$E$17,3,FALSE))),"-") -> 1.5 | G68: powyżej maks. | H68: =IF(G68="poniżej min.",((VLOOKUP(E68,'Siatka płac'!$B$6:$D$17,3,FALSE)-C68)*(13-'Zestawienie stanowisk'!$H$1)),"-") -> -
A69: =IF(ISBLANK(B69),0,1) -> 1 | B69: Inżynier procesu | C69: 5500 | D69: Pracownik 65 | E69: =IFERROR((VLOOKUP(B69,'Zestawienie stanowisk'!$B$5:$E$65,4,FALSE)),"-") -> 1 | F69: =IFERROR(((C69-(VLOOKUP(E69,'Siatka płac'!$B$6:$E$17,3,FALSE)))/(VLOOKUP(E69,'Siatka płac'!$B$6:$E$17,4,FALSE)-VLOOKUP(E69,'Siatka płac'!$B$6:$E$17,3,FALSE))),"-") -> 1.75 | G69: =IFERROR((INDEX($N$5:$N$10,MATCH(F69,$M$5:$M$10,-1))),"-") -> powyżej maks. | H69: =IF(G69="poniżej min.",((VLOOKUP(E69,'Siatka płac'!$B$6:$D$17,3,FALSE)-C69)*(13-'Zestawienie stanowisk'!$H$1)),"-") -> -
A70: 1 | B70: Inżynier procesu | C70: 5800 | D70: Pracownik 66 | E70: =IFERROR((VLOOKUP(B70,'Zestawienie stanowisk'!$B$5:$E$65,4,FALSE)),"-") -> 1 | F70: =IFERROR(((C70-(VLOOKUP(E70,'Siatka płac'!$B$6:$E$17,3,FALSE)))/(VLOOKUP(E70,'Siatka płac'!$B$6:$E$17,4,FALSE)-VLOOKUP(E70,'Siatka płac'!$B$6:$E$17,3,FALSE))),"-") -> 1.9 | G70: powyżej maks. | H70: =IF(G70="poniżej min.",((VLOOKUP(E70,'Siatka płac'!$B$6:$D$17,3,FALSE)-C70)*(13-'Zestawienie stanowisk'!$H$1)),"-") -> -
A71: 1 | B71: Inżynier procesu | C71: 5000 | D71: Pracownik 67 | E71: =IFERROR((VLOOKUP(B71,'Zestawienie stanowisk'!$B$5:$E$65,4,FALSE)),"-") -> 1 | F71: =IFERROR(((C71-(VLOOKUP(E71,'Siatka płac'!$B$6:$E$17,3,FALSE)))/(VLOOKUP(E71,'Siatka płac'!$B$6:$E$17,4,FALSE)-VLOOKUP(E71,'Siatka płac'!$B$6:$E$17,3,FALSE))),"-") -> 1.5 | G71: powyżej maks. | H71: =IF(G71="poniżej min.",((VLOOKUP(E71,'Siatka płac'!$B$6:$D$17,3,FALSE)-C71)*(13-'Zestawienie stanowisk'!$H$1)),"-") -> -
A72: 1 | B72: Inżynier procesu | C72: 6000 | D72: Pracownik 68 | E72: =IFERROR((VLOOKUP(B72,'Zestawienie stanowisk'!$B$5:$E$65,4,FALSE)),"-") -> 1 | F72: =IFERROR(((C72-(VLOOKUP(E72,'Siatka płac'!$B$6:$E$17,3,FALSE)))/(VLOOKUP(E72,'Siatka płac'!$B$6:$E$17,4,FALSE)-VLOOKUP(E72,'Siatka płac'!$B$6:$E$17,3,FALSE))),"-") -> 2 | G72: powyżej maks. | H72: =IF(G72="poniżej min.",((VLOOKUP(E72,'Siatka płac'!$B$6:$D$17,3,FALSE)-C72)*(13-'Zestawienie stanowisk'!$H$1)),"-") -> -
A73: 1 | B73: Inżynier procesu | C73: 8000 | D73: Pracownik 69 | E73: =IFERROR((VLOOKUP(B73,'Zestawienie stanowisk'!$B$5:$E$65,4,FALSE)),"-") -> 1 | F73: =IFERROR(((C73-(VLOOKUP(E73,'Siatka płac'!$B$6:$E$17,3,FALSE)))/(VLOOKUP(E73,'Siatka płac'!$B$6:$E$17,4,FALSE)-VLOOKUP(E73,'Siatka płac'!$B$6:$E$17,3,FALSE))),"-") -> 3 | G73: powyżej maks. | H73: =IF(G73="poniżej min.",((VLOOKUP(E73,'Siatka płac'!$B$6:$D$17,3,FALSE)-C73)*(13-'Zestawienie stanowisk'!$H$1)),"-") -> -
A74: 1 | B74: Inżynier procesu | C74: 7700 | D74: Pracownik 70 | E74: =IFERROR((VLOOKUP(B74,'Zestawienie stanowisk'!$B$5:$E$65,4,FALSE)),"-") -> 1 | F74: =IFERROR(((C74-(VLOOKUP(E74,'Siatka płac'!$B$6:$E$17,3,FALSE)))/(VLOOKUP(E74,'Siatka płac'!$B$6:$E$17,4,FALSE)-VLOOKUP(E74,'Siatka płac'!$B$6:$E$17,3,FALSE))),"-") -> 2.85 | G74: powyżej maks. | H74: =IF(G74="poniżej min.",((VLOOKUP(E74,'Siatka płac'!$B$6:$D$17,3,FALSE)-C74)*(13-'Zestawienie stanowisk'!$H$1)),"-") -> -
A75: 1 | B75: Inżynier procesu | C75: 7500 | D75: Pracownik 71 | E75: =IFERROR((VLOOKUP(B75,'Zestawienie stanowisk'!$B$5:$E$65,4,FALSE)),"-") -> 1 | F75: =IFERROR(((C75-(VLOOKUP(E75,'Siatka płac'!$B$6:$E$17,3,FALSE)))/(VLOOKUP(E75,'Siatka płac'!$B$6:$E$17,4,FALSE)-VLOOKUP(E75,'Siatka płac'!$B$6:$E$17,3,FALSE))),"-") -> 2.75 | G75: powyżej maks. | H75: =IF(G75="poniżej min.",((VLOOKUP(E75,'Siatka płac'!$B$6:$D$17,3,FALSE)-C75)*(13-'Zestawienie stanowisk'!$H$1)),"-") -> -
A76: 1 | B76: Inżynier procesu | C76: 6000 | D76: Pracownik 72 | E76: =IFERROR((VLOOKUP(B76,'Zestawienie stanowisk'!$B$5:$E$65,4,FALSE)),"-") -> 1 | F76: =IFERROR(((C76-(VLOOKUP(E76,'Siatka płac'!$B$6:$E$17,3,FALSE)))/(VLOOKUP(E76,'Siatka płac'!$B$6:$E$17,4,FALSE)-VLOOKUP(E76,'Siatka płac'!$B$6:$E$17,3,FALSE))),"-") -> 2 | G76: powyżej maks. | H76: =IF(G76="poniżej min.",((VLOOKUP(E76,'Siatka płac'!$B$6:$D$17,3,FALSE)-C76)*(13-'Zestawienie stanowisk'!$H$1)),"-") -> -
A77: 1 | B77: Monter | C77: 2500 | D77: Pracownik 73 | E77: =IFERROR((VLOOKUP(B77,'Zestawienie stanowisk'!$B$5:$E$65,4,FALSE)),"-") -> 1 | F77: =IFERROR(((C77-(VLOOKUP(E77,'Siatka płac'!$B$6:$E$17,3,FALSE)))/(VLOOKUP(E77,'Siatka płac'!$B$6:$E$17,4,FALSE)-VLOOKUP(E77,'Siatka płac'!$B$6:$E$17,3,FALSE))),"-") -> 0.25 | G77: I | H77: =IF(G77="poniżej min.",((VLOOKUP(E77,'Siatka płac'!$B$6:$D$17,3,FALSE)-C77)*(13-'Zestawienie stanowisk'!$H$1)),"-") -> -
A78: 1 | B78: Monter | C78: 2500 | D78: Pracownik 74 | E78: =IFERROR((VLOOKUP(B78,'Zestawienie stanowisk'!$B$5:$E$65,4,FALSE)),"-") -> 1 | F78: =IFERROR(((C78-(VLOOKUP(E78,'Siatka płac'!$B$6:$E$17,3,FALSE)))/(VLOOKUP(E78,'Siatka płac'!$B$6:$E$17,4,FALSE)-VLOOKUP(E78,'Siatka płac'!$B$6:$E$17,3,FALSE))),"-") -> 0.25 | G78: I | H78: =IF(G78="poniżej min.",((VLOOKUP(E78,'Siatka płac'!$B$6:$D$17,3,FALSE)-C78)*(13-'Zestawienie stanowisk'!$H$1)),"-") -> -
A79: 1 | B79: Magazynier | C79: 2600 | D79: Pracownik 75 | E79: =IFERROR((VLOOKUP(B79,'Zestawienie stanowisk'!$B$5:$E$65,4,FALSE)),"-") -> 1 | F79: =IFERROR(((C79-(VLOOKUP(E79,'Siatka płac'!$B$6:$E$17,3,FALSE)))/(VLOOKUP(E79,'Siatka płac'!$B$6:$E$17,4,FALSE)-VLOOKUP(E79,'Siatka płac'!$B$6:$E$17,3,FALSE))),"-") -> 0.3 | G79: II | H79: =IF(G79="poniżej min.",((VLOOKUP(E79,'Siatka płac'!$B$6:$D$17,3,FALSE)-C79)*(13-'Zestawienie stanowisk'!$H$1)),"-") -> -
A80: 1 | B80: Magazynier | C80: 2600 | D80: Pracownik 76 | E80: =IFERROR((VLOOKUP(B80,'Zestawienie stanowisk'!$B$5:$E$65,4,FALSE)),"-") -> 1 | F80: =IFERROR(((C80-(VLOOKUP(E80,'Siatka płac'!$B$6:$E$17,3,FALSE)))/(VLOOKUP(E80,'Siatka płac'!$B$6:$E$17,4,FALSE)-VLOOKUP(E80,'Siatka płac'!$B$6:$E$17,3,FALSE))),"-") -> 0.3 | G80: II | H80: =IF(G80="poniżej min.",((VLOOKUP(E80,'Siatka płac'!$B$6:$D$17,3,FALSE)-C80)*(13-'Zestawienie stanowisk'!$H$1)),"-") -> -
A81: 1 | B81: Magazynier | C81: 2600 | D81: Pracownik 77 | E81: =IFERROR((VLOOKUP(B81,'Zestawienie stanowisk'!$B$5:$E$65,4,FALSE)),"-") -> 1 | F81: =IFERROR(((C81-(VLOOKUP(E81,'Siatka płac'!$B$6:$E$17,3,FALSE)))/(VLOOKUP(E81,'Siatka płac'!$B$6:$E$17,4,FALSE)-VLOOKUP(E81,'Siatka płac'!$B$6:$E$17,3,FALSE))),"-") -> 0.3 | G81: II | H81: =IF(G81="poniżej min.",((VLOOKUP(E81,'Siatka płac'!$B$6:$D$17,3,FALSE)-C81)*(13-'Zestawienie stanowisk'!$H$1)),"-") -> -
A82: 1 | B82: Magazynier | C82: 2600 | D82: Pracownik 78 | E82: =IFERROR((VLOOKUP(B82,'Zestawienie stanowisk'!$B$5:$E$65,4,FALSE)),"-") -> 1 | F82: =IFERROR(((C82-(VLOOKUP(E82,'Siatka płac'!$B$6:$E$17,3,FALSE)))/(VLOOKUP(E82,'Siatka płac'!$B$6:$E$17,4,FALSE)-VLOOKUP(E82,'Siatka płac'!$B$6:$E$17,3,FALSE))),"-") -> 0.3 | G82: II | H82: =IF(G82="poniżej min.",((VLOOKUP(E82,'Siatka płac'!$B$6:$D$17,3,FALSE)-C82)*(13-'Zestawienie stanowisk'!$H$1)),"-") -> -
A83: 1 | B83: Magazynier | C83: 2600 | D83: Pracownik 79 | E83: =IFERROR((VLOOKUP(B83,'Zestawienie stanowisk'!$B$5:$E$65,4,FALSE)),"-") -> 1 | F83: =IFERROR(((C83-(VLOOKUP(E83,'Siatka płac'!$B$6:$E$17,3,FALSE)))/(VLOOKUP(E83,'Siatka płac'!$B$6:$E$17,4,FALSE)-VLOOKUP(E83,'Siatka płac'!$B$6:$E$17,3,FALSE))),"-") -> 0.3 | G83: II | H83: =IF(G83="poniżej min.",((VLOOKUP(E83,'Siatka płac'!$B$6:$D$17,3,FALSE)-C83)*(13-'Zestawienie stanowisk'!$H$1)),"-") -> -
A84: 1 | B84: Magazynier | C84: 2600 | D84: Pracownik 80 | E84: =IFERROR((VLOOKUP(B84,'Zestawienie stanowisk'!$B$5:$E$65,4,FALSE)),"-") -> 1 | F84: =IFERROR(((C84-(VLOOKUP(E84,'Siatka płac'!$B$6:$E$17,3,FALSE)))/(VLOOKUP(E84,'Siatka płac'!$B$6:$E$17,4,FALSE)-VLOOKUP(E84,'Siatka płac'!$B$6:$E$17,3,FALSE))),"-") -> 0.3 | G84: II | H84: =IF(G84="poniżej min.",((VLOOKUP(E84,'Siatka płac'!$B$6:$D$17,3,FALSE)-C84)*(13-'Zestawienie stanowisk'!$H$1)),"-") -> -
A85: 1 | B85: Magazynier | C85: 2600 | D85: Pracownik 81 | E85: =IFERROR((VLOOKUP(B85,'Zestawienie stanowisk'!$B$5:$E$65,4,FALSE)),"-") -> 1 | F85: =IFERROR(((C85-(VLOOKUP(E85,'Siatka płac'!$B$6:$E$17,3,FALSE)))/(VLOOKUP(E85,'Siatka płac'!$B$6:$E$17,4,FALSE)-VLOOKUP(E85,'Siatka płac'!$B$6:$E$17,3,FALSE))),"-") -> 0.3 | G85: II | H85: =IF(G85="poniżej min.",((VLOOKUP(E85,'Siatka płac'!$B$6:$D$17,3,FALSE)-C85)*(13-'Zestawienie stanowisk'!$H$1)),"-") -> -
A86: 1 | B86: Magazynier | C86: 2600 | D86: Pracownik 82 | E86: =IFERROR((VLOOKUP(B86,'Zestawienie stanowisk'!$B$5:$E$65,4,FALSE)),"-") -> 1 | F86: =IFERROR(((C86-(VLOOKUP(E86,'Siatka płac'!$B$6:$E$17,3,FALSE)))/(VLOOKUP(E86,'Siatka płac'!$B$6:$E$17,4,FALSE)-VLOOKUP(E86,'Siatka płac'!$B$6:$E$17,3,FALSE))),"-") -> 0.3 | G86: II | H86: =IF(G86="poniżej min.",((VLOOKUP(E86,'Siatka płac'!$B$6:$D$17,3,FALSE)-C86)*(13-'Zestawienie stanowisk'!$H$1)),"-") -> -
A87: 1 | B87: Magazynier | C87: 2600 | D87: Pracownik 83 | E87: =IFERROR((VLOOKUP(B87,'Zestawienie stanowisk'!$B$5:$E$65,4,FALSE)),"-") -> 1 | F87: =IFERROR(((C87-(VLOOKUP(E87,'Siatka płac'!$B$6:$E$17,3,FALSE)))/(VLOOKUP(E87,'Siatka płac'!$B$6:$E$17,4,FALSE)-VLOOKUP(E87,'Siatka płac'!$B$6:$E$17,3,FALSE))),"-") -> 0.3 | G87: II | H87: =IF(G87="poniżej min.",((VLOOKUP(E87,'Siatka płac'!$B$6:$D$17,3,FALSE)-C87)*(13-'Zestawienie stanowisk'!$H$1)),"-") -> -
A88: 1 | B88: Magazynier | C88: 2600 | D88: Pracownik 84 | E88: =IFERROR((VLOOKUP(B88,'Zestawienie stanowisk'!$B$5:$E$65,4,FALSE)),"-") -> 1 | F88: =IFERROR(((C88-(VLOOKUP(E88,'Siatka płac'!$B$6:$E$17,3,FALSE)))/(VLOOKUP(E88,'Siatka płac'!$B$6:$E$17,4,FALSE)-VLOOKUP(E88,'Siatka płac'!$B$6:$E$17,3,FALSE))),"-") -> 0.3 | G88: II | H88: =IF(G88="poniżej min.",((VLOOKUP(E88,'Siatka płac'!$B$6:$D$17,3,FALSE)-C88)*(13-'Zestawienie stanowisk'!$H$1)),"-") -> -
A89: 1 | B89: Magazynier | C89: 2600 | D89: Pracownik 85 | E89: =IFERROR((VLOOKUP(B89,'Zestawienie stanowisk'!$B$5:$E$65,4,FALSE)),"-") -> 1 | F89: =IFERROR(((C89-(VLOOKUP(E89,'Siatka płac'!$B$6:$E$17,3,FALSE)))/(VLOOKUP(E89,'Siatka płac'!$B$6:$E$17,4,FALSE)-VLOOKUP(E89,'Siatka płac'!$B$6:$E$17,3,FALSE))),"-") -> 0.3 | G89: II | H89: =IF(G89="poniżej min.",((VLOOKUP(E89,'Siatka płac'!$B$6:$D$17,3,FALSE)-C89)*(13-'Zestawienie stanowisk'!$H$1)),"-") -> -
A90: 1 | B90: Magazynier | C90: 2600 | D90: Pracownik 86 | E90: =IFERROR((VLOOKUP(B90,'Zestawienie stanowisk'!$B$5:$E$65,4,FALSE)),"-") -> 1 | F90: =IFERROR(((C90-(VLOOKUP(E90,'Siatka płac'!$B$6:$E$17,3,FALSE)))/(VLOOKUP(E90,'Siatka płac'!$B$6:$E$17,4,FALSE)-VLOOKUP(E90,'Siatka płac'!$B$6:$E$17,3,FALSE))),"-") -> 0.3 | G90: II | H90: =IF(G90="poniżej min.",((VLOOKUP(E90,'Siatka płac'!$B$6:$D$17,3,FALSE)-C90)*(13-'Zestawienie stanowisk'!$H$1)),"-") -> -
A91: 1 | B91: Magazynier | C91: 3000 | D91: Pracownik 87 | E91: =IFERROR((VLOOKUP(B91,'Zestawienie stanowisk'!$B$5:$E$65,4,FALSE)),"-") -> 1 | F91: =IFERROR(((C91-(VLOOKUP(E91,'Siatka płac'!$B$6:$E$17,3,FALSE)))/(VLOOKUP(E91,'Siatka płac'!$B$6:$E$17,4,FALSE)-VLOOKUP(E91,'Siatka płac'!$B$6:$E$17,3,FALSE))),"-") -> 0.5 | G91: II | H91: =IF(G91="poniżej min.",((VLOOKUP(E91,'Siatka płac'!$B$6:$D$17,3,FALSE)-C91)*(13-'Zestawienie stanowisk'!$H$1)),"-") -> -
A92: 1 | B92: Magazynier | C92: 3000 | D92: Pracownik 88 | E92: =IFERROR((VLOOKUP(B92,'Zestawienie stanowisk'!$B$5:$E$65,4,FALSE)),"-") -> 1 | F92: =IFERROR(((C92-(VLOOKUP(E92,'Siatka płac'!$B$6:$E$17,3,FALSE)))/(VLOOKUP(E92,'Siatka płac'!$B$6:$E$17,4,FALSE)-VLOOKUP(E92,'Siatka płac'!$B$6:$E$17,3,FALSE))),"-") -> 0.5 | G92: II | H92: =IF(G92="poniżej min.",((VLOOKUP(E92,'Siatka płac'!$B$6:$D$17,3,FALSE)-C92)*(13-'Zestawienie stanowisk'!$H$1)),"-") -> -
A93: 1 | B93: Magazynier | C93: 3000 | D93: Pracownik 89 | E93: =IFERROR((VLOOKUP(B93,'Zestawienie stanowisk'!$B$5:$E$65,4,FALSE)),"-") -> 1 | F93: =IFERROR(((C93-(VLOOKUP(E93,'Siatka płac'!$B$6:$E$17,3,FALSE)))/(VLOOKUP(E93,'Siatka płac'!$B$6:$E$17,4,FALSE)-VLOOKUP(E93,'Siatka płac'!$B$6:$E$17,3,FALSE))),"-") -> 0.5 | G93: II | H93: =IF(G93="poniżej min.",((VLOOKUP(E93,'Siatka płac'!$B$6:$D$17,3,FALSE)-C93)*(13-'Zestawienie stanowisk'!$H$1)),"-") -> -
A94: 1 | B94: Magazynier | C94: 3000 | D94: Pracownik 90 | E94: =IFERROR((VLOOKUP(B94,'Zestawienie stanowisk'!$B$5:$E$65,4,FALSE)),"-") -> 1 | F94: =IFERROR(((C94-(VLOOKUP(E94,'Siatka płac'!$B$6:$E$17,3,FALSE)))/(VLOOKUP(E94,'Siatka płac'!$B$6:$E$17,4,FALSE)-VLOOKUP(E94,'Siatka płac'!$B$6:$E$17,3,FALSE))),"-") -> 0.5 | G94: II | H94: =IF(G94="poniżej min.",((VLOOKUP(E94,'Siatka płac'!$B$6:$D$17,3,FALSE)-C94)*(13-'Zestawienie stanowisk'!$H$1)),"-") -> -
A95: 1 | B95: Magazynier | C95: 3000 | D95: Pracownik 91 | E95: =IFERROR((VLOOKUP(B95,'Zestawienie stanowisk'!$B$5:$E$65,4,FALSE)),"-") -> 1 | F95: =IFERROR(((C95-(VLOOKUP(E95,'Siatka płac'!$B$6:$E$17,3,FALSE)))/(VLOOKUP(E95,'Siatka płac'!$B$6:$E$17,4,FALSE)-VLOOKUP(E95,'Siatka płac'!$B$6:$E$17,3,FALSE))),"-") -> 0.5 | G95: II | H95: =IF(G95="poniżej min.",((VLOOKUP(E95,'Siatka płac'!$B$6:$D$17,3,FALSE)-C95)*(13-'Zestawienie stanowisk'!$H$1)),"-") -> -
A96: 1 | B96: Magazynier | C96: 3000 | D96: Pracownik 92 | E96: =IFERROR((VLOOKUP(B96,'Zestawienie stanowisk'!$B$5:$E$65,4,FALSE)),"-") -> 1 | F96: =IFERROR(((C96-(VLOOKUP(E96,'Siatka płac'!$B$6:$E$17,3,FALSE)))/(VLOOKUP(E96,'Siatka płac'!$B$6:$E$17,4,FALSE)-VLOOKUP(E96,'Siatka płac'!$B$6:$E$17,3,FALSE))),"-") -> 0.5 | G96: II | H96: =IF(G96="poniżej min.",((VLOOKUP(E96,'Siatka płac'!$B$6:$D$17,3,FALSE)-C96)*(13-'Zestawienie stanowisk'!$H$1)),"-") -> -
A97: 1 | B97: Magazynier | C97: 3000 | D97: Pracownik 93 | E97: =IFERROR((VLOOKUP(B97,'Zestawienie stanowisk'!$B$5:$E$65,4,FALSE)),"-") -> 1 | F97: =IFERROR(((C97-(VLOOKUP(E97,'Siatka płac'!$B$6:$E$17,3,FALSE)))/(VLOOKUP(E97,'Siatka płac'!$B$6:$E$17,4,FALSE)-VLOOKUP(E97,'Siatka płac'!$B$6:$E$17,3,FALSE))),"-") -> 0.5 | G97: II | H97: =IF(G97="poniżej min.",((VLOOKUP(E97,'Siatka płac'!$B$6:$D$17,3,FALSE)-C97)*(13-'Zestawienie stanowisk'!$H$1)),"-") -> -
A98: 1 | B98: Magazynier | C98: 3000 | D98: Pracownik 94 | E98: =IFERROR((VLOOKUP(B98,'Zestawienie stanowisk'!$B$5:$E$65,4,FALSE)),"-") -> 1 | F98: =IFERROR(((C98-(VLOOKUP(E98,'Siatka płac'!$B$6:$E$17,3,FALSE)))/(VLOOKUP(E98,'Siatka płac'!$B$6:$E$17,4,FALSE)-VLOOKUP(E98,'Siatka płac'!$B$6:$E$17,3,FALSE))),"-") -> 0.5 | G98: II | H98: =IF(G98="poniżej min.",((VLOOKUP(E98,'Siatka płac'!$B$6:$D$17,3,FALSE)-C98)*(13-'Zestawienie stanowisk'!$H$1)),"-") -> -
A99: 1 | B99: Magazynier | C99: 3000 | D99: Pracownik 95 | E99: =IFERROR((VLOOKUP(B99,'Zestawienie stanowisk'!$B$5:$E$65,4,FALSE)),"-") -> 1 | F99: =IFERROR(((C99-(VLOOKUP(E99,'Siatka płac'!$B$6:$E$17,3,FALSE)))/(VLOOKUP(E99,'Siatka płac'!$B$6:$E$17,4,FALSE)-VLOOKUP(E99,'Siatka płac'!$B$6:$E$17,3,FALSE))),"-") -> 0.5 | G99: II | H99: =IF(G99="poniżej min.",((VLOOKUP(E99,'Siatka płac'!$B$6:$D$17,3,FALSE)-C99)*(13-'Zestawienie stanowisk'!$H$1)),"-") -> -
A100: 1 | B100: Magazynier | C100: 3000 | D100: Pracownik 96 | E100: =IFERROR((VLOOKUP(B100,'Zestawienie stanowisk'!$B$5:$E$65,4,FALSE)),"-") -> 1 | F100: =IFERROR(((C100-(VLOOKUP(E100,'Siatka płac'!$B$6:$E$17,3,FALSE)))/(VLOOKUP(E100,'Siatka płac'!$B$6:$E$17,4,FALSE)-VLOOKUP(E100,'Siatka płac'!$B$6:$E$17,3,FALSE))),"-") -> 0.5 | G100: II | H100: =IF(G100="poniżej min.",((VLOOKUP(E100,'Siatka płac'!$B$6:$D$17,3,FALSE)-C100)*(13-'Zestawienie stanowisk'!$H$1)),"-") -> -
A101: 1 | B101: Magazynier | C101: 3000 | D101: Pracownik 97 | E101: =IFERROR((VLOOKUP(B101,'Zestawienie stanowisk'!$B$5:$E$65,4,FALSE)),"-") -> 1 | F101: =IFERROR(((C101-(VLOOKUP(E101,'Siatka płac'!$B$6:$E$17,3,FALSE)))/(VLOOKUP(E101,'Siatka płac'!$B$6:$E$17,4,FALSE)-VLOOKUP(E101,'Siatka płac'!$B$6:$E$17,3,FALSE))),"-") -> 0.5 | G101: II | H101: =IF(G101="poniżej min.",((VLOOKUP(E101,'Siatka płac'!$B$6:$D$17,3,FALSE)-C101)*(13-'Zestawienie stanowisk'!$H$1)),"-") -> -
A102: 1 | B102: Magazynier | C102: 3000 | D102: Pracownik 98 | E102: =IFERROR((VLOOKUP(B102,'Zestawienie stanowisk'!$B$5:$E$65,4,FALSE)),"-") -> 1 | F102: =IFERROR(((C102-(VLOOKUP(E102,'Siatka płac'!$B$6:$E$17,3,FALSE)))/(VLOOKUP(E102,'Siatka płac'!$B$6:$E$17,4,FALSE)-VLOOKUP(E102,'Siatka płac'!$B$6:$E$17,3,FALSE))),"-") -> 0.5 | G102: II | H102: =IF(G102="poniżej min.",((VLOOKUP(E102,'Siatka płac'!$B$6:$D$17,3,FALSE)-C102)*(13-'Zestawienie stanowisk'!$H$1)),"-") -> -
A103: 1 | B103: Magazynier | C103: 3000 | D103: Pracownik 99 | E103: =IFERROR((VLOOKUP(B103,'Zestawienie stanowisk'!$B$5:$E$65,4,FALSE)),"-") -> 1 | F103: =IFERROR(((C103-(VLOOKUP(E103,'Siatka płac'!$B$6:$E$17,3,FALSE)))/(VLOOKUP(E103,'Siatka płac'!$B$6:$E$17,4,FALSE)-VLOOKUP(E103,'Siatka płac'!$B$6:$E$17,3,FALSE))),"-") -> 0.5 | G103: II | H103: =IF(G103="poniżej min.",((VLOOKUP(E103,'Siatka płac'!$B$6:$D$17,3,FALSE)-C103)*(13-'Zestawienie stanowisk'!$H$1)),"-") -> -
A104: 1 | B104: Magazynier | C104: 3700 | D104: Pracownik 100 | E104: =IFERROR((VLOOKUP(B104,'Zestawienie stanowisk'!$B$5:$E$65,4,FALSE)),"-") -> 1 | F104: =IFERROR(((C104-(VLOOKUP(E104,'Siatka płac'!$B$6:$E$17,3,FALSE)))/(VLOOKUP(E104,'Siatka płac'!$B$6:$E$17,4,FALSE)-VLOOKUP(E104,'Siatka płac'!$B$6:$E$17,3,FALSE))),"-") -> 0.85 | G104: IV | H104: =IF(G104="poniżej min.",((VLOOKUP(E104,'Siatka płac'!$B$6:$D$17,3,FALSE)-C104)*(13-'Zestawienie stanowisk'!$H$1)),"-") -> -
A105: 1 | B105: Magazynier | C105: 3700 | D105: Pracownik 101 | E105: =IFERROR((VLOOKUP(B105,'Zestawienie stanowisk'!$B$5:$E$65,4,FALSE)),"-") -> 1 | F105: =IFERROR(((C105-(VLOOKUP(E105,'Siatka płac'!$B$6:$E$17,3,FALSE)))/(VLOOKUP(E105,'Siatka płac'!$B$6:$E$17,4,FALSE)-VLOOKUP(E105,'Siatka płac'!$B$6:$E$17,3,FALSE))),"-") -> 0.85 | G105: IV | H105: =IF(G105="poniżej min.",((VLOOKUP(E105,'Siatka płac'!$B$6:$D$17,3,FALSE)-C105)*(13-'Zestawienie stanowisk'!$H$1)),"-") -> -
A106: 1 | B106: Magazynier | C106: 3700 | D106: Pracownik 102 | E106: =IFERROR((VLOOKUP(B106,'Zestawienie stanowisk'!$B$5:$E$65,4,FALSE)),"-") -> 1 | F106: =IFERROR(((C106-(VLOOKUP(E106,'Siatka płac'!$B$6:$E$17,3,FALSE)))/(VLOOKUP(E106,'Siatka płac'!$B$6:$E$17,4,FALSE)-VLOOKUP(E106,'Siatka płac'!$B$6:$E$17,3,FALSE))),"-") -> 0.85 | G106: IV | H106: =IF(G106="poniżej min.",((VLOOKUP(E106,'Siatka płac'!$B$6:$D$17,3,FALSE)-C106)*(13-'Zestawienie stanowisk'!$H$1)),"-") -> -
A107: 1 | B107: Magazynier | C107: 3700 | D107: Pracownik 103 | E107: =IFERROR((VLOOKUP(B107,'Zestawienie stanowisk'!$B$5:$E$65,4,FALSE)),"-") -> 1 | F107: =IFERROR(((C107-(VLOOKUP(E107,'Siatka płac'!$B$6:$E$17,3,FALSE)))/(VLOOKUP(E107,'Siatka płac'!$B$6:$E$17,4,FALSE)-VLOOKUP(E107,'Siatka płac'!$B$6:$E$17,3,FALSE))),"-") -> 0.85 | G107: IV | H107: =IF(G107="poniżej min.",((VLOOKUP(E107,'Siatka płac'!$B$6:$D$17,3,FALSE)-C107)*(13-'Zestawienie stanowisk'!$H$1)),"-") -> -
A108: 1 | B108: Magazynier | C108: 3700 | D108: Pracownik 104 | E108: =IFERROR((VLOOKUP(B108,'Zestawienie stanowisk'!$B$5:$E$65,4,FALSE)),"-") -> 1 | F108: =IFERROR(((C108-(VLOOKUP(E108,'Siatka płac'!$B$6:$E$17,3,FALSE)))/(VLOOKUP(E108,'Siatka płac'!$B$6:$E$17,4,FALSE)-VLOOKUP(E108,'Siatka płac'!$B$6:$E$17,3,FALSE))),"-") -> 0.85 | G108: IV | H108: =IF(G108="poniżej min.",((VLOOKUP(E108,'Siatka płac'!$B$6:$D$17,3,FALSE)-C108)*(13-'Zestawienie stanowisk'!$H$1)),"-") -> -
A109: 1 | B109: Magazynier | C109: 3700 | D109: Pracownik 105 | E109: =IFERROR((VLOOKUP(B109,'Zestawienie stanowisk'!$B$5:$E$65,4,FALSE)),"-") -> 1 | F109: =IFERROR(((C109-(VLOOKUP(E109,'Siatka płac'!$B$6:$E$17,3,FALSE)))/(VLOOKUP(E109,'Siatka płac'!$B$6:$E$17,4,FALSE)-VLOOKUP(E109,'Siatka płac'!$B$6:$E$17,3,FALSE))),"-") -> 0.85 | G109: IV | H109: =IF(G109="poniżej min.",((VLOOKUP(E109,'Siatka płac'!$B$6:$D$17,3,FALSE)-C109)*(13-'Zestawienie stanowisk'!$H$1)),"-") -> -
A110: 1 | B110: Magazynier | C110: 3700 | D110: Pracownik 106 | E110: =IFERROR((VLOOKUP(B110,'Zestawienie stanowisk'!$B$5:$E$65,4,FALSE)),"-") -> 1 | F110: =IFERROR(((C110-(VLOOKUP(E110,'Siatka płac'!$B$6:$E$17,3,FALSE)))/(VLOOKUP(E110,'Siatka płac'!$B$6:$E$17,4,FALSE)-VLOOKUP(E110,'Siatka płac'!$B$6:$E$17,3,FALSE))),"-") -> 0.85 | G110: IV | H110: =IF(G110="poniżej min.",((VLOOKUP(E110,'Siatka płac'!$B$6:$D$17,3,FALSE)-C110)*(13-'Zestawienie stanowisk'!$H$1)),"-") -> -
A111: 1 | B111: Magazynier | C111: 3700 | D111: Pracownik 107 | E111: =IFERROR((VLOOKUP(B111,'Zestawienie stanowisk'!$B$5:$E$65,4,FALSE)),"-") -> 1 | F111: =IFERROR(((C111-(VLOOKUP(E111,'Siatka płac'!$B$6:$E$17,3,FALSE)))/(VLOOKUP(E111,'Siatka płac'!$B$6:$E$17,4,FALSE)-VLOOKUP(E111,'Siatka płac'!$B$6:$E$17,3,FALSE))),"-") -> 0.85 | G111: IV | H111: =IF(G111="poniżej min.",((VLOOKUP(E111,'Siatka płac'!$B$6:$D$17,3,FALSE)-C111)*(13-'Zestawienie stanowisk'!$H$1)),"-") -> -
A112: 1 | B112: Magazynier | C112: 3700 | D112: Pracownik 108 | E112: =IFERROR((VLOOKUP(B112,'Zestawienie stanowisk'!$B$5:$E$65,4,FALSE)),"-") -> 1 | F112: =IFERROR(((C112-(VLOOKUP(E112,'Siatka płac'!$B$6:$E$17,3,FALSE)))/(VLOOKUP(E112,'Siatka płac'!$B$6:$E$17,4,FALSE)-VLOOKUP(E112,'Siatka płac'!$B$6:$E$17,3,FALSE))),"-") -> 0.85 | G112: IV | H112: =IF(G112="poniżej min.",((VLOOKUP(E112,'Siatka płac'!$B$6:$D$17,3,FALSE)-C112)*(13-'Zestawienie stanowisk'!$H$1)),"-") -> -
A113: 1 | B113: Magazynier | C113: 3400 | D113: Pracownik 109 | E113: =IFERROR((VLOOKUP(B113,'Zestawienie stanowisk'!$B$5:$E$65,4,FALSE)),"-") -> 1 | F113: =IFERROR(((C113-(VLOOKUP(E113,'Siatka płac'!$B$6:$E$17,3,FALSE)))/(VLOOKUP(E113,'Siatka płac'!$B$6:$E$17,4,FALSE)-VLOOKUP(E113,'Siatka płac'!$B$6:$E$17,3,FALSE))),"-") -> 0.7 | G113: III | H113: =IF(G113="poniżej min.",((VLOOKUP(E113,'Siatka płac'!$B$6:$D$17,3,FALSE)-C113)*(13-'Zestawienie stanowisk'!$H$1)),"-") -> -
A114: 1 | B114: Magazynier | C114: 3400 | D114: Pracownik 110 | E114: =IFERROR((VLOOKUP(B114,'Zestawienie stanowisk'!$B$5:$E$65,4,FALSE)),"-") -> 1 | F114: =IFERROR(((C114-(VLOOKUP(E114,'Siatka płac'!$B$6:$E$17,3,FALSE)))/(VLOOKUP(E114,'Siatka płac'!$B$6:$E$17,4,FALSE)-VLOOKUP(E114,'Siatka płac'!$B$6:$E$17,3,FALSE))),"-") -> 0.7 | G114: III | H114: =IF(G114="poniżej min.",((VLOOKUP(E114,'Siatka płac'!$B$6:$D$17,3,FALSE)-C114)*(13-'Zestawienie stanowisk'!$H$1)),"-") -> -
A115: 1 | B115: Magazynier | C115: 3400 | D115: Pracownik 111 | E115: =IFERROR((VLOOKUP(B115,'Zestawienie stanowisk'!$B$5:$E$65,4,FALSE)),"-") -> 1 | F115: =IFERROR(((C115-(VLOOKUP(E115,'Siatka płac'!$B$6:$E$17,3,FALSE)))/(VLOOKUP(E115,'Siatka płac'!$B$6:$E$17,4,FALSE)-VLOOKUP(E115,'Siatka płac'!$B$6:$E$17,3,FALSE))),"-") -> 0.7 | G115: III | H115: =IF(G115="poniżej min.",((VLOOKUP(E115,'Siatka płac'!$B$6:$D$17,3,FALSE)-C115)*(13-'Zestawienie stanowisk'!$H$1)),"-") -> -
A116: 1 | B116: Magazynier | C116: 3400 | D116: Pracownik 112 | E116: =IFERROR((VLOOKUP(B116,'Zestawienie stanowisk'!$B$5:$E$65,4,FALSE)),"-") -> 1 | F116: =IFERROR(((C116-(VLOOKUP(E116,'Siatka płac'!$B$6:$E$17,3,FALSE)))/(VLOOKUP(E116,'Siatka płac'!$B$6:$E$17,4,FALSE)-VLOOKUP(E116,'Siatka płac'!$B$6:$E$17,3,FALSE))),"-") -> 0.7 | G116: III | H116: =IF(G116="poniżej min.",((VLOOKUP(E116,'Siatka płac'!$B$6:$D$17,3,FALSE)-C116)*(13-'Zestawienie stanowisk'!$H$1)),"-") -> -
A117: 1 | B117: Magazynier | C117: 3400 | D117: Pracownik 113 | E117: =IFERROR((VLOOKUP(B117,'Zestawienie stanowisk'!$B$5:$E$65,4,FALSE)),"-") -> 1 | F117: =IFERROR(((C117-(VLOOKUP(E117,'Siatka płac'!$B$6:$E$17,3,FALSE)))/(VLOOKUP(E117,'Siatka płac'!$B$6:$E$17,4,FALSE)-VLOOKUP(E117,'Siatka płac'!$B$6:$E$17,3,FALSE))),"-") -> 0.7 | G117: III | H117: =IF(G117="poniżej min.",((VLOOKUP(E117,'Siatka płac'!$B$6:$D$17,3,FALSE)-C117)*(13-'Zestawienie stanowisk'!$H$1)),"-") -> -
A118: 1 | B118: Magazynier | C118: 3400 | D118: Pracownik 114 | E118: =IFERROR((VLOOKUP(B118,'Zestawienie stanowisk'!$B$5:$E$65,4,FALSE)),"-") -> 1 | F118: =IFERROR(((C118-(VLOOKUP(E118,'Siatka płac'!$B$6:$E$17,3,FALSE)))/(VLOOKUP(E118,'Siatka płac'!$B$6:$E$17,4,FALSE)-VLOOKUP(E118,'Siatka płac'!$B$6:$E$17,3,FALSE))),"-") -> 0.7 | G118: III | H118: =IF(G118="poniżej min.",((VLOOKUP(E118,'Siatka płac'!$B$6:$D$17,3,FALSE)-C118)*(13-'Zestawienie stanowisk'!$H$1)),"-") -> -
A119: 1 | B119: Magazynier | C119: 3400 | D119: Pracownik 115 | E119: =IFERROR((VLOOKUP(B119,'Zestawienie stanowisk'!$B$5:$E$65,4,FALSE)),"-") -> 1 | F119: =IFERROR(((C119-(VLOOKUP(E119,'Siatka płac'!$B$6:$E$17,3,FALSE)))/(VLOOKUP(E119,'Siatka płac'!$B$6:$E$17,4,FALSE)-VLOOKUP(E119,'Siatka płac'!$B$6:$E$17,3,FALSE))),"-") -> 0.7 | G119: III | H119: =IF(G119="poniżej min.",((VLOOKUP(E119,'Siatka płac'!$B$6:$D$17,3,FALSE)-C119)*(13-'Zestawienie stanowisk'!$H$1)),"-") -> -
A120: 1 | B120: Magazynier | C120: 3400 | D120: Pracownik 116 | E120: =IFERROR((VLOOKUP(B120,'Zestawienie stanowisk'!$B$5:$E$65,4,FALSE)),"-") -> 1 | F120: =IFERROR(((C120-(VLOOKUP(E120,'Siatka płac'!$B$6:$E$17,3,FALSE)))/(VLOOKUP(E120,'Siatka płac'!$B$6:$E$17,4,FALSE)-VLOOKUP(E120,'Siatka płac'!$B$6:$E$17,3,FALSE))),"-") -> 0.7 | G120: III | H120: =IF(G120="poniżej min.",((VLOOKUP(E120,'Siatka płac'!$B$6:$D$17,3,FALSE)-C120)*(13-'Zestawienie stanowisk'!$H$1)),"-") -> -
A121: 1 | B121: Magazynier | C121: 3400 | D121: Pracownik 117 | E121: =IFERROR((VLOOKUP(B121,'Zestawienie stanowisk'!$B$5:$E$65,4,FALSE)),"-") -> 1 | F121: =IFERROR(((C121-(VLOOKUP(E121,'Siatka płac'!$B$6:$E$17,3,FALSE)))/(VLOOKUP(E121,'Siatka płac'!$B$6:$E$17,4,FALSE)-VLOOKUP(E121,'Siatka płac'!$B$6:$E$17,3,FALSE))),"-") -> 0.7 | G121: III | H121: =IF(G121="poniżej min.",((VLOOKUP(E121,'Siatka płac'!$B$6:$D$17,3,FALSE)-C121)*(13-'Zestawienie stanowisk'!$H$1)),"-") -> -
A122: 1 | B122: Magazynier | C122: 3400 | D122: Pracownik 118 | E122: =IFERROR((VLOOKUP(B122,'Zestawienie stanowisk'!$B$5:$E$65,4,FALSE)),"-") -> 1 | F122: =IFERROR(((C122-(VLOOKUP(E122,'Siatka płac'!$B$6:$E$17,3,FALSE)))/(VLOOKUP(E122,'Siatka płac'!$B$6:$E$17,4,FALSE)-VLOOKUP(E122,'Siatka płac'!$B$6:$E$17,3,FALSE))),"-") -> 0.7 | G122: III | H122: =IF(G122="poniżej min.",((VLOOKUP(E122,'Siatka płac'!$B$6:$D$17,3,FALSE)-C122)*(13-'Zestawienie stanowisk'!$H$1)),"-") -> -
A123: 1 | B123: Magazynier | C123: 3400 | D123: Pracownik 119 | E123: =IFERROR((VLOOKUP(B123,'Zestawienie stanowisk'!$B$5:$E$65,4,FALSE)),"-") -> 1 | F123: =IFERROR(((C123-(VLOOKUP(E123,'Siatka płac'!$B$6:$E$17,3,FALSE)))/(VLOOKUP(E123,'Siatka płac'!$B$6:$E$17,4,FALSE)-VLOOKUP(E123,'Siatka płac'!$B$6:$E$17,3,FALSE))),"-") -> 0.7 | G123: III | H123: =IF(G123="poniżej min.",((VLOOKUP(E123,'Siatka płac'!$B$6:$D$17,3,FALSE)-C123)*(13-'Zestawienie stanowisk'!$H$1)),"-") -> -
A124: 1 | B124: Magazynier | C124: 4000 | D124: Pracownik 120 | E124: =IFERROR((VLOOKUP(B124,'Zestawienie stanowisk'!$B$5:$E$65,4,FALSE)),"-") -> 1 | F124: =IFERROR(((C124-(VLOOKUP(E124,'Siatka płac'!$B$6:$E$17,3,FALSE)))/(VLOOKUP(E124,'Siatka płac'!$B$6:$E$17,4,FALSE)-VLOOKUP(E124,'Siatka płac'!$B$6:$E$17,3,FALSE))),"-") -> 1 | G124: IV | H124: =IF(G124="poniżej min.",((VLOOKUP(E124,'Siatka płac'!$B$6:$D$17,3,FALSE)-C124)*(13-'Zestawienie stanowisk'!$H$1)),"-") -> -
A125: 1 | B125: Magazynier | C125: 4000 | D125: Pracownik 121 | E125: =IFERROR((VLOOKUP(B125,'Zestawienie stanowisk'!$B$5:$E$65,4,FALSE)),"-") -> 1 | F125: =IFERROR(((C125-(VLOOKUP(E125,'Siatka płac'!$B$6:$E$17,3,FALSE)))/(VLOOKUP(E125,'Siatka płac'!$B$6:$E$17,4,FALSE)-VLOOKUP(E125,'Siatka płac'!$B$6:$E$17,3,FALSE))),"-") -> 1 | G125: IV | H125: =IF(G125="poniżej min.",((VLOOKUP(E125,'Siatka płac'!$B$6:$D$17,3,FALSE)-C125)*(13-'Zestawienie stanowisk'!$H$1)),"-") -> -
A126: 1 | B126: Magazynier | C126: 4000 | D126: Pracownik 122 | E126: =IFERROR((VLOOKUP(B126,'Zestawienie stanowisk'!$B$5:$E$65,4,FALSE)),"-") -> 1 | F126: =IFERROR(((C126-(VLOOKUP(E126,'Siatka płac'!$B$6:$E$17,3,FALSE)))/(VLOOKUP(E126,'Siatka płac'!$B$6:$E$17,4,FALSE)-VLOOKUP(E126,'Siatka płac'!$B$6:$E$17,3,FALSE))),"-") -> 1 | G126: IV | H126: =IF(G126="poniżej min.",((VLOOKUP(E126,'Siatka płac'!$B$6:$D$17,3,FALSE)-C126)*(13-'Zestawienie stanowisk'!$H$1)),"-") -> -
A127: 1 | B127: Magazynier | C127: 4000 | D127: Pracownik 123 | E127: =IFERROR((VLOOKUP(B127,'Zestawienie stanowisk'!$B$5:$E$65,4,FALSE)),"-") -> 1 | F127: =IFERROR(((C127-(VLOOKUP(E127,'Siatka płac'!$B$6:$E$17,3,FALSE)))/(VLOOKUP(E127,'Siatka płac'!$B$6:$E$17,4,FALSE)-VLOOKUP(E127,'Siatka płac'!$B$6:$E$17,3,FALSE))),"-") -> 1 | G127: IV | H127: =IF(G127="poniżej min.",((VLOOKUP(E127,'Siatka płac'!$B$6:$D$17,3,FALSE)-C127)*(13-'Zestawienie stanowisk'!$H$1)),"-") -> -
A128: 1 | B128: Magazynier | C128: 4000 | D128: Pracownik 124 | E128: =IFERROR((VLOOKUP(B128,'Zestawienie stanowisk'!$B$5:$E$65,4,FALSE)),"-") -> 1 | F128: =IFERROR(((C128-(VLOOKUP(E128,'Siatka płac'!$B$6:$E$17,3,FALSE)))/(VLOOKUP(E128,'Siatka płac'!$B$6:$E$17,4,FALSE)-VLOOKUP(E128,'Siatka płac'!$B$6:$E$17,3,FALSE))),"-") -> 1 | G128: IV | H128: =IF(G128="poniżej min.",((VLOOKUP(E128,'Siatka płac'!$B$6:$D$17,3,FALSE)-C128)*(13-'Zestawienie stanowisk'!$H$1)),"-") -> -
A129: 1 | B129: Magazynier | C129: 4000 | D129: Pracownik 125 | E129: =IFERROR((VLOOKUP(B129,'Zestawienie stanowisk'!$B$5:$E$65,4,FALSE)),"-") -> 1 | F129: =IFERROR(((C129-(VLOOKUP(E129,'Siatka płac'!$B$6:$E$17,3,FALSE)))/(VLOOKUP(E129,'Siatka płac'!$B$6:$E$17,4,FALSE)-VLOOKUP(E129,'Siatka płac'!$B$6:$E$17,3,FALSE))),"-") -> 1 | G129: IV | H129: =IF(G129="poniżej min.",((VLOOKUP(E129,'Siatka płac'!$B$6:$D$17,3,FALSE)-C129)*(13-'Zestawienie stanowisk'!$H$1)),"-") -> -
A130: 1 | B130: Magazynier | C130: 4000 | D130: Pracownik 126 | E130: =IFERROR((VLOOKUP(B130,'Zestawienie stanowisk'!$B$5:$E$65,4,FALSE)),"-") -> 1 | F130: =IFERROR(((C130-(VLOOKUP(E130,'Siatka płac'!$B$6:$E$17,3,FALSE)))/(VLOOKUP(E130,'Siatka płac'!$B$6:$E$17,4,FALSE)-VLOOKUP(E130,'Siatka płac'!$B$6:$E$17,3,FALSE))),"-") -> 1 | G130: IV | H130: =IF(G130="poniżej min.",((VLOOKUP(E130,'Siatka płac'!$B$6:$D$17,3,FALSE)-C130)*(13-'Zestawienie stanowisk'!$H$1)),"-") -> -
A131: 1 | B131: Magazynier | C131: 4000 | D131: Pracownik 127 | E131: =IFERROR((VLOOKUP(B131,'Zestawienie stanowisk'!$B$5:$E$65,4,FALSE)),"-") -> 1 | F131: =IFERROR(((C131-(VLOOKUP(E131,'Siatka płac'!$B$6:$E$17,3,FALSE)))/(VLOOKUP(E131,'Siatka płac'!$B$6:$E$17,4,FALSE)-VLOOKUP(E131,'Siatka płac'!$B$6:$E$17,3,FALSE))),"-") -> 1 | G131: IV | H131: =IF(G131="poniżej min.",((VLOOKUP(E131,'Siatka płac'!$B$6:$D$17,3,FALSE)-C131)*(13-'Zestawienie stanowisk'!$H$1)),"-") -> -
A132: 1 | B132: Magazynier | C132: 4000 | D132: Pracownik 128 | E132: =IFERROR((VLOOKUP(B132,'Zestawienie stanowisk'!$B$5:$E$65,4,FALSE)),"-") -> 1 | F132: =IFERROR(((C132-(VLOOKUP(E132,'Siatka płac'!$B$6:$E$17,3,FALSE)))/(VLOOKUP(E132,'Siatka płac'!$B$6:$E$17,4,FALSE)-VLOOKUP(E132,'Siatka płac'!$B$6:$E$17,3,FALSE))),"-") -> 1 | G132: IV | H132: =IF(G132="poniżej min.",((VLOOKUP(E132,'Siatka płac'!$B$6:$D$17,3,FALSE)-C132)*(13-'Zestawienie stanowisk'!$H$1)),"-") -> -
A133: =IF(ISBLANK(B133),0,1) -> 1 | B133: Magazynier | C133: 4000 | D133: Pracownik 129 | E133: =IFERROR((VLOOKUP(B133,'Zestawienie stanowisk'!$B$5:$E$65,4,FALSE)),"-") -> 1 | F133: =IFERROR(((C133-(VLOOKUP(E133,'Siatka płac'!$B$6:$E$17,3,FALSE)))/(VLOOKUP(E133,'Siatka płac'!$B$6:$E$17,4,FALSE)-VLOOKUP(E133,'Siatka płac'!$B$6:$E$17,3,FALSE))),"-") -> 1 | G133: =IFERROR((INDEX($N$5:$N$10,MATCH(F133,$M$5:$M$10,-1))),"-") -> IV | H133: =IF(G133="poniżej min.",((VLOOKUP(E133,'Siatka płac'!$B$6:$D$17,3,FALSE)-C133)*(13-'Zestawienie stanowisk'!$H$1)),"-") -> -
A134: 1 | B134: Magazynier | C134: 4000 | D134: Pracownik 130 | E134: =IFERROR((VLOOKUP(B134,'Zestawienie stanowisk'!$B$5:$E$65,4,FALSE)),"-") -> 1 | F134: =IFERROR(((C134-(VLOOKUP(E134,'Siatka płac'!$B$6:$E$17,3,FALSE)))/(VLOOKUP(E134,'Siatka płac'!$B$6:$E$17,4,FALSE)-VLOOKUP(E134,'Siatka płac'!$B$6:$E$17,3,FALSE))),"-") -> 1 | G134: IV | H134: =IF(G134="poniżej min.",((VLOOKUP(E134,'Siatka płac'!$B$6:$D$17,3,FALSE)-C134)*(13-'Zestawienie stanowisk'!$H$1)),"-") -> -
A135: 1 | B135: Magazynier | C135: 4000 | D135: Pracownik 131 | E135: =IFERROR((VLOOKUP(B135,'Zestawienie stanowisk'!$B$5:$E$65,4,FALSE)),"-") -> 1 | F135: =IFERROR(((C135-(VLOOKUP(E135,'Siatka płac'!$B$6:$E$17,3,FALSE)))/(VLOOKUP(E135,'Siatka płac'!$B$6:$E$17,4,FALSE)-VLOOKUP(E135,'Siatka płac'!$B$6:$E$17,3,FALSE))),"-") -> 1 | G135: IV | H135: =IF(G135="poniżej min.",((VLOOKUP(E135,'Siatka płac'!$B$6:$D$17,3,FALSE)-C135)*(13-'Zestawienie stanowisk'!$H$1)),"-") -> -
A136: 1 | B136: Magazynier | C136: 4000 | D136: Pracownik 132 | E136: =IFERROR((VLOOKUP(B136,'Zestawienie stanowisk'!$B$5:$E$65,4,FALSE)),"-") -> 1 | F136: =IFERROR(((C136-(VLOOKUP(E136,'Siatka płac'!$B$6:$E$17,3,FALSE)))/(VLOOKUP(E136,'Siatka płac'!$B$6:$E$17,4,FALSE)-VLOOKUP(E136,'Siatka płac'!$B$6:$E$17,3,FALSE))),"-") -> 1 | G136: IV | H136: =IF(G136="poniżej min.",((VLOOKUP(E136,'Siatka płac'!$B$6:$D$17,3,FALSE)-C136)*(13-'Zestawienie stanowisk'!$H$1)),"-") -> -
A137: 1 | B137: Magazynier | C137: 4000 | D137: Pracownik 133 | E137: =IFERROR((VLOOKUP(B137,'Zestawienie stanowisk'!$B$5:$E$65,4,FALSE)),"-") -> 1 | F137: =IFERROR(((C137-(VLOOKUP(E137,'Siatka płac'!$B$6:$E$17,3,FALSE)))/(VLOOKUP(E137,'Siatka płac'!$B$6:$E$17,4,FALSE)-VLOOKUP(E137,'Siatka płac'!$B$6:$E$17,3,FALSE))),"-") -> 1 | G137: IV | H137: =IF(G137="poniżej min.",((VLOOKUP(E137,'Siatka płac'!$B$6:$D$17,3,FALSE)-C137)*(13-'Zestawienie stanowisk'!$H$1)),"-") -> -
A138: 1 | B138: Magazynier | C138: 4000 | D138: Pracownik 134 | E138: =IFERROR((VLOOKUP(B138,'Zestawienie stanowisk'!$B$5:$E$65,4,FALSE)),"-") -> 1 | F138: =IFERROR(((C138-(VLOOKUP(E138,'Siatka płac'!$B$6:$E$17,3,FALSE)))/(VLOOKUP(E138,'Siatka płac'!$B$6:$E$17,4,FALSE)-VLOOKUP(E138,'Siatka płac'!$B$6:$E$17,3,FALSE))),"-") -> 1 | G138: IV | H138: =IF(G138="poniżej min.",((VLOOKUP(E138,'Siatka płac'!$B$6:$D$17,3,FALSE)-C138)*(13-'Zestawienie stanowisk'!$H$1)),"-") -> -
A139: 1 | B139: Magazynier | C139: 4000 | D139: Pracownik 135 | E139: =IFERROR((VLOOKUP(B139,'Zestawienie stanowisk'!$B$5:$E$65,4,FALSE)),"-") -> 1 | F139: =IFERROR(((C139-(VLOOKUP(E139,'Siatka płac'!$B$6:$E$17,3,FALSE)))/(VLOOKUP(E139,'Siatka płac'!$B$6:$E$17,4,FALSE)-VLOOKUP(E139,'Siatka płac'!$B$6:$E$17,3,FALSE))),"-") -> 1 | G139: IV | H139: =IF(G139="poniżej min.",((VLOOKUP(E139,'Siatka płac'!$B$6:$D$17,3,FALSE)-C139)*(13-'Zestawienie stanowisk'!$H$1)),"-") -> -
A140: 1 | B140: Magazynier | C140: 4000 | D140: Pracownik 136 | E140: =IFERROR((VLOOKUP(B140,'Zestawienie stanowisk'!$B$5:$E$65,4,FALSE)),"-") -> 1 | F140: =IFERROR(((C140-(VLOOKUP(E140,'Siatka płac'!$B$6:$E$17,3,FALSE)))/(VLOOKUP(E140,'Siatka płac'!$B$6:$E$17,4,FALSE)-VLOOKUP(E140,'Siatka płac'!$B$6:$E$17,3,FALSE))),"-") -> 1 | G140: IV | H140: =IF(G140="poniżej min.",((VLOOKUP(E140,'Siatka płac'!$B$6:$D$17,3,FALSE)-C140)*(13-'Zestawienie stanowisk'!$H$1)),"-") -> -
A141: 1 | B141: Magazynier | C141: 4000 | D141: Pracownik 137 | E141: =IFERROR((VLOOKUP(B141,'Zestawienie stanowisk'!$B$5:$E$65,4,FALSE)),"-") -> 1 | F141: =IFERROR(((C141-(VLOOKUP(E141,'Siatka płac'!$B$6:$E$17,3,FALSE)))/(VLOOKUP(E141,'Siatka płac'!$B$6:$E$17,4,FALSE)-VLOOKUP(E141,'Siatka płac'!$B$6:$E$17,3,FALSE))),"-") -> 1 | G141: IV | H141: =IF(G141="poniżej min.",((VLOOKUP(E141,'Siatka płac'!$B$6:$D$17,3,FALSE)-C141)*(13-'Zestawienie stanowisk'!$H$1)),"-") -> -
A142: 1 | B142: Magazynier | C142: 4000 | D142: Pracownik 138 | E142: =IFERROR((VLOOKUP(B142,'Zestawienie stanowisk'!$B$5:$E$65,4,FALSE)),"-") -> 1 | F142: =IFERROR(((C142-(VLOOKUP(E142,'Siatka płac'!$B$6:$E$17,3,FALSE)))/(VLOOKUP(E142,'Siatka płac'!$B$6:$E$17,4,FALSE)-VLOOKUP(E142,'Siatka płac'!$B$6:$E$17,3,FALSE))),"-") -> 1 | G142: IV | H142: =IF(G142="poniżej min.",((VLOOKUP(E142,'Siatka płac'!$B$6:$D$17,3,FALSE)-C142)*(13-'Zestawienie stanowisk'!$H$1)),"-") -> -
A143: 1 | B143: Magazynier | C143: 4000 | D143: Pracownik 139 | E143: =IFERROR((VLOOKUP(B143,'Zestawienie stanowisk'!$B$5:$E$65,4,FALSE)),"-") -> 1 | F143: =IFERROR(((C143-(VLOOKUP(E143,'Siatka płac'!$B$6:$E$17,3,FALSE)))/(VLOOKUP(E143,'Siatka płac'!$B$6:$E$17,4,FALSE)-VLOOKUP(E143,'Siatka płac'!$B$6:$E$17,3,FALSE))),"-") -> 1 | G143: IV | H143: =IF(G143="poniżej min.",((VLOOKUP(E143,'Siatka płac'!$B$6:$D$17,3,FALSE)-C143)*(13-'Zestawienie stanowisk'!$H$1)),"-") -> -
A144: 1 | B144: Magazynier | C144: 4000 | D144: Pracownik 140 | E144: =IFERROR((VLOOKUP(B144,'Zestawienie stanowisk'!$B$5:$E$65,4,FALSE)),"-") -> 1 | F144: =IFERROR(((C144-(VLOOKUP(E144,'Siatka płac'!$B$6:$E$17,3,FALSE)))/(VLOOKUP(E144,'Siatka płac'!$B$6:$E$17,4,FALSE)-VLOOKUP(E144,'Siatka płac'!$B$6:$E$17,3,FALSE))),"-") -> 1 | G144: IV | H144: =IF(G144="poniżej min.",((VLOOKUP(E144,'Siatka płac'!$B$6:$D$17,3,FALSE)-C144)*(13-'Zestawienie stanowisk'!$H$1)),"-") -> -
A145: 1 | B145: Magazynier | C145: 2800 | D145: Pracownik 141 | E145: =IFERROR((VLOOKUP(B145,'Zestawienie stanowisk'!$B$5:$E$65,4,FALSE)),"-") -> 1 | F145: =IFERROR(((C145-(VLOOKUP(E145,'Siatka płac'!$B$6:$E$17,3,FALSE)))/(VLOOKUP(E145,'Siatka płac'!$B$6:$E$17,4,FALSE)-VLOOKUP(E145,'Siatka płac'!$B$6:$E$17,3,FALSE))),"-") -> 0.4 | G145: II | H145: =IF(G145="poniżej min.",((VLOOKUP(E145,'Siatka płac'!$B$6:$D$17,3,FALSE)-C145)*(13-'Zestawienie stanowisk'!$H$1)),"-") -> -
A146: 1 | B146: Magazynier | C146: 2800 | D146: Pracownik 142 | E146: =IFERROR((VLOOKUP(B146,'Zestawienie stanowisk'!$B$5:$E$65,4,FALSE)),"-") -> 1 | F146: =IFERROR(((C146-(VLOOKUP(E146,'Siatka płac'!$B$6:$E$17,3,FALSE)))/(VLOOKUP(E146,'Siatka płac'!$B$6:$E$17,4,FALSE)-VLOOKUP(E146,'Siatka płac'!$B$6:$E$17,3,FALSE))),"-") -> 0.4 | G146: II | H146: =IF(G146="poniżej min.",((VLOOKUP(E146,'Siatka płac'!$B$6:$D$17,3,FALSE)-C146)*(13-'Zestawienie stanowisk'!$H$1)),"-") -> -
A147: 1 | B147: Magazynier | C147: 2800 | D147: Pracownik 143 | E147: =IFERROR((VLOOKUP(B147,'Zestawienie stanowisk'!$B$5:$E$65,4,FALSE)),"-") -> 1 | F147: =IFERROR(((C147-(VLOOKUP(E147,'Siatka płac'!$B$6:$E$17,3,FALSE)))/(VLOOKUP(E147,'Siatka płac'!$B$6:$E$17,4,FALSE)-VLOOKUP(E147,'Siatka płac'!$B$6:$E$17,3,FALSE))),"-") -> 0.4 | G147: II | H147: =IF(G147="poniżej min.",((VLOOKUP(E147,'Siatka płac'!$B$6:$D$17,3,FALSE)-C147)*(13-'Zestawienie stanowisk'!$H$1)),"-") -> -
A148: 1 | B148: Magazynier | C148: 2800 | D148: Pracownik 144 | E148: =IFERROR((VLOOKUP(B148,'Zestawienie stanowisk'!$B$5:$E$65,4,FALSE)),"-") -> 1 | F148: =IFERROR(((C148-(VLOOKUP(E148,'Siatka płac'!$B$6:$E$17,3,FALSE)))/(VLOOKUP(E148,'Siatka płac'!$B$6:$E$17,4,FALSE)-VLOOKUP(E148,'Siatka płac'!$B$6:$E$17,3,FALSE))),"-") -> 0.4 | G148: II | H148: =IF(G148="poniżej min.",((VLOOKUP(E148,'Siatka płac'!$B$6:$D$17,3,FALSE)-C148)*(13-'Zestawienie stanowisk'!$H$1)),"-") -> -
A149: 1 | B149: Magazynier | C149: 2800 | D149: Pracownik 145 | E149: =IFERROR((VLOOKUP(B149,'Zestawienie stanowisk'!$B$5:$E$65,4,FALSE)),"-") -> 1 | F149: =IFERROR(((C149-(VLOOKUP(E149,'Siatka płac'!$B$6:$E$17,3,FALSE)))/(VLOOKUP(E149,'Siatka płac'!$B$6:$E$17,4,FALSE)-VLOOKUP(E149,'Siatka płac'!$B$6:$E$17,3,FALSE))),"-") -> 0.4 | G149: II | H149: =IF(G149="poniżej min.",((VLOOKUP(E149,'Siatka płac'!$B$6:$D$17,3,FALSE)-C149)*(13-'Zestawienie stanowisk'!$H$1)),"-") -> -
A150: 1 | B150: Magazynier | C150: 2800 | D150: Pracownik 146 | E150: =IFERROR((VLOOKUP(B150,'Zestawienie stanowisk'!$B$5:$E$65,4,FALSE)),"-") -> 1 | F150: =IFERROR(((C150-(VLOOKUP(E150,'Siatka płac'!$B$6:$E$17,3,FALSE)))/(VLOOKUP(E150,'Siatka płac'!$B$6:$E$17,4,FALSE)-VLOOKUP(E150,'Siatka płac'!$B$6:$E$17,3,FALSE))),"-") -> 0.4 | G150: II | H150: =IF(G150="poniżej min.",((VLOOKUP(E150,'Siatka płac'!$B$6:$D$17,3,FALSE)-C150)*(13-'Zestawienie stanowisk'!$H$1)),"-") -> -
A151: 1 | B151: Magazynier | C151: 2800 | D151: Pracownik 147 | E151: =IFERROR((VLOOKUP(B151,'Zestawienie stanowisk'!$B$5:$E$65,4,FALSE)),"-") -> 1 | F151: =IFERROR(((C151-(VLOOKUP(E151,'Siatka płac'!$B$6:$E$17,3,FALSE)))/(VLOOKUP(E151,'Siatka płac'!$B$6:$E$17,4,FALSE)-VLOOKUP(E151,'Siatka płac'!$B$6:$E$17,3,FALSE))),"-") -> 0.4 | G151: II | H151: =IF(G151="poniżej min.",((VLOOKUP(E151,'Siatka płac'!$B$6:$D$17,3,FALSE)-C151)*(13-'Zestawienie stanowisk'!$H$1)),"-") -> -
A152: 1 | B152: Magazynier | C152: 2800 | D152: Pracownik 148 | E152: =IFERROR((VLOOKUP(B152,'Zestawienie stanowisk'!$B$5:$E$65,4,FALSE)),"-") -> 1 | F152: =IFERROR(((C152-(VLOOKUP(E152,'Siatka płac'!$B$6:$E$17,3,FALSE)))/(VLOOKUP(E152,'Siatka płac'!$B$6:$E$17,4,FALSE)-VLOOKUP(E152,'Siatka płac'!$B$6:$E$17,3,FALSE))),"-") -> 0.4 | G152: II | H152: =IF(G152="poniżej min.",((VLOOKUP(E152,'Siatka płac'!$B$6:$D$17,3,FALSE)-C152)*(13-'Zestawienie stanowisk'!$H$1)),"-") -> -
A153: 1 | B153: Magazynier | C153: 2800 | D153: Pracownik 149 | E153: =IFERROR((VLOOKUP(B153,'Zestawienie stanowisk'!$B$5:$E$65,4,FALSE)),"-") -> 1 | F153: =IFERROR(((C153-(VLOOKUP(E153,'Siatka płac'!$B$6:$E$17,3,FALSE)))/(VLOOKUP(E153,'Siatka płac'!$B$6:$E$17,4,FALSE)-VLOOKUP(E153,'Siatka płac'!$B$6:$E$17,3,FALSE))),"-") -> 0.4 | G153: II | H153: =IF(G153="poniżej min.",((VLOOKUP(E153,'Siatka płac'!$B$6:$D$17,3,FALSE)-C153)*(13-'Zestawienie stanowisk'!$H$1)),"-") -> -
A154: 1 | B154: Magazynier | C154: 2800 | D154: Pracownik 150 | E154: =IFERROR((VLOOKUP(B154,'Zestawienie stanowisk'!$B$5:$E$65,4,FALSE)),"-") -> 1 | F154: =IFERROR(((C154-(VLOOKUP(E154,'Siatka płac'!$B$6:$E$17,3,FALSE)))/(VLOOKUP(E154,'Siatka płac'!$B$6:$E$17,4,FALSE)-VLOOKUP(E154,'Siatka płac'!$B$6:$E$17,3,FALSE))),"-") -> 0.4 | G154: II | H154: =IF(G154="poniżej min.",((VLOOKUP(E154,'Siatka płac'!$B$6:$D$17,3,FALSE)-C154)*(13-'Zestawienie stanowisk'!$H$1)),"-") -> -
A155: 1 | B155: Magazynier | C155: 2800 | D155: Pracownik 151 | E155: =IFERROR((VLOOKUP(B155,'Zestawienie stanowisk'!$B$5:$E$65,4,FALSE)),"-") -> 1 | F155: =IFERROR(((C155-(VLOOKUP(E155,'Siatka płac'!$B$6:$E$17,3,FALSE)))/(VLOOKUP(E155,'Siatka płac'!$B$6:$E$17,4,FALSE)-VLOOKUP(E155,'Siatka płac'!$B$6:$E$17,3,FALSE))),"-") -> 0.4 | G155: II | H155: =IF(G155="poniżej min.",((VLOOKUP(E155,'Siatka płac'!$B$6:$D$17,3,FALSE)-C155)*(13-'Zestawienie stanowisk'!$H$1)),"-") -> -
A156: 1 | B156: Monter | C156: 2500 | D156: Pracownik 152 | E156: =IFERROR((VLOOKUP(B156,'Zestawienie stanowisk'!$B$5:$E$65,4,FALSE)),"-") -> 1 | F156: =IFERROR(((C156-(VLOOKUP(E156,'Siatka płac'!$B$6:$E$17,3,FALSE)))/(VLOOKUP(E156,'Siatka płac'!$B$6:$E$17,4,FALSE)-VLOOKUP(E156,'Siatka płac'!$B$6:$E$17,3,FALSE))),"-") -> 0.25 | G156: I | H156: =IF(G156="poniżej min.",((VLOOKUP(E156,'Siatka płac'!$B$6:$D$17,3,FALSE)-C156)*(13-'Zestawienie stanowisk'!$H$1)),"-") -> -
A157: 1 | B157: Monter | C157: 2500 | D157: Pracownik 153 | E157: =IFERROR((VLOOKUP(B157,'Zestawienie stanowisk'!$B$5:$E$65,4,FALSE)),"-") -> 1 | F157: =IFERROR(((C157-(VLOOKUP(E157,'Siatka płac'!$B$6:$E$17,3,FALSE)))/(VLOOKUP(E157,'Siatka płac'!$B$6:$E$17,4,FALSE)-VLOOKUP(E157,'Siatka płac'!$B$6:$E$17,3,FALSE))),"-") -> 0.25 | G157: I | H157: =IF(G157="poniżej min.",((VLOOKUP(E157,'Siatka płac'!$B$6:$D$17,3,FALSE)-C157)*(13-'Zestawienie stanowisk'!$H$1)),"-") -> -
A158: 1 | B158: Monter | C158: 2500 | D158: Pracownik 154 | E158: =IFERROR((VLOOKUP(B158,'Zestawienie stanowisk'!$B$5:$E$65,4,FALSE)),"-") -> 1 | F158: =IFERROR(((C158-(VLOOKUP(E158,'Siatka płac'!$B$6:$E$17,3,FALSE)))/(VLOOKUP(E158,'Siatka płac'!$B$6:$E$17,4,FALSE)-VLOOKUP(E158,'Siatka płac'!$B$6:$E$17,3,FALSE))),"-") -> 0.25 | G158: I | H158: =IF(G158="poniżej min.",((VLOOKUP(E158,'Siatka płac'!$B$6:$D$17,3,FALSE)-C158)*(13-'Zestawienie stanowisk'!$H$1)),"-") -> -
A159: 1 | B159: Kierowca | C159: 4000 | D159: Pracownik 155 | E159: =IFERROR((VLOOKUP(B159,'Zestawienie stanowisk'!$B$5:$E$65,4,FALSE)),"-") -> 1 | F159: =IFERROR(((C159-(VLOOKUP(E159,'Siatka płac'!$B$6:$E$17,3,FALSE)))/(VLOOKUP(E159,'Siatka płac'!$B$6:$E$17,4,FALSE)-VLOOKUP(E159,'Siatka płac'!$B$6:$E$17,3,FALSE))),"-") -> 1 | G159: IV | H159: =IF(G159="poniżej min.",((VLOOKUP(E159,'Siatka płac'!$B$6:$D$17,3,FALSE)-C159)*(13-'Zestawienie stanowisk'!$H$1)),"-") -> -
A160: 1 | B160: Kierowca | C160: 4100 | D160: Pracownik 156 | E160: =IFERROR((VLOOKUP(B160,'Zestawienie stanowisk'!$B$5:$E$65,4,FALSE)),"-") -> 1 | F160: =IFERROR(((C160-(VLOOKUP(E160,'Siatka płac'!$B$6:$E$17,3,FALSE)))/(VLOOKUP(E160,'Siatka płac'!$B$6:$E$17,4,FALSE)-VLOOKUP(E160,'Siatka płac'!$B$6:$E$17,3,FALSE))),"-") -> 1.05 | G160: powyżej maks. | H160: =IF(G160="poniżej min.",((VLOOKUP(E160,'Siatka płac'!$B$6:$D$17,3,FALSE)-C160)*(13-'Zestawienie stanowisk'!$H$1)),"-") -> -
A161: 1 | B161: Kierowca | C161: 4200 | D161: Pracownik 157 | E161: =IFERROR((VLOOKUP(B161,'Zestawienie stanowisk'!$B$5:$E$65,4,FALSE)),"-") -> 1 | F161: =IFERROR(((C161-(VLOOKUP(E161,'Siatka płac'!$B$6:$E$17,3,FALSE)))/(VLOOKUP(E161,'Siatka płac'!$B$6:$E$17,4,FALSE)-VLOOKUP(E161,'Siatka płac'!$B$6:$E$17,3,FALSE))),"-") -> 1.1 | G161: powyżej maks. | H161: =IF(G161="poniżej min.",((VLOOKUP(E161,'Siatka płac'!$B$6:$D$17,3,FALSE)-C161)*(13-'Zestawienie stanowisk'!$H$1)),"-") -> -
A162: 1 | B162: Kierowca | C162: 3200 | D162: Pracownik 158 | E162: =IFERROR((VLOOKUP(B162,'Zestawienie stanowisk'!$B$5:$E$65,4,FALSE)),"-") -> 1 | F162: =IFERROR(((C162-(VLOOKUP(E162,'Siatka płac'!$B$6:$E$17,3,FALSE)))/(VLOOKUP(E162,'Siatka płac'!$B$6:$E$17,4,FALSE)-VLOOKUP(E162,'Siatka płac'!$B$6:$E$17,3,FALSE))),"-") -> 0.6 | G162: III | H162: =IF(G162="poniżej min.",((VLOOKUP(E162,'Siatka płac'!$B$6:$D$17,3,FALSE)-C162)*(13-'Zestawienie stanowisk'!$H$1)),"-") -> -
A163: 1 | B163: Kierowca | C163: 3600 | D163: Pracownik 159 | E163: =IFERROR((VLOOKUP(B163,'Zestawienie stanowisk'!$B$5:$E$65,4,FALSE)),"-") -> 1 | F163: =IFERROR(((C163-(VLOOKUP(E163,'Siatka płac'!$B$6:$E$17,3,FALSE)))/(VLOOKUP(E163,'Siatka płac'!$B$6:$E$17,4,FALSE)-VLOOKUP(E163,'Siatka płac'!$B$6:$E$17,3,FALSE))),"-") -> 0.8 | G163: IV | H163: =IF(G163="poniżej min.",((VLOOKUP(E163,'Siatka płac'!$B$6:$D$17,3,FALSE)-C163)*(13-'Zestawienie stanowisk'!$H$1)),"-") -> -
A164: 1 | B164: Kierowca | C164: 3700 | D164: Pracownik 160 | E164: =IFERROR((VLOOKUP(B164,'Zestawienie stanowisk'!$B$5:$E$65,4,FALSE)),"-") -> 1 | F164: =IFERROR(((C164-(VLOOKUP(E164,'Siatka płac'!$B$6:$E$17,3,FALSE)))/(VLOOKUP(E164,'Siatka płac'!$B$6:$E$17,4,FALSE)-VLOOKUP(E164,'Siatka płac'!$B$6:$E$17,3,FALSE))),"-") -> 0.85 | G164: IV | H164: =IF(G164="poniżej min.",((VLOOKUP(E164,'Siatka płac'!$B$6:$D$17,3,FALSE)-C164)*(13-'Zestawienie stanowisk'!$H$1)),"-") -> -
A165: 1 | B165: Kierowca | C165: 3550 | D165: Pracownik 161 | E165: =IFERROR((VLOOKUP(B165,'Zestawienie stanowisk'!$B$5:$E$65,4,FALSE)),"-") -> 1 | F165: =IFERROR(((C165-(VLOOKUP(E165,'Siatka płac'!$B$6:$E$17,3,FALSE)))/(VLOOKUP(E165,'Siatka płac'!$B$6:$E$17,4,FALSE)-VLOOKUP(E165,'Siatka płac'!$B$6:$E$17,3,FALSE))),"-") -> 0.775 | G165: IV | H165: =IF(G165="poniżej min.",((VLOOKUP(E165,'Siatka płac'!$B$6:$D$17,3,FALSE)-C165)*(13-'Zestawienie stanowisk'!$H$1)),"-") -> -
A166: 1 | B166: Kierowca | C166: 4300 | D166: Pracownik 162 | E166: =IFERROR((VLOOKUP(B166,'Zestawienie stanowisk'!$B$5:$E$65,4,FALSE)),"-") -> 1 | F166: =IFERROR(((C166-(VLOOKUP(E166,'Siatka płac'!$B$6:$E$17,3,FALSE)))/(VLOOKUP(E166,'Siatka płac'!$B$6:$E$17,4,FALSE)-VLOOKUP(E166,'Siatka płac'!$B$6:$E$17,3,FALSE))),"-") -> 1.15 | G166: powyżej maks. | H166: =IF(G166="poniżej min.",((VLOOKUP(E166,'Siatka płac'!$B$6:$D$17,3,FALSE)-C166)*(13-'Zestawienie stanowisk'!$H$1)),"-") -> -
A167: 1 | B167: Kierowca | C167: 4200 | D167: Pracownik 163 | E167: =IFERROR((VLOOKUP(B167,'Zestawienie stanowisk'!$B$5:$E$65,4,FALSE)),"-") -> 1 | F167: =IFERROR(((C167-(VLOOKUP(E167,'Siatka płac'!$B$6:$E$17,3,FALSE)))/(VLOOKUP(E167,'Siatka płac'!$B$6:$E$17,4,FALSE)-VLOOKUP(E167,'Siatka płac'!$B$6:$E$17,3,FALSE))),"-") -> 1.1 | G167: powyżej maks. | H167: =IF(G167="poniżej min.",((VLOOKUP(E167,'Siatka płac'!$B$6:$D$17,3,FALSE)-C167)*(13-'Zestawienie stanowisk'!$H$1)),"-") -> -
A168: 1 | B168: Kierowca | C168: 3600 | D168: Pracownik 164 | E168: =IFERROR((VLOOKUP(B168,'Zestawienie stanowisk'!$B$5:$E$65,4,FALSE)),"-") -> 1 | F168: =IFERROR(((C168-(VLOOKUP(E168,'Siatka płac'!$B$6:$E$17,3,FALSE)))/(VLOOKUP(E168,'Siatka płac'!$B$6:$E$17,4,FALSE)-VLOOKUP(E168,'Siatka płac'!$B$6:$E$17,3,FALSE))),"-") -> 0.8 | G168: IV | H168: =IF(G168="poniżej min.",((VLOOKUP(E168,'Siatka płac'!$B$6:$D$17,3,FALSE)-C168)*(13-'Zestawienie stanowisk'!$H$1)),"-") -> -
A169: 1 | B169: Kierowca | C169: 3700 | D169: Pracownik 165 | E169: =IFERROR((VLOOKUP(B169,'Zestawienie stanowisk'!$B$5:$E$65,4,FALSE)),"-") -> 1 | F169: =IFERROR(((C169-(VLOOKUP(E169,'Siatka płac'!$B$6:$E$17,3,FALSE)))/(VLOOKUP(E169,'Siatka płac'!$B$6:$E$17,4,FALSE)-VLOOKUP(E169,'Siatka płac'!$B$6:$E$17,3,FALSE))),"-") -> 0.85 | G169: IV | H169: =IF(G169="poniżej min.",((VLOOKUP(E169,'Siatka płac'!$B$6:$D$17,3,FALSE)-C169)*(13-'Zestawienie stanowisk'!$H$1)),"-") -> -
A170: 1 | B170: Kierowca | C170: 3400 | D170: Pracownik 166 | E170: =IFERROR((VLOOKUP(B170,'Zestawienie stanowisk'!$B$5:$E$65,4,FALSE)),"-") -> 1 | F170: =IFERROR(((C170-(VLOOKUP(E170,'Siatka płac'!$B$6:$E$17,3,FALSE)))/(VLOOKUP(E170,'Siatka płac'!$B$6:$E$17,4,FALSE)-VLOOKUP(E170,'Siatka płac'!$B$6:$E$17,3,FALSE))),"-") -> 0.7 | G170: III | H170: =IF(G170="poniżej min.",((VLOOKUP(E170,'Siatka płac'!$B$6:$D$17,3,FALSE)-C170)*(13-'Zestawienie stanowisk'!$H$1)),"-") -> -
A171: 1 | B171: Kierowca | C171: 3450 | D171: Pracownik 167 | E171: =IFERROR((VLOOKUP(B171,'Zestawienie stanowisk'!$B$5:$E$65,4,FALSE)),"-") -> 1 | F171: =IFERROR(((C171-(VLOOKUP(E171,'Siatka płac'!$B$6:$E$17,3,FALSE)))/(VLOOKUP(E171,'Siatka płac'!$B$6:$E$17,4,FALSE)-VLOOKUP(E171,'Siatka płac'!$B$6:$E$17,3,FALSE))),"-") -> 0.725 | G171: III | H171: =IF(G171="poniżej min.",((VLOOKUP(E171,'Siatka płac'!$B$6:$D$17,3,FALSE)-C171)*(13-'Zestawienie stanowisk'!$H$1)),"-") -> -
A172: 1 | B172: Kierowca | C172: 3350 | D172: Pracownik 168 | E172: =IFERROR((VLOOKUP(B172,'Zestawienie stanowisk'!$B$5:$E$65,4,FALSE)),"-") -> 1 | F172: =IFERROR(((C172-(VLOOKUP(E172,'Siatka płac'!$B$6:$E$17,3,FALSE)))/(VLOOKUP(E172,'Siatka płac'!$B$6:$E$17,4,FALSE)-VLOOKUP(E172,'Siatka płac'!$B$6:$E$17,3,FALSE))),"-") -> 0.675 | G172: III | H172: =IF(G172="poniżej min.",((VLOOKUP(E172,'Siatka płac'!$B$6:$D$17,3,FALSE)-C172)*(13-'Zestawienie stanowisk'!$H$1)),"-") -> -
A173: 1 | B173: Kierowca | C173: 3550 | D173: Pracownik 169 | E173: =IFERROR((VLOOKUP(B173,'Zestawienie stanowisk'!$B$5:$E$65,4,FALSE)),"-") -> 1 | F173: =IFERROR(((C173-(VLOOKUP(E173,'Siatka płac'!$B$6:$E$17,3,FALSE)))/(VLOOKUP(E173,'Siatka płac'!$B$6:$E$17,4,FALSE)-VLOOKUP(E173,'Siatka płac'!$B$6:$E$17,3,FALSE))),"-") -> 0.775 | G173: IV | H173: =IF(G173="poniżej min.",((VLOOKUP(E173,'Siatka płac'!$B$6:$D$17,3,FALSE)-C173)*(13-'Zestawienie stanowisk'!$H$1)),"-") -> -
A174: 1 | B174: Kierowca | C174: 4000 | D174: Pracownik 170 | E174: =IFERROR((VLOOKUP(B174,'Zestawienie stanowisk'!$B$5:$E$65,4,FALSE)),"-") -> 1 | F174: =IFERROR(((C174-(VLOOKUP(E174,'Siatka płac'!$B$6:$E$17,3,FALSE)))/(VLOOKUP(E174,'Siatka płac'!$B$6:$E$17,4,FALSE)-VLOOKUP(E174,'Siatka płac'!$B$6:$E$17,3,FALSE))),"-") -> 1 | G174: IV | H174: =IF(G174="poniżej min.",((VLOOKUP(E174,'Siatka płac'!$B$6:$D$17,3,FALSE)-C174)*(13-'Zestawienie stanowisk'!$H$1)),"-") -> -
A175: 1 | B175: Monter | C175: 2500 | D175: Pracownik 171 | E175: =IFERROR((VLOOKUP(B175,'Zestawienie stanowisk'!$B$5:$E$65,4,FALSE)),"-") -> 1 | F175: =IFERROR(((C175-(VLOOKUP(E175,'Siatka płac'!$B$6:$E$17,3,FALSE)))/(VLOOKUP(E175,'Siatka płac'!$B$6:$E$17,4,FALSE)-VLOOKUP(E175,'Siatka płac'!$B$6:$E$17,3,FALSE))),"-") -> 0.25 | G175: I | H175: =IF(G175="poniżej min.",((VLOOKUP(E175,'Siatka płac'!$B$6:$D$17,3,FALSE)-C175)*(13-'Zestawienie stanowisk'!$H$1)),"-") -> -
A176: 1 | B176: Monter | C176: 2500 | D176: Pracownik 172 | E176: =IFERROR((VLOOKUP(B176,'Zestawienie stanowisk'!$B$5:$E$65,4,FALSE)),"-") -> 1 | F176: =IFERROR(((C176-(VLOOKUP(E176,'Siatka płac'!$B$6:$E$17,3,FALSE)))/(VLOOKUP(E176,'Siatka płac'!$B$6:$E$17,4,FALSE)-VLOOKUP(E176,'Siatka płac'!$B$6:$E$17,3,FALSE))),"-") -> 0.25 | G176: I | H176: =IF(G176="poniżej min.",((VLOOKUP(E176,'Siatka płac'!$B$6:$D$17,3,FALSE)-C176)*(13-'Zestawienie stanowisk'!$H$1)),"-") -> -
A177: 1 | B177: Monter | C177: 2500 | D177: Pracownik 173 | E177: =IFERROR((VLOOKUP(B177,'Zestawienie stanowisk'!$B$5:$E$65,4,FALSE)),"-") -> 1 | F177: =IFERROR(((C177-(VLOOKUP(E177,'Siatka płac'!$B$6:$E$17,3,FALSE)))/(VLOOKUP(E177,'Siatka płac'!$B$6:$E$17,4,FALSE)-VLOOKUP(E177,'Siatka płac'!$B$6:$E$17,3,FALSE))),"-") -> 0.25 | G177: I | H177: =IF(G177="poniżej min.",((VLOOKUP(E177,'Siatka płac'!$B$6:$D$17,3,FALSE)-C177)*(13-'Zestawienie stanowisk'!$H$1)),"-") -> -
A178: 1 | B178: Monter | C178: 2500 | D178: Pracownik 174 | E178: =IFERROR((VLOOKUP(B178,'Zestawienie stanowisk'!$B$5:$E$65,4,FALSE)),"-") -> 1 | F178: =IFERROR(((C178-(VLOOKUP(E178,'Siatka płac'!$B$6:$E$17,3,FALSE)))/(VLOOKUP(E178,'Siatka płac'!$B$6:$E$17,4,FALSE)-VLOOKUP(E178,'Siatka płac'!$B$6:$E$17,3,FALSE))),"-") -> 0.25 | G178: I | H178: =IF(G178="poniżej min.",((VLOOKUP(E178,'Siatka płac'!$B$6:$D$17,3,FALSE)-C178)*(13-'Zestawienie stanowisk'!$H$1)),"-") -> -
A179: 1 | B179: Monter | C179: 2500 | D179: Pracownik 175 | E179: =IFERROR((VLOOKUP(B179,'Zestawienie stanowisk'!$B$5:$E$65,4,FALSE)),"-") -> 1 | F179: =IFERROR(((C179-(VLOOKUP(E179,'Siatka płac'!$B$6:$E$17,3,FALSE)))/(VLOOKUP(E179,'Siatka płac'!$B$6:$E$17,4,FALSE)-VLOOKUP(E179,'Siatka płac'!$B$6:$E$17,3,FALSE))),"-") -> 0.25 | G179: I | H179: =IF(G179="poniżej min.",((VLOOKUP(E179,'Siatka płac'!$B$6:$D$17,3,FALSE)-C179)*(13-'Zestawienie stanowisk'!$H$1)),"-") -> -
A180: 1 | B180: Monter | C180: 2500 | D180: Pracownik 176 | E180: =IFERROR((VLOOKUP(B180,'Zestawienie stanowisk'!$B$5:$E$65,4,FALSE)),"-") -> 1 | F180: =IFERROR(((C180-(VLOOKUP(E180,'Siatka płac'!$B$6:$E$17,3,FALSE)))/(VLOOKUP(E180,'Siatka płac'!$B$6:$E$17,4,FALSE)-VLOOKUP(E180,'Siatka płac'!$B$6:$E$17,3,FALSE))),"-") -> 0.25 | G180: I | H180: =IF(G180="poniżej min.",((VLOOKUP(E180,'Siatka płac'!$B$6:$D$17,3,FALSE)-C180)*(13-'Zestawienie stanowisk'!$H$1)),"-") -> -
A181: 1 | B181: Monter | C181: 2500 | D181: Pracownik 177 | E181: =IFERROR((VLOOKUP(B181,'Zestawienie stanowisk'!$B$5:$E$65,4,FALSE)),"-") -> 1 | F181: =IFERROR(((C181-(VLOOKUP(E181,'Siatka płac'!$B$6:$E$17,3,FALSE)))/(VLOOKUP(E181,'Siatka płac'!$B$6:$E$17,4,FALSE)-VLOOKUP(E181,'Siatka płac'!$B$6:$E$17,3,FALSE))),"-") -> 0.25 | G181: I | H181: =IF(G181="poniżej min.",((VLOOKUP(E181,'Siatka płac'!$B$6:$D$17,3,FALSE)-C181)*(13-'Zestawienie stanowisk'!$H$1)),"-") -> -
A182: 1 | B182: Monter | C182: 2500 | D182: Pracownik 178 | E182: =IFERROR((VLOOKUP(B182,'Zestawienie stanowisk'!$B$5:$E$65,4,FALSE)),"-") -> 1 | F182: =IFERROR(((C182-(VLOOKUP(E182,'Siatka płac'!$B$6:$E$17,3,FALSE)))/(VLOOKUP(E182,'Siatka płac'!$B$6:$E$17,4,FALSE)-VLOOKUP(E182,'Siatka płac'!$B$6:$E$17,3,FALSE))),"-") -> 0.25 | G182: I | H182: =IF(G182="poniżej min.",((VLOOKUP(E182,'Siatka płac'!$B$6:$D$17,3,FALSE)-C182)*(13-'Zestawienie stanowisk'!$H$1)),"-") -> -
A183: 1 | B183: Monter | C183: 2500 | D183: Pracownik 179 | E183: =IFERROR((VLOOKUP(B183,'Zestawienie stanowisk'!$B$5:$E$65,4,FALSE)),"-") -> 1 | F183: =IFERROR(((C183-(VLOOKUP(E183,'Siatka płac'!$B$6:$E$17,3,FALSE)))/(VLOOKUP(E183,'Siatka płac'!$B$6:$E$17,4,FALSE)-VLOOKUP(E183,'Siatka płac'!$B$6:$E$17,3,FALSE))),"-") -> 0.25 | G183: I | H183: =IF(G183="poniżej min.",((VLOOKUP(E183,'Siatka płac'!$B$6:$D$17,3,FALSE)-C183)*(13-'Zestawienie stanowisk'!$H$1)),"-") -> -
A184: 1 | B184: Monter | C184: 2500 | D184: Pracownik 180 | E184: =IFERROR((VLOOKUP(B184,'Zestawienie stanowisk'!$B$5:$E$65,4,FALSE)),"-") -> 1 | F184: =IFERROR(((C184-(VLOOKUP(E184,'Siatka płac'!$B$6:$E$17,3,FALSE)))/(VLOOKUP(E184,'Siatka płac'!$B$6:$E$17,4,FALSE)-VLOOKUP(E184,'Siatka płac'!$B$6:$E$17,3,FALSE))),"-") -> 0.25 | G184: I | H184: =IF(G184="poniżej min.",((VLOOKUP(E184,'Siatka płac'!$B$6:$D$17,3,FALSE)-C184)*(13-'Zestawienie stanowisk'!$H$1)),"-") -> -
A185: 1 | B185: Monter | C185: 2500 | D185: Pracownik 181 | E185: =IFERROR((VLOOKUP(B185,'Zestawienie stanowisk'!$B$5:$E$65,4,FALSE)),"-") -> 1 | F185: =IFERROR(((C185-(VLOOKUP(E185,'Siatka płac'!$B$6:$E$17,3,FALSE)))/(VLOOKUP(E185,'Siatka płac'!$B$6:$E$17,4,FALSE)-VLOOKUP(E185,'Siatka płac'!$B$6:$E$17,3,FALSE))),"-") -> 0.25 | G185: I | H185: =IF(G185="poniżej min.",((VLOOKUP(E185,'Siatka płac'!$B$6:$D$17,3,FALSE)-C185)*(13-'Zestawienie stanowisk'!$H$1)),"-") -> -
A186: 1 | B186: Monter | C186: 2500 | D186: Pracownik 182 | E186: =IFERROR((VLOOKUP(B186,'Zestawienie stanowisk'!$B$5:$E$65,4,FALSE)),"-") -> 1 | F186: =IFERROR(((C186-(VLOOKUP(E186,'Siatka płac'!$B$6:$E$17,3,FALSE)))/(VLOOKUP(E186,'Siatka płac'!$B$6:$E$17,4,FALSE)-VLOOKUP(E186,'Siatka płac'!$B$6:$E$17,3,FALSE))),"-") -> 0.25 | G186: I | H186: =IF(G186="poniżej min.",((VLOOKUP(E186,'Siatka płac'!$B$6:$D$17,3,FALSE)-C186)*(13-'Zestawienie stanowisk'!$H$1)),"-") -> -
A187: 1 | B187: Monter | C187: 2500 | D187: Pracownik 183 | E187: =IFERROR((VLOOKUP(B187,'Zestawienie stanowisk'!$B$5:$E$65,4,FALSE)),"-") -> 1 | F187: =IFERROR(((C187-(VLOOKUP(E187,'Siatka płac'!$B$6:$E$17,3,FALSE)))/(VLOOKUP(E187,'Siatka płac'!$B$6:$E$17,4,FALSE)-VLOOKUP(E187,'Siatka płac'!$B$6:$E$17,3,FALSE))),"-") -> 0.25 | G187: I | H187: =IF(G187="poniżej min.",((VLOOKUP(E187,'Siatka płac'!$B$6:$D$17,3,FALSE)-C187)*(13-'Zestawienie stanowisk'!$H$1)),"-") -> -
A188: 1 | B188: Monter | C188: 2500 | D188: Pracownik 184 | E188: =IFERROR((VLOOKUP(B188,'Zestawienie stanowisk'!$B$5:$E$65,4,FALSE)),"-") -> 1 | F188: =IFERROR(((C188-(VLOOKUP(E188,'Siatka płac'!$B$6:$E$17,3,FALSE)))/(VLOOKUP(E188,'Siatka płac'!$B$6:$E$17,4,FALSE)-VLOOKUP(E188,'Siatka płac'!$B$6:$E$17,3,FALSE))),"-") -> 0.25 | G188: I | H188: =IF(G188="poniżej min.",((VLOOKUP(E188,'Siatka płac'!$B$6:$D$17,3,FALSE)-C188)*(13-'Zestawienie stanowisk'!$H$1)),"-") -> -
A189: 1 | B189: Monter | C189: 2500 | D189: Pracownik 185 | E189: =IFERROR((VLOOKUP(B189,'Zestawienie stanowisk'!$B$5:$E$65,4,FALSE)),"-") -> 1 | F189: =IFERROR(((C189-(VLOOKUP(E189,'Siatka płac'!$B$6:$E$17,3,FALSE)))/(VLOOKUP(E189,'Siatka płac'!$B$6:$E$17,4,FALSE)-VLOOKUP(E189,'Siatka płac'!$B$6:$E$17,3,FALSE))),"-") -> 0.25 | G189: I | H189: =IF(G189="poniżej min.",((VLOOKUP(E189,'Siatka płac'!$B$6:$D$17,3,FALSE)-C189)*(13-'Zestawienie stanowisk'!$H$1)),"-") -> -
A190: 1 | B190: Monter | C190: 2500 | D190: Pracownik 186 | E190: =IFERROR((VLOOKUP(B190,'Zestawienie stanowisk'!$B$5:$E$65,4,FALSE)),"-") -> 1 | F190: =IFERROR(((C190-(VLOOKUP(E190,'Siatka płac'!$B$6:$E$17,3,FALSE)))/(VLOOKUP(E190,'Siatka płac'!$B$6:$E$17,4,FALSE)-VLOOKUP(E190,'Siatka płac'!$B$6:$E$17,3,FALSE))),"-") -> 0.25 | G190: I | H190: =IF(G190="poniżej min.",((VLOOKUP(E190,'Siatka płac'!$B$6:$D$17,3,FALSE)-C190)*(13-'Zestawienie stanowisk'!$H$1)),"-") -> -
A191: 1 | B191: Mechanik | C191: 3300 | D191: Pracownik 187 | E191: =IFERROR((VLOOKUP(B191,'Zestawienie stanowisk'!$B$5:$E$65,4,FALSE)),"-") -> 1 | F191: =IFERROR(((C191-(VLOOKUP(E191,'Siatka płac'!$B$6:$E$17,3,FALSE)))/(VLOOKUP(E191,'Siatka płac'!$B$6:$E$17,4,FALSE)-VLOOKUP(E191,'Siatka płac'!$B$6:$E$17,3,FALSE))),"-") -> 0.65 | G191: III | H191: =IF(G191="poniżej min.",((VLOOKUP(E191,'Siatka płac'!$B$6:$D$17,3,FALSE)-C191)*(13-'Zestawienie stanowisk'!$H$1)),"-") -> -
A192: 1 | B192: Mechanik | C192: 3400 | D192: Pracownik 188 | E192: =IFERROR((VLOOKUP(B192,'Zestawienie stanowisk'!$B$5:$E$65,4,FALSE)),"-") -> 1 | F192: =IFERROR(((C192-(VLOOKUP(E192,'Siatka płac'!$B$6:$E$17,3,FALSE)))/(VLOOKUP(E192,'Siatka płac'!$B$6:$E$17,4,FALSE)-VLOOKUP(E192,'Siatka płac'!$B$6:$E$17,3,FALSE))),"-") -> 0.7 | G192: III | H192: =IF(G192="poniżej min.",((VLOOKUP(E192,'Siatka płac'!$B$6:$D$17,3,FALSE)-C192)*(13-'Zestawienie stanowisk'!$H$1)),"-") -> -
A193: 1 | B193: Mechanik | C193: 3550 | D193: Pracownik 189 | E193: =IFERROR((VLOOKUP(B193,'Zestawienie stanowisk'!$B$5:$E$65,4,FALSE)),"-") -> 1 | F193: =IFERROR(((C193-(VLOOKUP(E193,'Siatka płac'!$B$6:$E$17,3,FALSE)))/(VLOOKUP(E193,'Siatka płac'!$B$6:$E$17,4,FALSE)-VLOOKUP(E193,'Siatka płac'!$B$6:$E$17,3,FALSE))),"-") -> 0.775 | G193: IV | H193: =IF(G193="poniżej min.",((VLOOKUP(E193,'Siatka płac'!$B$6:$D$17,3,FALSE)-C193)*(13-'Zestawienie stanowisk'!$H$1)),"-") -> -
A194: 1 | B194: Mechanik | C194: 3600 | D194: Pracownik 190 | E194: =IFERROR((VLOOKUP(B194,'Zestawienie stanowisk'!$B$5:$E$65,4,FALSE)),"-") -> 1 | F194: =IFERROR(((C194-(VLOOKUP(E194,'Siatka płac'!$B$6:$E$17,3,FALSE)))/(VLOOKUP(E194,'Siatka płac'!$B$6:$E$17,4,FALSE)-VLOOKUP(E194,'Siatka płac'!$B$6:$E$17,3,FALSE))),"-") -> 0.8 | G194: IV | H194: =IF(G194="poniżej min.",((VLOOKUP(E194,'Siatka płac'!$B$6:$D$17,3,FALSE)-C194)*(13-'Zestawienie stanowisk'!$H$1)),"-") -> -
A195: 1 | B195: Mechanik | C195: 3300 | D195: Pracownik 191 | E195: =IFERROR((VLOOKUP(B195,'Zestawienie stanowisk'!$B$5:$E$65,4,FALSE)),"-") -> 1 | F195: =IFERROR(((C195-(VLOOKUP(E195,'Siatka płac'!$B$6:$E$17,3,FALSE)))/(VLOOKUP(E195,'Siatka płac'!$B$6:$E$17,4,FALSE)-VLOOKUP(E195,'Siatka płac'!$B$6:$E$17,3,FALSE))),"-") -> 0.65 | G195: III | H195: =IF(G195="poniżej min.",((VLOOKUP(E195,'Siatka płac'!$B$6:$D$17,3,FALSE)-C195)*(13-'Zestawienie stanowisk'!$H$1)),"-") -> -
A196: 1 | B196: Mechanik | C196: 4000 | D196: Pracownik 192 | E196: =IFERROR((VLOOKUP(B196,'Zestawienie stanowisk'!$B$5:$E$65,4,FALSE)),"-") -> 1 | F196: =IFERROR(((C196-(VLOOKUP(E196,'Siatka płac'!$B$6:$E$17,3,FALSE)))/(VLOOKUP(E196,'Siatka płac'!$B$6:$E$17,4,FALSE)-VLOOKUP(E196,'Siatka płac'!$B$6:$E$17,3,FALSE))),"-") -> 1 | G196: IV | H196: =IF(G196="poniżej min.",((VLOOKUP(E196,'Siatka płac'!$B$6:$D$17,3,FALSE)-C196)*(13-'Zestawienie stanowisk'!$H$1)),"-") -> -
A197: =IF(ISBLANK(B197),0,1) -> 1 | B197: Mechanik | C197: 5000 | D197: Pracownik 193 | E197: =IFERROR((VLOOKUP(B197,'Zestawienie stanowisk'!$B$5:$E$65,4,FALSE)),"-") -> 1 | F197: =IFERROR(((C197-(VLOOKUP(E197,'Siatka płac'!$B$6:$E$17,3,FALSE)))/(VLOOKUP(E197,'Siatka płac'!$B$6:$E$17,4,FALSE)-VLOOKUP(E197,'Siatka płac'!$B$6:$E$17,3,FALSE))),"-") -> 1.5 | G197: =IFERROR((INDEX($N$5:$N$10,MATCH(F197,$M$5:$M$10,-1))),"-") -> powyżej maks. | H197: =IF(G197="poniżej min.",((VLOOKUP(E197,'Siatka płac'!$B$6:$D$17,3,FALSE)-C197)*(13-'Zestawienie stanowisk'!$H$1)),"-") -> -
A198: 1 | B198: Mechanik | C198: 4800 | D198: Pracownik 194 | E198: =IFERROR((VLOOKUP(B198,'Zestawienie stanowisk'!$B$5:$E$65,4,FALSE)),"-") -> 1 | F198: =IFERROR(((C198-(VLOOKUP(E198,'Siatka płac'!$B$6:$E$17,3,FALSE)))/(VLOOKUP(E198,'Siatka płac'!$B$6:$E$17,4,FALSE)-VLOOKUP(E198,'Siatka płac'!$B$6:$E$17,3,FALSE))),"-") -> 1.4 | G198: powyżej maks. | H198: =IF(G198="poniżej min.",((VLOOKUP(E198,'Siatka płac'!$B$6:$D$17,3,FALSE)-C198)*(13-'Zestawienie stanowisk'!$H$1)),"-") -> -
A199: 1 | B199: Mechanik | C199: 4600 | D199: Pracownik 195 | E199: =IFERROR((VLOOKUP(B199,'Zestawienie stanowisk'!$B$5:$E$65,4,FALSE)),"-") -> 1 | F199: =IFERROR(((C199-(VLOOKUP(E199,'Siatka płac'!$B$6:$E$17,3,FALSE)))/(VLOOKUP(E199,'Siatka płac'!$B$6:$E$17,4,FALSE)-VLOOKUP(E199,'Siatka płac'!$B$6:$E$17,3,FALSE))),"-") -> 1.3 | G199: powyżej maks. | H199: =IF(G199="poniżej min.",((VLOOKUP(E199,'Siatka płac'!$B$6:$D$17,3,FALSE)-C199)*(13-'Zestawienie stanowisk'!$H$1)),"-") -> -
A200: 1 | B200: Mechanik | C200: 4800 | D200: Pracownik 196 | E200: =IFERROR((VLOOKUP(B200,'Zestawienie stanowisk'!$B$5:$E$65,4,FALSE)),"-") -> 1 | F200: =IFERROR(((C200-(VLOOKUP(E200,'Siatka płac'!$B$6:$E$17,3,FALSE)))/(VLOOKUP(E200,'Siatka płac'!$B$6:$E$17,4,FALSE)-VLOOKUP(E200,'Siatka płac'!$B$6:$E$17,3,FALSE))),"-") -> 1.4 | G200: powyżej maks. | H200: =IF(G200="poniżej min.",((VLOOKUP(E200,'Siatka płac'!$B$6:$D$17,3,FALSE)-C200)*(13-'Zestawienie stanowisk'!$H$1)),"-") -> -
A201: 1 | B201: Mechanik | C201: 3600 | D201: Pracownik 197 | E201: =IFERROR((VLOOKUP(B201,'Zestawienie stanowisk'!$B$5:$E$65,4,FALSE)),"-") -> 1 | F201: =IFERROR(((C201-(VLOOKUP(E201,'Siatka płac'!$B$6:$E$17,3,FALSE)))/(VLOOKUP(E201,'Siatka płac'!$B$6:$E$17,4,FALSE)-VLOOKUP(E201,'Siatka płac'!$B$6:$E$17,3,FALSE))),"-") -> 0.8 | G201: IV | H201: =IF(G201="poniżej min.",((VLOOKUP(E201,'Siatka płac'!$B$6:$D$17,3,FALSE)-C201)*(13-'Zestawienie stanowisk'!$H$1)),"-") -> -
... 399 more rows

Sheet Lista objaśnienia
B1: Lista pracowników | G1: Liczba pracowników: | H1: =SUM(A5:A7) -> 3
B2: Lista pracowników | C2: Menu | D2: Przycisk uruchamiający makro, które zasili nazwami stanowisk zakładkę "Zestawienie stanowisk" (uruchamiane raz)
A4: po | B4: Stanowisko | C4: Wynagrodzenie zasadnicze brutto | D4: Nazwisko i imię pracownika | E4: Kategoria zaszeregowania | F4: wartość compa ratio (miejsce w siatce płac) | G4: Kwartyl w siatce płac | H4: koszt miesięczny "podciągnięcia" do minimum kategorii | M4: =MAX('Siatka płac'!B6:B17) -> 7
A5: 1 | B5: Monter | C5: 1500 | D5: Pracownik 1 | E5: 1 | F5: -0.25 | G5: poniżej min. | H5: 500 | M5: 10 | N5: powyżej maks.
A6: 1 | B6: Operator | C6: 2300 | D6: Pracownik 2 | E6: 1 | F6: 0.15 | G6: I | H6: - | M6: 1 | N6: IV
A7: 1 | B7: Elektryk | C7: 4500 | D7: Pracownik 5 | E7: 1 | F7: 1.25 | G7: powyżej maks. | H7: - | M7: 0.25 | N7: I
B11: Pola edytowalne na dane "wejściowe" | H11: Pole wyliczne automatycznie jeśli wynagrodzenie pracownika jest poniżej minimum kategorii zaszeregowania
D14: miejce wynagrodzenia pracownika i kategorii zaszeregowania 50% oznacza że wynagrodzenie jest jest w połowie kategorii Wzór: (wynagrodzenie -minimum kategorii) / (maksimum kategorii - minimum kategorii)

Sheet Zestawienie stanowisk
B1: Zestawienie stanowisk | F1: Od którego miesiąca wprowadza się siatkę: | H1: 12
F2: Koszt wdrożenia siatki płac do końca roku bieżącego: | H2: =SUM('Lista pracowników'!$H$5:$H$650) -> 700
B3: Objaśnienia | C3: Siatka płac | D3: Lista pracowników | E3: Menu | I3: Liczebności pracowników w kwartylach | P3: % liczeności pracowników w kwartylach
B4: tekst | C4: =MAX('Siatka płac'!B6:B17) -> 7 | I4: poniżej min. | J4: I | K4: II | L4: III | M4: IV | N4: powyżej maks. | P4: poniżej min. | Q4: I | R4: II | S4: III | T4: IV | U4: powyżej maks.
A5: Lp | B5: Stanowisko | C5: Pion | D5: Poziom stanowiska | E5: Kategoria zaszeregowania | F5: Minimum kategorii w siatce płac | G5: Maksimum kategorii w siatce płac | H5: Liczba pracowników na stanowisku | I5: =SUM(I6:I261) -> 2 | J5: 89 | K5: 81 | L5: 104 | M5: 65 | N5: 83 | P5: =I5/SUM($I5:$N5) -> 0.004716981132 | Q5: =J5/SUM($I5:$N5) -> 0.2099056604 | R5: 0.1910377358 | S5: 0.2452830189 | T5: 0.1533018868 | U5: 0.195754717
A6: 1 | B6: Monter | E6: 1 | F6: =IF(E6>'Lista pracowników'!$M$4,"-",VLOOKUP($E6,'Siatka płac'!$B$6:$E$17,3,FALSE)) -> 2000 | G6: =IF(E6>'Lista pracowników'!$M$4,"-",VLOOKUP($E6,'Siatka płac'!$B$6:$E$17,4,FALSE)) -> 4000 | H6: =SUMIFS('Lista pracowników'!$A$5:$A$8578,'Lista pracowników'!$B$5:$B$8578,$B6) -> 158 | I6: =SUMIFS('Lista pracowników'!$A$5:$A$3576,'Lista pracowników'!$G$5:$G$3576,I$4,'Lista pracowników'!$B$5:$B$3576,$B6) -> 1 | J6: =SUMIFS('Lista pracowników'!$A$5:$A$3576,'Lista pracowników'!$G$5:$G$3576,J$4,'Lista pracowników'!$B$5:$B$3576,$B6) -> 59 | K6: =SUMIFS('Lista pracowników'!$A$5:$A$3576,'Lista pracowników'!$G$5:$G$3576,K$4,'Lista pracowników'!$B$5:$B$3576,$B6) -> 31 | L6: =SUMIFS('Lista pracowników'!$A$5:$A$3576,'Lista pracowników'!$G$5:$G$3576,L$4,'Lista pracowników'!$B$5:$B$3576,$B6) -> 67 | M6: =SUMIFS('Lista pracowników'!$A$5:$A$3576,'Lista pracowników'!$G$5:$G$3576,M$4,'Lista pracowników'!$B$5:$B$3576,$B6) -> 0 | N6: =SUMIFS('Lista pracowników'!$A$5:$A$3576,'Lista pracowników'!$G$5:$G$3576,N$4,'Lista pracowników'!$B$5:$B$3576,$B6) -> 0 | P6: =IFERROR(((SUMIFS('Lista pracowników'!$A$5:$A$3576,'Lista pracowników'!$G$5:$G$3576,P$4,'Lista pracowników'!$B$5:$B$3576,$B6))/SUM($I6:$N6)),"-") -> 0.006329113924 | Q6: =IFERROR(((SUMIFS('Lista pracowników'!$A$5:$A$3576,'Lista pracowników'!$G$5:$G$3576,Q$4,'Lista pracowników'!$B$5:$B$3576,$B6))/SUM($I6:$N6)),"-") -> 0.3734177215 | R6: =IFERROR(((SUMIFS('Lista pracowników'!$A$5:$A$3576,'Lista pracowników'!$G$5:$G$3576,R$4,'Lista pracowników'!$B$5:$B$3576,$B6))/(SUM($I6:$N6))),"-") -> 0.1962025316 | S6: =IFERROR(((SUMIFS('Lista pracowników'!$A$5:$A$3576,'Lista pracowników'!$G$5:$G$3576,S$4,'Lista pracowników'!$B$5:$B$3576,$B6))/SUM($I6:$N6)),"-") -> 0.4240506329 | T6: =IFERROR(((SUMIFS('Lista pracowników'!$A$5:$A$3576,'Lista pracowników'!$G$5:$G$3576,T$4,'Lista pracowników'!$B$5:$B$3576,$B6))/SUM($I6:$N6)),"-") -> 0 | U6: =IFERROR(((SUMIFS('Lista pracowników'!$A$5:$A$3576,'Lista pracowników'!$G$5:$G$3576,U$4,'Lista pracowników'!$B$5:$B$3576,$B6))/SUM($I6:$N6)),"-") -> 0
A7: 2 | B7: Operator | E7: 1 | F7: =IF(E7>'Lista pracowników'!$M$4,"-",VLOOKUP($E7,'Siatka płac'!$B$6:$E$17,3,FALSE)) -> 2000 | G7: =IF(E7>'Lista pracowników'!$M$4,"-",VLOOKUP($E7,'Siatka płac'!$B$6:$E$17,4,FALSE)) -> 4000 | H7: =SUMIFS('Lista pracowników'!$A$5:$A$8386,'Lista pracowników'!$B$5:$B$8386,$B7) -> 50 | I7: =SUMIFS('Lista pracowników'!$A$5:$A$3576,'Lista pracowników'!$G$5:$G$3576,I$4,'Lista pracowników'!$B$5:$B$3576,$B7) -> 0 | J7: =SUMIFS('Lista pracowników'!$A$5:$A$3576,'Lista pracowników'!$G$5:$G$3576,J$4,'Lista pracowników'!$B$5:$B$3576,$B7) -> 30 | K7: =SUMIFS('Lista pracowników'!$A$5:$A$3576,'Lista pracowników'!$G$5:$G$3576,K$4,'Lista pracowników'!$B$5:$B$3576,$B7) -> 13 | L7: =SUMIFS('Lista pracowników'!$A$5:$A$3576,'Lista pracowników'!$G$5:$G$3576,L$4,'Lista pracowników'!$B$5:$B$3576,$B7) -> 6 | M7: =SUMIFS('Lista pracowników'!$A$5:$A$3576,'Lista pracowników'!$G$5:$G$3576,M$4,'Lista pracowników'!$B$5:$B$3576,$B7) -> 1 | N7: =SUMIFS('Lista pracowników'!$A$5:$A$3576,'Lista pracowników'!$G$5:$G$3576,N$4,'Lista pracowników'!$B$5:$B$3576,$B7) -> 0 | P7: =IFERROR(((SUMIFS('Lista pracowników'!$A$5:$A$3576,'Lista pracowników'!$G$5:$G$3576,P$4,'Lista pracowników'!$B$5:$B$3576,$B7))/SUM($I7:$N7)),"-") -> 0 | Q7: =IFERROR(((SUMIFS('Lista pracowników'!$A$5:$A$3576,'Lista pracowników'!$G$5:$G$3576,Q$4,'Lista pracowników'!$B$5:$B$3576,$B7))/SUM($I7:$N7)),"-") -> 0.6 | R7: =IFERROR(((SUMIFS('Lista pracowników'!$A$5:$A$3576,'Lista pracowników'!$G$5:$G$3576,R$4,'Lista pracowników'!$B$5:$B$3576,$B7))/(SUM($I7:$N7))),"-") -> 0.26 | S7: =IFERROR(((SUMIFS('Lista pracowników'!$A$5:$A$3576,'Lista pracowników'!$G$5:$G$3576,S$4,'Lista pracowników'!$B$5:$B$3576,$B7))/SUM($I7:$N7)),"-") -> 0.12 | T7: =IFERROR(((SUMIFS('Lista pracowników'!$A$5:$A$3576,'Lista pracowników'!$G$5:$G$3576,T$4,'Lista pracowników'!$B$5:$B$3576,$B7))/SUM($I7:$N7)),"-") -> 0.02 | U7: =IFERROR(((SUMIFS('Lista pracowników'!$A$5:$A$3576,'Lista pracowników'!$G$5:$G$3576,U$4,'Lista pracowników'!$B$5:$B$3576,$B7))/SUM($I7:$N7)),"-") -> 0
A8: 3 | B8: Spawacz | E8: 1 | F8: =IF(E8>'Lista pracowników'!$M$4,"-",VLOOKUP($E8,'Siatka płac'!$B$6:$E$17,3,FALSE)) -> 2000 | G8: =IF(E8>'Lista pracowników'!$M$4,"-",VLOOKUP($E8,'Siatka płac'!$B$6:$E$17,4,FALSE)) -> 4000 | H8: =SUMIFS('Lista pracowników'!$A$5:$A$8386,'Lista pracowników'!$B$5:$B$8386,$B8) -> 41 | I8: =SUMIFS('Lista pracowników'!$A$5:$A$3576,'Lista pracowników'!$G$5:$G$3576,I$4,'Lista pracowników'!$B$5:$B$3576,$B8) -> 0 | J8: =SUMIFS('Lista pracowników'!$A$5:$A$3576,'Lista pracowników'!$G$5:$G$3576,J$4,'Lista pracowników'!$B$5:$B$3576,$B8) -> 0 | K8: =SUMIFS('Lista pracowników'!$A$5:$A$3576,'Lista pracowników'!$G$5:$G$3576,K$4,'Lista pracowników'!$B$5:$B$3576,$B8) -> 0 | L8: =SUMIFS('Lista pracowników'!$A$5:$A$3576,'Lista pracowników'!$G$5:$G$3576,L$4,'Lista pracowników'!$B$5:$B$3576,$B8) -> 11 | M8: =SUMIFS('Lista pracowników'!$A$5:$A$3576,'Lista pracowników'!$G$5:$G$3576,M$4,'Lista pracowników'!$B$5:$B$3576,$B8) -> 12 | N8: =SUMIFS('Lista pracowników'!$A$5:$A$3576,'Lista pracowników'!$G$5:$G$3576,N$4,'Lista pracowników'!$B$5:$B$3576,$B8) -> 18 | P8: =IFERROR(((SUMIFS('Lista pracowników'!$A$5:$A$3576,'Lista pracowników'!$G$5:$G$3576,P$4,'Lista pracowników'!$B$5:$B$3576,$B8))/SUM($I8:$N8)),"-") -> 0 | Q8: =IFERROR(((SUMIFS('Lista pracowników'!$A$5:$A$3576,'Lista pracowników'!$G$5:$G$3576,Q$4,'Lista pracowników'!$B$5:$B$3576,$B8))/SUM($I8:$N8)),"-") -> 0 | R8: =IFERROR(((SUMIFS('Lista pracowników'!$A$5:$A$3576,'Lista pracowników'!$G$5:$G$3576,R$4,'Lista pracowników'!$B$5:$B$3576,$B8))/(SUM($I8:$N8))),"-") -> 0 | S8: =IFERROR(((SUMIFS('Lista pracowników'!$A$5:$A$3576,'Lista pracowników'!$G$5:$G$3576,S$4,'Lista pracowników'!$B$5:$B$3576,$B8))/SUM($I8:$N8)),"-") -> 0.2682926829 | T8: =IFERROR(((SUMIFS('Lista pracowników'!$A$5:$A$3576,'Lista pracowników'!$G$5:$G$3576,T$4,'Lista pracowników'!$B$5:$B$3576,$B8))/SUM($I8:$N8)),"-") -> 0.2926829268 | U8: =IFERROR(((SUMIFS('Lista pracowników'!$A$5:$A$3576,'Lista pracowników'!$G$5:$G$3576,U$4,'Lista pracowników'!$B$5:$B$3576,$B8))/SUM($I8:$N8)),"-") -> 0.4390243902
A9: 4 | B9: Mechanik | E9: 1 | F9: =IF(E9>'Lista pracowników'!$M$4,"-",VLOOKUP($E9,'Siatka płac'!$B$6:$E$17,3,FALSE)) -> 2000 | G9: =IF(E9>'Lista pracowników'!$M$4,"-",VLOOKUP($E9,'Siatka płac'!$B$6:$E$17,4,FALSE)) -> 4000 | H9: =SUMIFS('Lista pracowników'!$A$5:$A$8386,'Lista pracowników'!$B$5:$B$8386,$B9) -> 18 | I9: =SUMIFS('Lista pracowników'!$A$5:$A$3576,'Lista pracowników'!$G$5:$G$3576,I$4,'Lista pracowników'!$B$5:$B$3576,$B9) -> 1 | J9: =SUMIFS('Lista pracowników'!$A$5:$A$3576,'Lista pracowników'!$G$5:$G$3576,J$4,'Lista pracowników'!$B$5:$B$3576,$B9) -> 0 | K9: =SUMIFS('Lista pracowników'!$A$5:$A$3576,'Lista pracowników'!$G$5:$G$3576,K$4,'Lista pracowników'!$B$5:$B$3576,$B9) -> 0 | L9: =SUMIFS('Lista pracowników'!$A$5:$A$3576,'Lista pracowników'!$G$5:$G$3576,L$4,'Lista pracowników'!$B$5:$B$3576,$B9) -> 4 | M9: =SUMIFS('Lista pracowników'!$A$5:$A$3576,'Lista pracowników'!$G$5:$G$3576,M$4,'Lista pracowników'!$B$5:$B$3576,$B9) -> 9 | N9: =SUMIFS('Lista pracowników'!$A$5:$A$3576,'Lista pracowników'!$G$5:$G$3576,N$4,'Lista pracowników'!$B$5:$B$3576,$B9) -> 4 | P9: =IFERROR(((SUMIFS('Lista pracowników'!$A$5:$A$3576,'Lista pracowników'!$G$5:$G$3576,P$4,'Lista pracowników'!$B$5:$B$3576,$B9))/SUM($I9:$N9)),"-") -> 0.05555555556 | Q9: =IFERROR(((SUMIFS('Lista pracowników'!$A$5:$A$3576,'Lista pracowników'!$G$5:$G$3576,Q$4,'Lista pracowników'!$B$5:$B$3576,$B9))/SUM($I9:$N9)),"-") -> 0 | R9: =IFERROR(((SUMIFS('Lista pracowników'!$A$5:$A$3576,'Lista pracowników'!$G$5:$G$3576,R$4,'Lista pracowników'!$B$5:$B$3576,$B9))/(SUM($I9:$N9))),"-") -> 0 | S9: =IFERROR(((SUMIFS('Lista pracowników'!$A$5:$A$3576,'Lista pracowników'!$G$5:$G$3576,S$4,'Lista pracowników'!$B$5:$B$3576,$B9))/SUM($I9:$N9)),"-") -> 0.2222222222 | T9: =IFERROR(((SUMIFS('Lista pracowników'!$A$5:$A$3576,'Lista pracowników'!$G$5:$G$3576,T$4,'Lista pracowników'!$B$5:$B$3576,$B9))/SUM($I9:$N9)),"-") -> 0.5 | U9: =IFERROR(((SUMIFS('Lista pracowników'!$A$5:$A$3576,'Lista pracowników'!$G$5:$G$3576,U$4,'Lista pracowników'!$B$5:$B$3576,$B9))/SUM($I9:$N9)),"-") -> 0.2222222222
A10: 5 | B10: Elektryk | E10: 1 | F10: =IF(E10>'Lista pracowników'!$M$4,"-",VLOOKUP($E10,'Siatka płac'!$B$6:$E$17,3,FALSE)) -> 2000 | G10: =IF(E10>'Lista pracowników'!$M$4,"-",VLOOKUP($E10,'Siatka płac'!$B$6:$E$17,4,FALSE)) -> 4000 | H10: =SUMIFS('Lista pracowników'!$A$5:$A$8386,'Lista pracowników'!$B$5:$B$8386,$B10) -> 7 | I10: =SUMIFS('Lista pracowników'!$A$5:$A$3576,'Lista pracowników'!$G$5:$G$3576,I$4,'Lista pracowników'!$B$5:$B$3576,$B10) -> 0 | J10: =SUMIFS('Lista pracowników'!$A$5:$A$3576,'Lista pracowników'!$G$5:$G$3576,J$4,'Lista pracowników'!$B$5:$B$3576,$B10) -> 0 | K10: =SUMIFS('Lista pracowników'!$A$5:$A$3576,'Lista pracowników'!$G$5:$G$3576,K$4,'Lista pracowników'!$B$5:$B$3576,$B10) -> 0 | L10: =SUMIFS('Lista pracowników'!$A$5:$A$3576,'Lista pracowników'!$G$5:$G$3576,L$4,'Lista pracowników'!$B$5:$B$3576,$B10) -> 1 | M10: =SUMIFS('Lista pracowników'!$A$5:$A$3576,'Lista pracowników'!$G$5:$G$3576,M$4,'Lista pracowników'!$B$5:$B$3576,$B10) -> 2 | N10: =SUMIFS('Lista pracowników'!$A$5:$A$3576,'Lista pracowników'!$G$5:$G$3576,N$4,'Lista pracowników'!$B$5:$B$3576,$B10) -> 4 | P10: =IFERROR(((SUMIFS('Lista pracowników'!$A$5:$A$3576,'Lista pracowników'!$G$5:$G$3576,P$4,'Lista pracowników'!$B$5:$B$3576,$B10))/SUM($I10:$N10)),"-") -> 0 | Q10: =IFERROR(((SUMIFS('Lista pracowników'!$A$5:$A$3576,'Lista pracowników'!$G$5:$G$3576,Q$4,'Lista pracowników'!$B$5:$B$3576,$B10))/SUM($I10:$N10)),"-") -> 0 | R10: =IFERROR(((SUMIFS('Lista pracowników'!$A$5:$A$3576,'Lista pracowników'!$G$5:$G$3576,R$4,'Lista pracowników'!$B$5:$B$3576,$B10))/(SUM($I10:$N10))),"-") -> 0 | S10: =IFERROR(((SUMIFS('Lista pracowników'!$A$5:$A$3576,'Lista pracowników'!$G$5:$G$3576,S$4,'Lista pracowników'!$B$5:$B$3576,$B10))/SUM($I10:$N10)),"-") -> 0.1428571429 | T10: =IFERROR(((SUMIFS('Lista pracowników'!$A$5:$A$3576,'Lista pracowników'!$G$5:$G$3576,T$4,'Lista pracowników'!$B$5:$B$3576,$B10))/SUM($I10:$N10)),"-") -> 0.2857142857 | U10: =IFERROR(((SUMIFS('Lista pracowników'!$A$5:$A$3576,'Lista pracowników'!$G$5:$G$3576,U$4,'Lista pracowników'!$B$5:$B$3576,$B10))/SUM($I10:$N10)),"-") -> 0.5714285714
A11: 6 | B11: Kierowca | E11: 1 | F11: =IF(E11>'Lista pracowników'!$M$4,"-",VLOOKUP($E11,'Siatka płac'!$B$6:$E$17,3,FALSE)) -> 2000 | G11: =IF(E11>'Lista pracowników'!$M$4,"-",VLOOKUP($E11,'Siatka płac'!$B$6:$E$17,4,FALSE)) -> 4000 | H11: =SUMIFS('Lista pracowników'!$A$5:$A$8386,'Lista pracowników'!$B$5:$B$8386,$B11) -> 17 | I11: =SUMIFS('Lista pracowników'!$A$5:$A$3576,'Lista pracowników'!$G$5:$G$3576,I$4,'Lista pracowników'!$B$5:$B$3576,$B11) -> 0 | J11: =SUMIFS('Lista pracowników'!$A$5:$A$3576,'Lista pracowników'!$G$5:$G$3576,J$4,'Lista pracowników'!$B$5:$B$3576,$B11) -> 0 | K11: =SUMIFS('Lista pracowników'!$A$5:$A$3576,'Lista pracowników'!$G$5:$G$3576,K$4,'Lista pracowników'!$B$5:$B$3576,$B11) -> 1 | L11: =SUMIFS('Lista pracowników'!$A$5:$A$3576,'Lista pracowników'!$G$5:$G$3576,L$4,'Lista pracowników'!$B$5:$B$3576,$B11) -> 4 | M11: =SUMIFS('Lista pracowników'!$A$5:$A$3576,'Lista pracowników'!$G$5:$G$3576,M$4,'Lista pracowników'!$B$5:$B$3576,$B11) -> 8 | N11: =SUMIFS('Lista pracowników'!$A$5:$A$3576,'Lista pracowników'!$G$5:$G$3576,N$4,'Lista pracowników'!$B$5:$B$3576,$B11) -> 4 | P11: =IFERROR(((SUMIFS('Lista pracowników'!$A$5:$A$3576,'Lista pracowników'!$G$5:$G$3576,P$4,'Lista pracowników'!$B$5:$B$3576,$B11))/SUM($I11:$N11)),"-") -> 0 | Q11: =IFERROR(((SUMIFS('Lista pracowników'!$A$5:$A$3576,'Lista pracowników'!$G$5:$G$3576,Q$4,'Lista pracowników'!$B$5:$B$3576,$B11))/SUM($I11:$N11)),"-") -> 0 | R11: =IFERROR(((SUMIFS('Lista pracowników'!$A$5:$A$3576,'Lista pracowników'!$G$5:$G$3576,R$4,'Lista pracowników'!$B$5:$B$3576,$B11))/(SUM($I11:$N11))),"-") -> 0.05882352941 | S11: =IFERROR(((SUMIFS('Lista pracowników'!$A$5:$A$3576,'Lista pracowników'!$G$5:$G$3576,S$4,'Lista pracowników'!$B$5:$B$3576,$B11))/SUM($I11:$N11)),"-") -> 0.2352941176 | T11: =IFERROR(((SUMIFS('Lista pracowników'!$A$5:$A$3576,'Lista pracowników'!$G$5:$G$3576,T$4,'Lista pracowników'!$B$5:$B$3576,$B11))/SUM($I11:$N11)),"-") -> 0.4705882353 | U11: =IFERROR(((SUMIFS('Lista pracowników'!$A$5:$A$3576,'Lista pracowników'!$G$5:$G$3576,U$4,'Lista pracowników'!$B$5:$B$3576,$B11))/SUM($I11:$N11)),"-") -> 0.2352941176
A12: 7 | B12: Automatyk | E12: 1 | F12: =IF(E12>'Lista pracowników'!$M$4,"-",VLOOKUP($E12,'Siatka płac'!$B$6:$E$17,3,FALSE)) -> 2000 | G12: =IF(E12>'Lista pracowników'!$M$4,"-",VLOOKUP($E12,'Siatka płac'!$B$6:$E$17,4,FALSE)) -> 4000 | H12: =SUMIFS('Lista pracowników'!$A$5:$A$8386,'Lista pracowników'!$B$5:$B$8386,$B12) -> 11 | I12: =SUMIFS('Lista pracowników'!$A$5:$A$3576,'Lista pracowników'!$G$5:$G$3576,I$4,'Lista pracowników'!$B$5:$B$3576,$B12) -> 0 | J12: =SUMIFS('Lista pracowników'!$A$5:$A$3576,'Lista pracowników'!$G$5:$G$3576,J$4,'Lista pracowników'!$B$5:$B$3576,$B12) -> 0 | K12: =SUMIFS('Lista pracowników'!$A$5:$A$3576,'Lista pracowników'!$G$5:$G$3576,K$4,'Lista pracowników'!$B$5:$B$3576,$B12) -> 0 | L12: =SUMIFS('Lista pracowników'!$A$5:$A$3576,'Lista pracowników'!$G$5:$G$3576,L$4,'Lista pracowników'!$B$5:$B$3576,$B12) -> 0 | M12: =SUMIFS('Lista pracowników'!$A$5:$A$3576,'Lista pracowników'!$G$5:$G$3576,M$4,'Lista pracowników'!$B$5:$B$3576,$B12) -> 0 | N12: =SUMIFS('Lista pracowników'!$A$5:$A$3576,'Lista pracowników'!$G$5:$G$3576,N$4,'Lista pracowników'!$B$5:$B$3576,$B12) -> 11 | P12: =IFERROR(((SUMIFS('Lista pracowników'!$A$5:$A$3576,'Lista pracowników'!$G$5:$G$3576,P$4,'Lista pracowników'!$B$5:$B$3576,$B12))/SUM($I12:$N12)),"-") -> 0 | Q12: =IFERROR(((SUMIFS('Lista pracowników'!$A$5:$A$3576,'Lista pracowników'!$G$5:$G$3576,Q$4,'Lista pracowników'!$B$5:$B$3576,$B12))/SUM($I12:$N12)),"-") -> 0 | R12: =IFERROR(((SUMIFS('Lista pracowników'!$A$5:$A$3576,'Lista pracowników'!$G$5:$G$3576,R$4,'Lista pracowników'!$B$5:$B$3576,$B12))/(SUM($I12:$N12))),"-") -> 0 | S12: =IFERROR(((SUMIFS('Lista pracowników'!$A$5:$A$3576,'Lista pracowników'!$G$5:$G$3576,S$4,'Lista pracowników'!$B$5:$B$3576,$B12))/SUM($I12:$N12)),"-") -> 0 | T12: =IFERROR(((SUMIFS('Lista pracowników'!$A$5:$A$3576,'Lista pracowników'!$G$5:$G$3576,T$4,'Lista pracowników'!$B$5:$B$3576,$B12))/SUM($I12:$N12)),"-") -> 0 | U12: =IFERROR(((SUMIFS('Lista pracowników'!$A$5:$A$3576,'Lista pracowników'!$G$5:$G$3576,U$4,'Lista pracowników'!$B$5:$B$3576,$B12))/SUM($I12:$N12)),"-") -> 1
A13: 8 | B13: Magazynier | E13: 1 | F13: =IF(E13>'Lista pracowników'!$M$4,"-",VLOOKUP($E13,'Siatka płac'!$B$6:$E$17,3,FALSE)) -> 2000 | G13: =IF(E13>'Lista pracowników'!$M$4,"-",VLOOKUP($E13,'Siatka płac'!$B$6:$E$17,4,FALSE)) -> 4000 | H13: =SUMIFS('Lista pracowników'!$A$5:$A$8386,'Lista pracowników'!$B$5:$B$8386,$B13) -> 78 | I13: =SUMIFS('Lista pracowników'!$A$5:$A$3576,'Lista pracowników'!$G$5:$G$3576,I$4,'Lista pracowników'!$B$5:$B$3576,$B13) -> 0 | J13: =SUMIFS('Lista pracowników'!$A$5:$A$3576,'Lista pracowników'!$G$5:$G$3576,J$4,'Lista pracowników'!$B$5:$B$3576,$B13) -> 0 | K13: =SUMIFS('Lista pracowników'!$A$5:$A$3576,'Lista pracowników'!$G$5:$G$3576,K$4,'Lista pracowników'!$B$5:$B$3576,$B13) -> 36 | L13: =SUMIFS('Lista pracowników'!$A$5:$A$3576,'Lista pracowników'!$G$5:$G$3576,L$4,'Lista pracowników'!$B$5:$B$3576,$B13) -> 11 | M13: =SUMIFS('Lista pracowników'!$A$5:$A$3576,'Lista pracowników'!$G$5:$G$3576,M$4,'Lista pracowników'!$B$5:$B$3576,$B13) -> 31 | N13: =SUMIFS('Lista pracowników'!$A$5:$A$3576,'Lista pracowników'!$G$5:$G$3576,N$4,'Lista pracowników'!$B$5:$B$3576,$B13) -> 0 | P13: =IFERROR(((SUMIFS('Lista pracowników'!$A$5:$A$3576,'Lista pracowników'!$G$5:$G$3576,P$4,'Lista pracowników'!$B$5:$B$3576,$B13))/SUM($I13:$N13)),"-") -> 0 | Q13: =IFERROR(((SUMIFS('Lista pracowników'!$A$5:$A$3576,'Lista pracowników'!$G$5:$G$3576,Q$4,'Lista pracowników'!$B$5:$B$3576,$B13))/SUM($I13:$N13)),"-") -> 0 | R13: =IFERROR(((SUMIFS('Lista pracowników'!$A$5:$A$3576,'Lista pracowników'!$G$5:$G$3576,R$4,'Lista pracowników'!$B$5:$B$3576,$B13))/(SUM($I13:$N13))),"-") -> 0.4615384615 | S13: =IFERROR(((SUMIFS('Lista pracowników'!$A$5:$A$3576,'Lista pracowników'!$G$5:$G$3576,S$4,'Lista pracowników'!$B$5:$B$3576,$B13))/SUM($I13:$N13)),"-") -> 0.141025641 | T13: =IFERROR(((SUMIFS('Lista pracowników'!$A$5:$A$3576,'Lista pracowników'!$G$5:$G$3576,T$4,'Lista pracowników'!$B$5:$B$3576,$B13))/SUM($I13:$N13)),"-") -> 0.3974358974 | U13: =IFERROR(((SUMIFS('Lista pracowników'!$A$5:$A$3576,'Lista pracowników'!$G$5:$G$3576,U$4,'Lista pracowników'!$B$5:$B$3576,$B13))/SUM($I13:$N13)),"-") -> 0
A14: 9 | B14: Inżynier procesu | E14: 1 | F14: =IF(E14>'Lista pracowników'!$M$4,"-",VLOOKUP($E14,'Siatka płac'!$B$6:$E$17,3,FALSE)) -> 2000 | G14: =IF(E14>'Lista pracowników'!$M$4,"-",VLOOKUP($E14,'Siatka płac'!$B$6:$E$17,4,FALSE)) -> 4000 | H14: =SUMIFS('Lista pracowników'!$A$5:$A$8386,'Lista pracowników'!$B$5:$B$8386,$B14) -> 10 | I14: =SUMIFS('Lista pracowników'!$A$5:$A$3576,'Lista pracowników'!$G$5:$G$3576,I$4,'Lista pracowników'!$B$5:$B$3576,$B14) -> 0 | J14: =SUMIFS('Lista pracowników'!$A$5:$A$3576,'Lista pracowników'!$G$5:$G$3576,J$4,'Lista pracowników'!$B$5:$B$3576,$B14) -> 0 | K14: =SUMIFS('Lista pracowników'!$A$5:$A$3576,'Lista pracowników'!$G$5:$G$3576,K$4,'Lista pracowników'!$B$5:$B$3576,$B14) -> 0 | L14: =SUMIFS('Lista pracowników'!$A$5:$A$3576,'Lista pracowników'!$G$5:$G$3576,L$4,'Lista pracowników'!$B$5:$B$3576,$B14) -> 0 | M14: =SUMIFS('Lista pracowników'!$A$5:$A$3576,'Lista pracowników'!$G$5:$G$3576,M$4,'Lista pracowników'!$B$5:$B$3576,$B14) -> 0 | N14: =SUMIFS('Lista pracowników'!$A$5:$A$3576,'Lista pracowników'!$G$5:$G$3576,N$4,'Lista pracowników'!$B$5:$B$3576,$B14) -> 10 | P14: =IFERROR(((SUMIFS('Lista pracowników'!$A$5:$A$3576,'Lista pracowników'!$G$5:$G$3576,P$4,'Lista pracowników'!$B$5:$B$3576,$B14))/SUM($I14:$N14)),"-") -> 0 | Q14: =IFERROR(((SUMIFS('Lista pracowników'!$A$5:$A$3576,'Lista pracowników'!$G$5:$G$3576,Q$4,'Lista pracowników'!$B$5:$B$3576,$B14))/SUM($I14:$N14)),"-") -> 0 | R14: =IFERROR(((SUMIFS('Lista pracowników'!$A$5:$A$3576,'Lista pracowników'!$G$5:$G$3576,R$4,'Lista pracowników'!$B$5:$B$3576,$B14))/(SUM($I14:$N14))),"-") -> 0 | S14: =IFERROR(((SUMIFS('Lista pracowników'!$A$5:$A$3576,'Lista pracowników'!$G$5:$G$3576,S$4,'Lista pracowników'!$B$5:$B$3576,$B14))/SUM($I14:$N14)),"-") -> 0 | T14: =IFERROR(((SUMIFS('Lista pracowników'!$A$5:$A$3576,'Lista pracowników'!$G$5:$G$3576,T$4,'Lista pracowników'!$B$5:$B$3576,$B14))/SUM($I14:$N14)),"-") -> 0 | U14: =IFERROR(((SUMIFS('Lista pracowników'!$A$5:$A$3576,'Lista pracowników'!$G$5:$G$3576,U$4,'Lista pracowników'!$B$5:$B$3576,$B14))/SUM($I14:$N14)),"-") -> 1
A15: 10 | B15: Mistrz | E15: 1 | F15: =IF(E15>'Lista pracowników'!$M$4,"-",VLOOKUP($E15,'Siatka płac'!$B$6:$E$17,3,FALSE)) -> 2000 | G15: =IF(E15>'Lista pracowników'!$M$4,"-",VLOOKUP($E15,'Siatka płac'!$B$6:$E$17,4,FALSE)) -> 4000 | H15: =SUMIFS('Lista pracowników'!$A$5:$A$8386,'Lista pracowników'!$B$5:$B$8386,$B15) -> 10 | I15: =SUMIFS('Lista pracowników'!$A$5:$A$3576,'Lista pracowników'!$G$5:$G$3576,I$4,'Lista pracowników'!$B$5:$B$3576,$B15) -> 0 | J15: =SUMIFS('Lista pracowników'!$A$5:$A$3576,'Lista pracowników'!$G$5:$G$3576,J$4,'Lista pracowników'!$B$5:$B$3576,$B15) -> 0 | K15: =SUMIFS('Lista pracowników'!$A$5:$A$3576,'Lista pracowników'!$G$5:$G$3576,K$4,'Lista pracowników'!$B$5:$B$3576,$B15) -> 0 | L15: =SUMIFS('Lista pracowników'!$A$5:$A$3576,'Lista pracowników'!$G$5:$G$3576,L$4,'Lista pracowników'!$B$5:$B$3576,$B15) -> 0 | M15: =SUMIFS('Lista pracowników'!$A$5:$A$3576,'Lista pracowników'!$G$5:$G$3576,M$4,'Lista pracowników'!$B$5:$B$3576,$B15) -> 0 | N15: =SUMIFS('Lista pracowników'!$A$5:$A$3576,'Lista pracowników'!$G$5:$G$3576,N$4,'Lista pracowników'!$B$5:$B$3576,$B15) -> 10 | P15: =IFERROR(((SUMIFS('Lista pracowników'!$A$5:$A$3576,'Lista pracowników'!$G$5:$G$3576,P$4,'Lista pracowników'!$B$5:$B$3576,$B15))/SUM($I15:$N15)),"-") -> 0 | Q15: =IFERROR(((SUMIFS('Lista pracowników'!$A$5:$A$3576,'Lista pracowników'!$G$5:$G$3576,Q$4,'Lista pracowników'!$B$5:$B$3576,$B15))/SUM($I15:$N15)),"-") -> 0 | R15: =IFERROR(((SUMIFS('Lista pracowników'!$A$5:$A$3576,'Lista pracowników'!$G$5:$G$3576,R$4,'Lista pracowników'!$B$5:$B$3576,$B15))/(SUM($I15:$N15))),"-") -> 0 | S15: =IFERROR(((SUMIFS('Lista pracowników'!$A$5:$A$3576,'Lista pracowników'!$G$5:$G$3576,S$4,'Lista pracowników'!$B$5:$B$3576,$B15))/SUM($I15:$N15)),"-") -> 0 | T15: =IFERROR(((SUMIFS('Lista pracowników'!$A$5:$A$3576,'Lista pracowników'!$G$5:$G$3576,T$4,'Lista pracowników'!$B$5:$B$3576,$B15))/SUM($I15:$N15)),"-") -> 0 | U15: =IFERROR(((SUMIFS('Lista pracowników'!$A$5:$A$3576,'Lista pracowników'!$G$5:$G$3576,U$4,'Lista pracowników'!$B$5:$B$3576,$B15))/SUM($I15:$N15)),"-") -> 1
A16: 11 | B16: Specjalista ds. personalnych | E16: 1 | F16: =IF(E16>'Lista pracowników'!$M$4,"-",VLOOKUP($E16,'Siatka płac'!$B$6:$E$17,3,FALSE)) -> 2000 | G16: =IF(E16>'Lista pracowników'!$M$4,"-",VLOOKUP($E16,'Siatka płac'!$B$6:$E$17,4,FALSE)) -> 4000 | H16: =SUMIFS('Lista pracowników'!$A$5:$A$8386,'Lista pracowników'!$B$5:$B$8386,$B16) -> 6 | I16: =SUMIFS('Lista pracowników'!$A$5:$A$3576,'Lista pracowników'!$G$5:$G$3576,I$4,'Lista pracowników'!$B$5:$B$3576,$B16) -> 0 | J16: =SUMIFS('Lista pracowników'!$A$5:$A$3576,'Lista pracowników'!$G$5:$G$3576,J$4,'Lista pracowników'!$B$5:$B$3576,$B16) -> 0 | K16: =SUMIFS('Lista pracowników'!$A$5:$A$3576,'Lista pracowników'!$G$5:$G$3576,K$4,'Lista pracowników'!$B$5:$B$3576,$B16) -> 0 | L16: =SUMIFS('Lista pracowników'!$A$5:$A$3576,'Lista pracowników'!$G$5:$G$3576,L$4,'Lista pracowników'!$B$5:$B$3576,$B16) -> 0 | M16: =SUMIFS('Lista pracowników'!$A$5:$A$3576,'Lista pracowników'!$G$5:$G$3576,M$4,'Lista pracowników'!$B$5:$B$3576,$B16) -> 1 | N16: =SUMIFS('Lista pracowników'!$A$5:$A$3576,'Lista pracowników'!$G$5:$G$3576,N$4,'Lista pracowników'!$B$5:$B$3576,$B16) -> 5 | P16: =IFERROR(((SUMIFS('Lista pracowników'!$A$5:$A$3576,'Lista pracowników'!$G$5:$G$3576,P$4,'Lista pracowników'!$B$5:$B$3576,$B16))/SUM($I16:$N16)),"-") -> 0 | Q16: =IFERROR(((SUMIFS('Lista pracowników'!$A$5:$A$3576,'Lista pracowników'!$G$5:$G$3576,Q$4,'Lista pracowników'!$B$5:$B$3576,$B16))/SUM($I16:$N16)),"-") -> 0 | R16: =IFERROR(((SUMIFS('Lista pracowników'!$A$5:$A$3576,'Lista pracowników'!$G$5:$G$3576,R$4,'Lista pracowników'!$B$5:$B$3576,$B16))/(SUM($I16:$N16))),"-") -> 0 | S16: =IFERROR(((SUMIFS('Lista pracowników'!$A$5:$A$3576,'Lista pracowników'!$G$5:$G$3576,S$4,'Lista pracowników'!$B$5:$B$3576,$B16))/SUM($I16:$N16)),"-") -> 0 | T16: =IFERROR(((SUMIFS('Lista pracowników'!$A$5:$A$3576,'Lista pracowników'!$G$5:$G$3576,T$4,'Lista pracowników'!$B$5:$B$3576,$B16))/SUM($I16:$N16)),"-") -> 0.1666666667 | U16: =IFERROR(((SUMIFS('Lista pracowników'!$A$5:$A$3576,'Lista pracowników'!$G$5:$G$3576,U$4,'Lista pracowników'!$B$5:$B$3576,$B16))/SUM($I16:$N16)),"-") -> 0.8333333333
A17: 12 | B17: Administrator serwerów | E17: 1 | F17: =IF(E17>'Lista pracowników'!$M$4,"-",VLOOKUP($E17,'Siatka płac'!$B$6:$E$17,3,FALSE)) -> 2000 | G17: =IF(E17>'Lista pracowników'!$M$4,"-",VLOOKUP($E17,'Siatka płac'!$B$6:$E$17,4,FALSE)) -> 4000 | H17: =SUMIFS('Lista pracowników'!$A$5:$A$8386,'Lista pracowników'!$B$5:$B$8386,$B17) -> 3 | I17: =SUMIFS('Lista pracowników'!$A$5:$A$3576,'Lista pracowników'!$G$5:$G$3576,I$4,'Lista pracowników'!$B$5:$B$3576,$B17) -> 0 | J17: =SUMIFS('Lista pracowników'!$A$5:$A$3576,'Lista pracowników'!$G$5:$G$3576,J$4,'Lista pracowników'!$B$5:$B$3576,$B17) -> 0 | K17: =SUMIFS('Lista pracowników'!$A$5:$A$3576,'Lista pracowników'!$G$5:$G$3576,K$4,'Lista pracowników'!$B$5:$B$3576,$B17) -> 0 | L17: =SUMIFS('Lista pracowników'!$A$5:$A$3576,'Lista pracowników'!$G$5:$G$3576,L$4,'Lista pracowników'!$B$5:$B$3576,$B17) -> 0 | M17: =SUMIFS('Lista pracowników'!$A$5:$A$3576,'Lista pracowników'!$G$5:$G$3576,M$4,'Lista pracowników'!$B$5:$B$3576,$B17) -> 0 | N17: =SUMIFS('Lista pracowników'!$A$5:$A$3576,'Lista pracowników'!$G$5:$G$3576,N$4,'Lista pracowników'!$B$5:$B$3576,$B17) -> 3 | P17: =IFERROR(((SUMIFS('Lista pracowników'!$A$5:$A$3576,'Lista pracowników'!$G$5:$G$3576,P$4,'Lista pracowników'!$B$5:$B$3576,$B17))/SUM($I17:$N17)),"-") -> 0 | Q17: =IFERROR(((SUMIFS('Lista pracowników'!$A$5:$A$3576,'Lista pracowników'!$G$5:$G$3576,Q$4,'Lista pracowników'!$B$5:$B$3576,$B17))/SUM($I17:$N17)),"-") -> 0 | R17: =IFERROR(((SUMIFS('Lista pracowników'!$A$5:$A$3576,'Lista pracowników'!$G$5:$G$3576,R$4,'Lista pracowników'!$B$5:$B$3576,$B17))/(SUM($I17:$N17))),"-") -> 0 | S17: =IFERROR(((SUMIFS('Lista pracowników'!$A$5:$A$3576,'Lista pracowników'!$G$5:$G$3576,S$4,'Lista pracowników'!$B$5:$B$3576,$B17))/SUM($I17:$N17)),"-") -> 0 | T17: =IFERROR(((SUMIFS('Lista pracowników'!$A$5:$A$3576,'Lista pracowników'!$G$5:$G$3576,T$4,'Lista pracowników'!$B$5:$B$3576,$B17))/SUM($I17:$N17)),"-") -> 0 | U17: =IFERROR(((SUMIFS('Lista pracowników'!$A$5:$A$3576,'Lista pracowników'!$G$5:$G$3576,U$4,'Lista pracowników'!$B$5:$B$3576,$B17))/SUM($I17:$N17)),"-") -> 1
A18: 13 | B18: Specjalista ds. księgowych | E18: 1 | F18: =IF(E18>'Lista pracowników'!$M$4,"-",VLOOKUP($E18,'Siatka płac'!$B$6:$E$17,3,FALSE)) -> 2000 | G18: =IF(E18>'Lista pracowników'!$M$4,"-",VLOOKUP($E18,'Siatka płac'!$B$6:$E$17,4,FALSE)) -> 4000 | H18: =SUMIFS('Lista pracowników'!$A$5:$A$8386,'Lista pracowników'!$B$5:$B$8386,$B18) -> 7 | I18: =SUMIFS('Lista pracowników'!$A$5:$A$3576,'Lista pracowników'!$G$5:$G$3576,I$4,'Lista pracowników'!$B$5:$B$3576,$B18) -> 0 | J18: =SUMIFS('Lista pracowników'!$A$5:$A$3576,'Lista pracowników'!$G$5:$G$3576,J$4,'Lista pracowników'!$B$5:$B$3576,$B18) -> 0 | K18: =SUMIFS('Lista pracowników'!$A$5:$A$3576,'Lista pracowników'!$G$5:$G$3576,K$4,'Lista pracowników'!$B$5:$B$3576,$B18) -> 0 | L18: =SUMIFS('Lista pracowników'!$A$5:$A$3576,'Lista pracowników'!$G$5:$G$3576,L$4,'Lista pracowników'!$B$5:$B$3576,$B18) -> 0 | M18: =SUMIFS('Lista pracowników'!$A$5:$A$3576,'Lista pracowników'!$G$5:$G$3576,M$4,'Lista pracowników'!$B$5:$B$3576,$B18) -> 0 | N18: =SUMIFS('Lista pracowników'!$A$5:$A$3576,'Lista pracowników'!$G$5:$G$3576,N$4,'Lista pracowników'!$B$5:$B$3576,$B18) -> 7 | P18: =IFERROR(((SUMIFS('Lista pracowników'!$A$5:$A$3576,'Lista pracowników'!$G$5:$G$3576,P$4,'Lista pracowników'!$B$5:$B$3576,$B18))/SUM($I18:$N18)),"-") -> 0 | Q18: =IFERROR(((SUMIFS('Lista pracowników'!$A$5:$A$3576,'Lista pracowników'!$G$5:$G$3576,Q$4,'Lista pracowników'!$B$5:$B$3576,$B18))/SUM($I18:$N18)),"-") -> 0 | R18: =IFERROR(((SUMIFS('Lista pracowników'!$A$5:$A$3576,'Lista pracowników'!$G$5:$G$3576,R$4,'Lista pracowników'!$B$5:$B$3576,$B18))/(SUM($I18:$N18))),"-") -> 0 | S18: =IFERROR(((SUMIFS('Lista pracowników'!$A$5:$A$3576,'Lista pracowników'!$G$5:$G$3576,S$4,'Lista pracowników'!$B$5:$B$3576,$B18))/SUM($I18:$N18)),"-") -> 0 | T18: =IFERROR(((SUMIFS('Lista pracowników'!$A$5:$A$3576,'Lista pracowników'!$G$5:$G$3576,T$4,'Lista pracowników'!$B$5:$B$3576,$B18))/SUM($I18:$N18)),"-") -> 0 | U18: =IFERROR(((SUMIFS('Lista pracowników'!$A$5:$A$3576,'Lista pracowników'!$G$5:$G$3576,U$4,'Lista pracowników'!$B$5:$B$3576,$B18))/SUM($I18:$N18)),"-") -> 1
A19: 14 | B19: Specjalista ds. planowania | E19: 1 | F19: =IF(E19>'Lista pracowników'!$M$4,"-",VLOOKUP($E19,'Siatka płac'!$B$6:$E$17,3,FALSE)) -> 2000 | G19: =IF(E19>'Lista pracowników'!$M$4,"-",VLOOKUP($E19,'Siatka płac'!$B$6:$E$17,4,FALSE)) -> 4000 | H19: =SUMIFS('Lista pracowników'!$A$5:$A$8386,'Lista pracowników'!$B$5:$B$8386,$B19) -> 5 | I19: =SUMIFS('Lista pracowników'!$A$5:$A$3576,'Lista pracowników'!$G$5:$G$3576,I$4,'Lista pracowników'!$B$5:$B$3576,$B19) -> 0 | J19: =SUMIFS('Lista pracowników'!$A$5:$A$3576,'Lista pracowników'!$G$5:$G$3576,J$4,'Lista pracowników'!$B$5:$B$3576,$B19) -> 0 | K19: =SUMIFS('Lista pracowników'!$A$5:$A$3576,'Lista pracowników'!$G$5:$G$3576,K$4,'Lista pracowników'!$B$5:$B$3576,$B19) -> 0 | L19: =SUMIFS('Lista pracowników'!$A$5:$A$3576,'Lista pracowników'!$G$5:$G$3576,L$4,'Lista pracowników'!$B$5:$B$3576,$B19) -> 0 | M19: =SUMIFS('Lista pracowników'!$A$5:$A$3576,'Lista pracowników'!$G$5:$G$3576,M$4,'Lista pracowników'!$B$5:$B$3576,$B19) -> 1 | N19: =SUMIFS('Lista pracowników'!$A$5:$A$3576,'Lista pracowników'!$G$5:$G$3576,N$4,'Lista pracowników'!$B$5:$B$3576,$B19) -> 4 | P19: =IFERROR(((SUMIFS('Lista pracowników'!$A$5:$A$3576,'Lista pracowników'!$G$5:$G$3576,P$4,'Lista pracowników'!$B$5:$B$3576,$B19))/SUM($I19:$N19)),"-") -> 0 | Q19: =IFERROR(((SUMIFS('Lista pracowników'!$A$5:$A$3576,'Lista pracowników'!$G$5:$G$3576,Q$4,'Lista pracowników'!$B$5:$B$3576,$B19))/SUM($I19:$N19)),"-") -> 0 | R19: =IFERROR(((SUMIFS('Lista pracowników'!$A$5:$A$3576,'Lista pracowników'!$G$5:$G$3576,R$4,'Lista pracowników'!$B$5:$B$3576,$B19))/(SUM($I19:$N19))),"-") -> 0 | S19: =IFERROR(((SUMIFS('Lista pracowników'!$A$5:$A$3576,'Lista pracowników'!$G$5:$G$3576,S$4,'Lista pracowników'!$B$5:$B$3576,$B19))/SUM($I19:$N19)),"-") -> 0 | T19: =IFERROR(((SUMIFS('Lista pracowników'!$A$5:$A$3576,'Lista pracowników'!$G$5:$G$3576,T$4,'Lista pracowników'!$B$5:$B$3576,$B19))/SUM($I19:$N19)),"-") -> 0.2 | U19: =IFERROR(((SUMIFS('Lista pracowników'!$A$5:$A$3576,'Lista pracowników'!$G$5:$G$3576,U$4,'Lista pracowników'!$B$5:$B$3576,$B19))/SUM($I19:$N19)),"-") -> 0.8
A20: 15 | B20: Kierownik produkcji | E20: 1 | F20: =IF(E20>'Lista pracowników'!$M$4,"-",VLOOKUP($E20,'Siatka płac'!$B$6:$E$17,3,FALSE)) -> 2000 | G20: =IF(E20>'Lista pracowników'!$M$4,"-",VLOOKUP($E20,'Siatka płac'!$B$6:$E$17,4,FALSE)) -> 4000 | H20: =SUMIFS('Lista pracowników'!$A$5:$A$8386,'Lista pracowników'!$B$5:$B$8386,$B20) -> 1 | I20: =SUMIFS('Lista pracowników'!$A$5:$A$3576,'Lista pracowników'!$G$5:$G$3576,I$4,'Lista pracowników'!$B$5:$B$3576,$B20) -> 0 | J20: =SUMIFS('Lista pracowników'!$A$5:$A$3576,'Lista pracowników'!$G$5:$G$3576,J$4,'Lista pracowników'!$B$5:$B$3576,$B20) -> 0 | K20: =SUMIFS('Lista pracowników'!$A$5:$A$3576,'Lista pracowników'!$G$5:$G$3576,K$4,'Lista pracowników'!$B$5:$B$3576,$B20) -> 0 | L20: =SUMIFS('Lista pracowników'!$A$5:$A$3576,'Lista pracowników'!$G$5:$G$3576,L$4,'Lista pracowników'!$B$5:$B$3576,$B20) -> 0 | M20: =SUMIFS('Lista pracowników'!$A$5:$A$3576,'Lista pracowników'!$G$5:$G$3576,M$4,'Lista pracowników'!$B$5:$B$3576,$B20) -> 0 | N20: =SUMIFS('Lista pracowników'!$A$5:$A$3576,'Lista pracowników'!$G$5:$G$3576,N$4,'Lista pracowników'!$B$5:$B$3576,$B20) -> 1 | P20: =IFERROR(((SUMIFS('Lista pracowników'!$A$5:$A$3576,'Lista pracowników'!$G$5:$G$3576,P$4,'Lista pracowników'!$B$5:$B$3576,$B20))/SUM($I20:$N20)),"-") -> 0 | Q20: =IFERROR(((SUMIFS('Lista pracowników'!$A$5:$A$3576,'Lista pracowników'!$G$5:$G$3576,Q$4,'Lista pracowników'!$B$5:$B$3576,$B20))/SUM($I20:$N20)),"-") -> 0 | R20: =IFERROR(((SUMIFS('Lista pracowników'!$A$5:$A$3576,'Lista pracowników'!$G$5:$G$3576,R$4,'Lista pracowników'!$B$5:$B$3576,$B20))/(SUM($I20:$N20))),"-") -> 0 | S20: =IFERROR(((SUMIFS('Lista pracowników'!$A$5:$A$3576,'Lista pracowników'!$G$5:$G$3576,S$4,'Lista pracowników'!$B$5:$B$3576,$B20))/SUM($I20:$N20)),"-") -> 0 | T20: =IFERROR(((SUMIFS('Lista pracowników'!$A$5:$A$3576,'Lista pracowników'!$G$5:$G$3576,T$4,'Lista pracowników'!$B$5:$B$3576,$B20))/SUM($I20:$N20)),"-") -> 0 | U20: =IFERROR(((SUMIFS('Lista pracowników'!$A$5:$A$3576,'Lista pracowników'!$G$5:$G$3576,U$4,'Lista pracowników'!$B$5:$B$3576,$B20))/SUM($I20:$N20)),"-") -> 1
A21: 16 | B21: Kierownik działu jakości | E21: 1 | F21: =IF(E21>'Lista pracowników'!$M$4,"-",VLOOKUP($E21,'Siatka płac'!$B$6:$E$17,3,FALSE)) -> 2000 | G21: =IF(E21>'Lista pracowników'!$M$4,"-",VLOOKUP($E21,'Siatka płac'!$B$6:$E$17,4,FALSE)) -> 4000 | H21: =SUMIFS('Lista pracowników'!$A$5:$A$8386,'Lista pracowników'!$B$5:$B$8386,$B21) -> 1 | I21: =SUMIFS('Lista pracowników'!$A$5:$A$3576,'Lista pracowników'!$G$5:$G$3576,I$4,'Lista pracowników'!$B$5:$B$3576,$B21) -> 0 | J21: =SUMIFS('Lista pracowników'!$A$5:$A$3576,'Lista pracowników'!$G$5:$G$3576,J$4,'Lista pracowników'!$B$5:$B$3576,$B21) -> 0 | K21: =SUMIFS('Lista pracowników'!$A$5:$A$3576,'Lista pracowników'!$G$5:$G$3576,K$4,'Lista pracowników'!$B$5:$B$3576,$B21) -> 0 | L21: =SUMIFS('Lista pracowników'!$A$5:$A$3576,'Lista pracowników'!$G$5:$G$3576,L$4,'Lista pracowników'!$B$5:$B$3576,$B21) -> 0 | M21: =SUMIFS('Lista pracowników'!$A$5:$A$3576,'Lista pracowników'!$G$5:$G$3576,M$4,'Lista pracowników'!$B$5:$B$3576,$B21) -> 0 | N21: =SUMIFS('Lista pracowników'!$A$5:$A$3576,'Lista pracowników'!$G$5:$G$3576,N$4,'Lista pracowników'!$B$5:$B$3576,$B21) -> 1 | P21: =IFERROR(((SUMIFS('Lista pracowników'!$A$5:$A$3576,'Lista pracowników'!$G$5:$G$3576,P$4,'Lista pracowników'!$B$5:$B$3576,$B21))/SUM($I21:$N21)),"-") -> 0 | Q21: =IFERROR(((SUMIFS('Lista pracowników'!$A$5:$A$3576,'Lista pracowników'!$G$5:$G$3576,Q$4,'Lista pracowników'!$B$5:$B$3576,$B21))/SUM($I21:$N21)),"-") -> 0 | R21: =IFERROR(((SUMIFS('Lista pracowników'!$A$5:$A$3576,'Lista pracowników'!$G$5:$G$3576,R$4,'Lista pracowników'!$B$5:$B$3576,$B21))/(SUM($I21:$N21))),"-") -> 0 | S21: =IFERROR(((SUMIFS('Lista pracowników'!$A$5:$A$3576,'Lista pracowników'!$G$5:$G$3576,S$4,'Lista pracowników'!$B$5:$B$3576,$B21))/SUM($I21:$N21)),"-") -> 0 | T21: =IFERROR(((SUMIFS('Lista pracowników'!$A$5:$A$3576,'Lista pracowników'!$G$5:$G$3576,T$4,'Lista pracowników'!$B$5:$B$3576,$B21))/SUM($I21:$N21)),"-") -> 0 | U21: =IFERROR(((SUMIFS('Lista pracowników'!$A$5:$A$3576,'Lista pracowników'!$G$5:$G$3576,U$4,'Lista pracowników'!$B$5:$B$3576,$B21))/SUM($I21:$N21)),"-") -> 1
A22: 17 | B22: Kierownik magazynu | E22: 1 | F22: =IF(E22>'Lista pracowników'!$M$4,"-",VLOOKUP($E22,'Siatka płac'!$B$6:$E$17,3,FALSE)) -> 2000 | G22: =IF(E22>'Lista pracowników'!$M$4,"-",VLOOKUP($E22,'Siatka płac'!$B$6:$E$17,4,FALSE)) -> 4000 | H22: =SUMIFS('Lista pracowników'!$A$5:$A$8386,'Lista pracowników'!$B$5:$B$8386,$B22) -> 1 | I22: =SUMIFS('Lista pracowników'!$A$5:$A$3576,'Lista pracowników'!$G$5:$G$3576,I$4,'Lista pracowników'!$B$5:$B$3576,$B22) -> 0 | J22: =SUMIFS('Lista pracowników'!$A$5:$A$3576,'Lista pracowników'!$G$5:$G$3576,J$4,'Lista pracowników'!$B$5:$B$3576,$B22) -> 0 | K22: =SUMIFS('Lista pracowników'!$A$5:$A$3576,'Lista pracowników'!$G$5:$G$3576,K$4,'Lista pracowników'!$B$5:$B$3576,$B22) -> 0 | L22: =SUMIFS('Lista pracowników'!$A$5:$A$3576,'Lista pracowników'!$G$5:$G$3576,L$4,'Lista pracowników'!$B$5:$B$3576,$B22) -> 0 | M22: =SUMIFS('Lista pracowników'!$A$5:$A$3576,'Lista pracowników'!$G$5:$G$3576,M$4,'Lista pracowników'!$B$5:$B$3576,$B22) -> 0 | N22: =SUMIFS('Lista pracowników'!$A$5:$A$3576,'Lista pracowników'!$G$5:$G$3576,N$4,'Lista pracowników'!$B$5:$B$3576,$B22) -> 1 | P22: =IFERROR(((SUMIFS('Lista pracowników'!$A$5:$A$3576,'Lista pracowników'!$G$5:$G$3576,P$4,'Lista pracowników'!$B$5:$B$3576,$B22))/SUM($I22:$N22)),"-") -> 0 | Q22: =IFERROR(((SUMIFS('Lista pracowników'!$A$5:$A$3576,'Lista pracowników'!$G$5:$G$3576,Q$4,'Lista pracowników'!$B$5:$B$3576,$B22))/SUM($I22:$N22)),"-") -> 0 | R22: =IFERROR(((SUMIFS('Lista pracowników'!$A$5:$A$3576,'Lista pracowników'!$G$5:$G$3576,R$4,'Lista pracowników'!$B$5:$B$3576,$B22))/(SUM($I22:$N22))),"-") -> 0 | S22: =IFERROR(((SUMIFS('Lista pracowników'!$A$5:$A$3576,'Lista pracowników'!$G$5:$G$3576,S$4,'Lista pracowników'!$B$5:$B$3576,$B22))/SUM($I22:$N22)),"-") -> 0 | T22: =IFERROR(((SUMIFS('Lista pracowników'!$A$5:$A$3576,'Lista pracowników'!$G$5:$G$3576,T$4,'Lista pracowników'!$B$5:$B$3576,$B22))/SUM($I22:$N22)),"-") -> 0 | U22: =IFERROR(((SUMIFS('Lista pracowników'!$A$5:$A$3576,'Lista pracowników'!$G$5:$G$3576,U$4,'Lista pracowników'!$B$5:$B$3576,$B22))/SUM($I22:$N22)),"-") -> 1
A23: 18 | B23: Dyrektor finansowy | E23: 1 | F23: =IF(E23>'Lista pracowników'!$M$4,"-",VLOOKUP($E23,'Siatka płac'!$B$6:$E$17,3,FALSE)) -> 2000 | G23: =IF(E23>'Lista pracowników'!$M$4,"-",VLOOKUP($E23,'Siatka płac'!$B$6:$E$17,4,FALSE)) -> 4000 | H23: =SUMIFS('Lista pracowników'!$A$5:$A$8386,'Lista pracowników'!$B$5:$B$8386,$B23) -> 1 | I23: =SUMIFS('Lista pracowników'!$A$5:$A$3576,'Lista pracowników'!$G$5:$G$3576,I$4,'Lista pracowników'!$B$5:$B$3576,$B23) -> 0 | J23: =SUMIFS('Lista pracowników'!$A$5:$A$3576,'Lista pracowników'!$G$5:$G$3576,J$4,'Lista pracowników'!$B$5:$B$3576,$B23) -> 0 | K23: =SUMIFS('Lista pracowników'!$A$5:$A$3576,'Lista pracowników'!$G$5:$G$3576,K$4,'Lista pracowników'!$B$5:$B$3576,$B23) -> 0 | L23: =SUMIFS('Lista pracowników'!$A$5:$A$3576,'Lista pracowników'!$G$5:$G$3576,L$4,'Lista pracowników'!$B$5:$B$3576,$B23) -> 0 | M23: =SUMIFS('Lista pracowników'!$A$5:$A$3576,'Lista pracowników'!$G$5:$G$3576,M$4,'Lista pracowników'!$B$5:$B$3576,$B23) -> 0 | N23: =SUMIFS('Lista pracowników'!$A$5:$A$3576,'Lista pracowników'!$G$5:$G$3576,N$4,'Lista pracowników'!$B$5:$B$3576,$B23) -> 0 | P23: =IFERROR(((SUMIFS('Lista pracowników'!$A$5:$A$3576,'Lista pracowników'!$G$5:$G$3576,P$4,'Lista pracowników'!$B$5:$B$3576,$B23))/SUM($I23:$N23)),"-") -> - | Q23: =IFERROR(((SUMIFS('Lista pracowników'!$A$5:$A$3576,'Lista pracowników'!$G$5:$G$3576,Q$4,'Lista pracowników'!$B$5:$B$3576,$B23))/SUM($I23:$N23)),"-") -> - | R23: =IFERROR(((SUMIFS('Lista pracowników'!$A$5:$A$3576,'Lista pracowników'!$G$5:$G$3576,R$4,'Lista pracowników'!$B$5:$B$3576,$B23))/(SUM($I23:$N23))),"-") -> - | S23: =IFERROR(((SUMIFS('Lista pracowników'!$A$5:$A$3576,'Lista pracowników'!$G$5:$G$3576,S$4,'Lista pracowników'!$B$5:$B$3576,$B23))/SUM($I23:$N23)),"-") -> - | T23: =IFERROR(((SUMIFS('Lista pracowników'!$A$5:$A$3576,'Lista pracowników'!$G$5:$G$3576,T$4,'Lista pracowników'!$B$5:$B$3576,$B23))/SUM($I23:$N23)),"-") -> - | U23: =IFERROR(((SUMIFS('Lista pracowników'!$A$5:$A$3576,'Lista pracowników'!$G$5:$G$3576,U$4,'Lista pracowników'!$B$5:$B$3576,$B23))/SUM($I23:$N23)),"-") -> -
A24: 19 | B24: Dyrektor produkcji | E24: 1 | F24: =IF(E24>'Lista pracowników'!$M$4,"-",VLOOKUP($E24,'Siatka płac'!$B$6:$E$17,3,FALSE)) -> 2000 | G24: =IF(E24>'Lista pracowników'!$M$4,"-",VLOOKUP($E24,'Siatka płac'!$B$6:$E$17,4,FALSE)) -> 4000 | H24: =SUMIFS('Lista pracowników'!$A$5:$A$8386,'Lista pracowników'!$B$5:$B$8386,$B24) -> 1 | I24: =SUMIFS('Lista pracowników'!$A$5:$A$3576,'Lista pracowników'!$G$5:$G$3576,I$4,'Lista pracowników'!$B$5:$B$3576,$B24) -> 0 | J24: =SUMIFS('Lista pracowników'!$A$5:$A$3576,'Lista pracowników'!$G$5:$G$3576,J$4,'Lista pracowników'!$B$5:$B$3576,$B24) -> 0 | K24: =SUMIFS('Lista pracowników'!$A$5:$A$3576,'Lista pracowników'!$G$5:$G$3576,K$4,'Lista pracowników'!$B$5:$B$3576,$B24) -> 0 | L24: =SUMIFS('Lista pracowników'!$A$5:$A$3576,'Lista pracowników'!$G$5:$G$3576,L$4,'Lista pracowników'!$B$5:$B$3576,$B24) -> 0 | M24: =SUMIFS('Lista pracowników'!$A$5:$A$3576,'Lista pracowników'!$G$5:$G$3576,M$4,'Lista pracowników'!$B$5:$B$3576,$B24) -> 0 | N24: =SUMIFS('Lista pracowników'!$A$5:$A$3576,'Lista pracowników'!$G$5:$G$3576,N$4,'Lista pracowników'!$B$5:$B$3576,$B24) -> 0 | P24: =IFERROR(((SUMIFS('Lista pracowników'!$A$5:$A$3576,'Lista pracowników'!$G$5:$G$3576,P$4,'Lista pracowników'!$B$5:$B$3576,$B24))/SUM($I24:$N24)),"-") -> - | Q24: =IFERROR(((SUMIFS('Lista pracowników'!$A$5:$A$3576,'Lista pracowników'!$G$5:$G$3576,Q$4,'Lista pracowników'!$B$5:$B$3576,$B24))/SUM($I24:$N24)),"-") -> - | R24: =IFERROR(((SUMIFS('Lista pracowników'!$A$5:$A$3576,'Lista pracowników'!$G$5:$G$3576,R$4,'Lista pracowników'!$B$5:$B$3576,$B24))/(SUM($I24:$N24))),"-") -> - | S24: =IFERROR(((SUMIFS('Lista pracowników'!$A$5:$A$3576,'Lista pracowników'!$G$5:$G$3576,S$4,'Lista pracowników'!$B$5:$B$3576,$B24))/SUM($I24:$N24)),"-") -> - | T24: =IFERROR(((SUMIFS('Lista pracowników'!$A$5:$A$3576,'Lista pracowników'!$G$5:$G$3576,T$4,'Lista pracowników'!$B$5:$B$3576,$B24))/SUM($I24:$N24)),"-") -> - | U24: =IFERROR(((SUMIFS('Lista pracowników'!$A$5:$A$3576,'Lista pracowników'!$G$5:$G$3576,U$4,'Lista pracowników'!$B$5:$B$3576,$B24))/SUM($I24:$N24)),"-") -> -
A25: 20 | F25: =IF(E25>'Lista pracowników'!$M$4,"-",VLOOKUP($E25,'Siatka płac'!$B$6:$E$17,3,FALSE)) -> 0 | G25: =IF(E25>'Lista pracowników'!$M$4,"-",VLOOKUP($E25,'Siatka płac'!$B$6:$E$17,4,FALSE)) -> 0 | H25: =SUMIFS('Lista pracowników'!$A$5:$A$8386,'Lista pracowników'!$B$5:$B$8386,$B25) -> 0 | I25: =SUMIFS('Lista pracowników'!$A$5:$A$3576,'Lista pracowników'!$G$5:$G$3576,I$4,'Lista pracowników'!$B$5:$B$3576,$B25) -> 0 | J25: =SUMIFS('Lista pracowników'!$A$5:$A$3576,'Lista pracowników'!$G$5:$G$3576,J$4,'Lista pracowników'!$B$5:$B$3576,$B25) -> 0 | K25: =SUMIFS('Lista pracowników'!$A$5:$A$3576,'Lista pracowników'!$G$5:$G$3576,K$4,'Lista pracowników'!$B$5:$B$3576,$B25) -> 0 | L25: =SUMIFS('Lista pracowników'!$A$5:$A$3576,'Lista pracowników'!$G$5:$G$3576,L$4,'Lista pracowników'!$B$5:$B$3576,$B25) -> 0 | M25: =SUMIFS('Lista pracowników'!$A$5:$A$3576,'Lista pracowników'!$G$5:$G$3576,M$4,'Lista pracowników'!$B$5:$B$3576,$B25) -> 0 | N25: =SUMIFS('Lista pracowników'!$A$5:$A$3576,'Lista pracowników'!$G$5:$G$3576,N$4,'Lista pracowników'!$B$5:$B$3576,$B25) -> 0 | P25: =IFERROR(((SUMIFS('Lista pracowników'!$A$5:$A$3576,'Lista pracowników'!$G$5:$G$3576,P$4,'Lista pracowników'!$B$5:$B$3576,$B25))/SUM($I25:$N25)),"-") -> - | Q25: =IFERROR(((SUMIFS('Lista pracowników'!$A$5:$A$3576,'Lista pracowników'!$G$5:$G$3576,Q$4,'Lista pracowników'!$B$5:$B$3576,$B25))/SUM($I25:$N25)),"-") -> - | R25: =IFERROR(((SUMIFS('Lista pracowników'!$A$5:$A$3576,'Lista pracowników'!$G$5:$G$3576,R$4,'Lista pracowników'!$B$5:$B$3576,$B25))/(SUM($I25:$N25))),"-") -> - | S25: =IFERROR(((SUMIFS('Lista pracowników'!$A$5:$A$3576,'Lista pracowników'!$G$5:$G$3576,S$4,'Lista pracowników'!$B$5:$B$3576,$B25))/SUM($I25:$N25)),"-") -> - | T25: =IFERROR(((SUMIFS('Lista pracowników'!$A$5:$A$3576,'Lista pracowników'!$G$5:$G$3576,T$4,'Lista pracowników'!$B$5:$B$3576,$B25))/SUM($I25:$N25)),"-") -> - | U25: =IFERROR(((SUMIFS('Lista pracowników'!$A$5:$A$3576,'Lista pracowników'!$G$5:$G$3576,U$4,'Lista pracowników'!$B$5:$B$3576,$B25))/SUM($I25:$N25)),"-") -> -
A26: 21 | F26: =IF(E26>'Lista pracowników'!$M$4,"-",VLOOKUP($E26,'Siatka płac'!$B$6:$E$17,3,FALSE)) -> 0 | G26: =IF(E26>'Lista pracowników'!$M$4,"-",VLOOKUP($E26,'Siatka płac'!$B$6:$E$17,4,FALSE)) -> 0 | H26: =SUMIFS('Lista pracowników'!$A$5:$A$8386,'Lista pracowników'!$B$5:$B$8386,$B26) -> 0 | I26: =SUMIFS('Lista pracowników'!$A$5:$A$3576,'Lista pracowników'!$G$5:$G$3576,I$4,'Lista pracowników'!$B$5:$B$3576,$B26) -> 0 | J26: =SUMIFS('Lista pracowników'!$A$5:$A$3576,'Lista pracowników'!$G$5:$G$3576,J$4,'Lista pracowników'!$B$5:$B$3576,$B26) -> 0 | K26: =SUMIFS('Lista pracowników'!$A$5:$A$3576,'Lista pracowników'!$G$5:$G$3576,K$4,'Lista pracowników'!$B$5:$B$3576,$B26) -> 0 | L26: =SUMIFS('Lista pracowników'!$A$5:$A$3576,'Lista pracowników'!$G$5:$G$3576,L$4,'Lista pracowników'!$B$5:$B$3576,$B26) -> 0 | M26: =SUMIFS('Lista pracowników'!$A$5:$A$3576,'Lista pracowników'!$G$5:$G$3576,M$4,'Lista pracowników'!$B$5:$B$3576,$B26) -> 0 | N26: =SUMIFS('Lista pracowników'!$A$5:$A$3576,'Lista pracowników'!$G$5:$G$3576,N$4,'Lista pracowników'!$B$5:$B$3576,$B26) -> 0 | P26: =IFERROR(((SUMIFS('Lista pracowników'!$A$5:$A$3576,'Lista pracowników'!$G$5:$G$3576,P$4,'Lista pracowników'!$B$5:$B$3576,$B26))/SUM($I26:$N26)),"-") -> - | Q26: =IFERROR(((SUMIFS('Lista pracowników'!$A$5:$A$3576,'Lista pracowników'!$G$5:$G$3576,Q$4,'Lista pracowników'!$B$5:$B$3576,$B26))/SUM($I26:$N26)),"-") -> - | R26: =IFERROR(((SUMIFS('Lista pracowników'!$A$5:$A$3576,'Lista pracowników'!$G$5:$G$3576,R$4,'Lista pracowników'!$B$5:$B$3576,$B26))/(SUM($I26:$N26))),"-") -> - | S26: =IFERROR(((SUMIFS('Lista pracowników'!$A$5:$A$3576,'Lista pracowników'!$G$5:$G$3576,S$4,'Lista pracowników'!$B$5:$B$3576,$B26))/SUM($I26:$N26)),"-") -> - | T26: =IFERROR(((SUMIFS('Lista pracowników'!$A$5:$A$3576,'Lista pracowników'!$G$5:$G$3576,T$4,'Lista pracowników'!$B$5:$B$3576,$B26))/SUM($I26:$N26)),"-") -> - | U26: =IFERROR(((SUMIFS('Lista pracowników'!$A$5:$A$3576,'Lista pracowników'!$G$5:$G$3576,U$4,'Lista pracowników'!$B$5:$B$3576,$B26))/SUM($I26:$N26)),"-") -> -
A27: 22 | F27: =IF(E27>'Lista pracowników'!$M$4,"-",VLOOKUP($E27,'Siatka płac'!$B$6:$E$17,3,FALSE)) -> 0 | G27: =IF(E27>'Lista pracowników'!$M$4,"-",VLOOKUP($E27,'Siatka płac'!$B$6:$E$17,4,FALSE)) -> 0 | H27: =SUMIFS('Lista pracowników'!$A$5:$A$8386,'Lista pracowników'!$B$5:$B$8386,$B27) -> 0 | I27: =SUMIFS('Lista pracowników'!$A$5:$A$3576,'Lista pracowników'!$G$5:$G$3576,I$4,'Lista pracowników'!$B$5:$B$3576,$B27) -> 0 | J27: =SUMIFS('Lista pracowników'!$A$5:$A$3576,'Lista pracowników'!$G$5:$G$3576,J$4,'Lista pracowników'!$B$5:$B$3576,$B27) -> 0 | K27: =SUMIFS('Lista pracowników'!$A$5:$A$3576,'Lista pracowników'!$G$5:$G$3576,K$4,'Lista pracowników'!$B$5:$B$3576,$B27) -> 0 | L27: =SUMIFS('Lista pracowników'!$A$5:$A$3576,'Lista pracowników'!$G$5:$G$3576,L$4,'Lista pracowników'!$B$5:$B$3576,$B27) -> 0 | M27: =SUMIFS('Lista pracowników'!$A$5:$A$3576,'Lista pracowników'!$G$5:$G$3576,M$4,'Lista pracowników'!$B$5:$B$3576,$B27) -> 0 | N27: =SUMIFS('Lista pracowników'!$A$5:$A$3576,'Lista pracowników'!$G$5:$G$3576,N$4,'Lista pracowników'!$B$5:$B$3576,$B27) -> 0 | P27: =IFERROR(((SUMIFS('Lista pracowników'!$A$5:$A$3576,'Lista pracowników'!$G$5:$G$3576,P$4,'Lista pracowników'!$B$5:$B$3576,$B27))/SUM($I27:$N27)),"-") -> - | Q27: =IFERROR(((SUMIFS('Lista pracowników'!$A$5:$A$3576,'Lista pracowników'!$G$5:$G$3576,Q$4,'Lista pracowników'!$B$5:$B$3576,$B27))/SUM($I27:$N27)),"-") -> - | R27: =IFERROR(((SUMIFS('Lista pracowników'!$A$5:$A$3576,'Lista pracowników'!$G$5:$G$3576,R$4,'Lista pracowników'!$B$5:$B$3576,$B27))/(SUM($I27:$N27))),"-") -> - | S27: =IFERROR(((SUMIFS('Lista pracowników'!$A$5:$A$3576,'Lista pracowników'!$G$5:$G$3576,S$4,'Lista pracowników'!$B$5:$B$3576,$B27))/SUM($I27:$N27)),"-") -> - | T27: =IFERROR(((SUMIFS('Lista pracowników'!$A$5:$A$3576,'Lista pracowników'!$G$5:$G$3576,T$4,'Lista pracowników'!$B$5:$B$3576,$B27))/SUM($I27:$N27)),"-") -> - | U27: =IFERROR(((SUMIFS('Lista pracowników'!$A$5:$A$3576,'Lista pracowników'!$G$5:$G$3576,U$4,'Lista pracowników'!$B$5:$B$3576,$B27))/SUM($I27:$N27)),"-") -> -
A28: 23 | F28: =IF(E28>'Lista pracowników'!$M$4,"-",VLOOKUP($E28,'Siatka płac'!$B$6:$E$17,3,FALSE)) -> 0 | G28: =IF(E28>'Lista pracowników'!$M$4,"-",VLOOKUP($E28,'Siatka płac'!$B$6:$E$17,4,FALSE)) -> 0 | H28: =SUMIFS('Lista pracowników'!$A$5:$A$8386,'Lista pracowników'!$B$5:$B$8386,$B28) -> 0 | I28: =SUMIFS('Lista pracowników'!$A$5:$A$3576,'Lista pracowników'!$G$5:$G$3576,I$4,'Lista pracowników'!$B$5:$B$3576,$B28) -> 0 | J28: =SUMIFS('Lista pracowników'!$A$5:$A$3576,'Lista pracowników'!$G$5:$G$3576,J$4,'Lista pracowników'!$B$5:$B$3576,$B28) -> 0 | K28: =SUMIFS('Lista pracowników'!$A$5:$A$3576,'Lista pracowników'!$G$5:$G$3576,K$4,'Lista pracowników'!$B$5:$B$3576,$B28) -> 0 | L28: =SUMIFS('Lista pracowników'!$A$5:$A$3576,'Lista pracowników'!$G$5:$G$3576,L$4,'Lista pracowników'!$B$5:$B$3576,$B28) -> 0 | M28: =SUMIFS('Lista pracowników'!$A$5:$A$3576,'Lista pracowników'!$G$5:$G$3576,M$4,'Lista pracowników'!$B$5:$B$3576,$B28) -> 0 | N28: =SUMIFS('Lista pracowników'!$A$5:$A$3576,'Lista pracowników'!$G$5:$G$3576,N$4,'Lista pracowników'!$B$5:$B$3576,$B28) -> 0 | P28: =IFERROR(((SUMIFS('Lista pracowników'!$A$5:$A$3576,'Lista pracowników'!$G$5:$G$3576,P$4,'Lista pracowników'!$B$5:$B$3576,$B28))/SUM($I28:$N28)),"-") -> - | Q28: =IFERROR(((SUMIFS('Lista pracowników'!$A$5:$A$3576,'Lista pracowników'!$G$5:$G$3576,Q$4,'Lista pracowników'!$B$5:$B$3576,$B28))/SUM($I28:$N28)),"-") -> - | R28: =IFERROR(((SUMIFS('Lista pracowników'!$A$5:$A$3576,'Lista pracowników'!$G$5:$G$3576,R$4,'Lista pracowników'!$B$5:$B$3576,$B28))/(SUM($I28:$N28))),"-") -> - | S28: =IFERROR(((SUMIFS('Lista pracowników'!$A$5:$A$3576,'Lista pracowników'!$G$5:$G$3576,S$4,'Lista pracowników'!$B$5:$B$3576,$B28))/SUM($I28:$N28)),"-") -> - | T28: =IFERROR(((SUMIFS('Lista pracowników'!$A$5:$A$3576,'Lista pracowników'!$G$5:$G$3576,T$4,'Lista pracowników'!$B$5:$B$3576,$B28))/SUM($I28:$N28)),"-") -> - | U28: =IFERROR(((SUMIFS('Lista pracowników'!$A$5:$A$3576,'Lista pracowników'!$G$5:$G$3576,U$4,'Lista pracowników'!$B$5:$B$3576,$B28))/SUM($I28:$N28)),"-") -> -
A29: 24 | F29: =IF(E29>'Lista pracowników'!$M$4,"-",VLOOKUP($E29,'Siatka płac'!$B$6:$E$17,3,FALSE)) -> 0 | G29: =IF(E29>'Lista pracowników'!$M$4,"-",VLOOKUP($E29,'Siatka płac'!$B$6:$E$17,4,FALSE)) -> 0 | H29: =SUMIFS('Lista pracowników'!$A$5:$A$8386,'Lista pracowników'!$B$5:$B$8386,$B29) -> 0 | I29: =SUMIFS('Lista pracowników'!$A$5:$A$3576,'Lista pracowników'!$G$5:$G$3576,I$4,'Lista pracowników'!$B$5:$B$3576,$B29) -> 0 | J29: =SUMIFS('Lista pracowników'!$A$5:$A$3576,'Lista pracowników'!$G$5:$G$3576,J$4,'Lista pracowników'!$B$5:$B$3576,$B29) -> 0 | K29: =SUMIFS('Lista pracowników'!$A$5:$A$3576,'Lista pracowników'!$G$5:$G$3576,K$4,'Lista pracowników'!$B$5:$B$3576,$B29) -> 0 | L29: =SUMIFS('Lista pracowników'!$A$5:$A$3576,'Lista pracowników'!$G$5:$G$3576,L$4,'Lista pracowników'!$B$5:$B$3576,$B29) -> 0 | M29: =SUMIFS('Lista pracowników'!$A$5:$A$3576,'Lista pracowników'!$G$5:$G$3576,M$4,'Lista pracowników'!$B$5:$B$3576,$B29) -> 0 | N29: =SUMIFS('Lista pracowników'!$A$5:$A$3576,'Lista pracowników'!$G$5:$G$3576,N$4,'Lista pracowników'!$B$5:$B$3576,$B29) -> 0 | P29: =IFERROR(((SUMIFS('Lista pracowników'!$A$5:$A$3576,'Lista pracowników'!$G$5:$G$3576,P$4,'Lista pracowników'!$B$5:$B$3576,$B29))/SUM($I29:$N29)),"-") -> - | Q29: =IFERROR(((SUMIFS('Lista pracowników'!$A$5:$A$3576,'Lista pracowników'!$G$5:$G$3576,Q$4,'Lista pracowników'!$B$5:$B$3576,$B29))/SUM($I29:$N29)),"-") -> - | R29: =IFERROR(((SUMIFS('Lista pracowników'!$A$5:$A$3576,'Lista pracowników'!$G$5:$G$3576,R$4,'Lista pracowników'!$B$5:$B$3576,$B29))/(SUM($I29:$N29))),"-") -> - | S29: =IFERROR(((SUMIFS('Lista pracowników'!$A$5:$A$3576,'Lista pracowników'!$G$5:$G$3576,S$4,'Lista pracowników'!$B$5:$B$3576,$B29))/SUM($I29:$N29)),"-") -> - | T29: =IFERROR(((SUMIFS('Lista pracowników'!$A$5:$A$3576,'Lista pracowników'!$G$5:$G$3576,T$4,'Lista pracowników'!$B$5:$B$3576,$B29))/SUM($I29:$N29)),"-") -> - | U29: =IFERROR(((SUMIFS('Lista pracowników'!$A$5:$A$3576,'Lista pracowników'!$G$5:$G$3576,U$4,'Lista pracowników'!$B$5:$B$3576,$B29))/SUM($I29:$N29)),"-") -> -
A30: 25 | F30: =IF(E30>'Lista pracowników'!$M$4,"-",VLOOKUP($E30,'Siatka płac'!$B$6:$E$17,3,FALSE)) -> 0 | G30: =IF(E30>'Lista pracowników'!$M$4,"-",VLOOKUP($E30,'Siatka płac'!$B$6:$E$17,4,FALSE)) -> 0 | H30: =SUMIFS('Lista pracowników'!$A$5:$A$8386,'Lista pracowników'!$B$5:$B$8386,$B30) -> 0 | I30: =SUMIFS('Lista pracowników'!$A$5:$A$3576,'Lista pracowników'!$G$5:$G$3576,I$4,'Lista pracowników'!$B$5:$B$3576,$B30) -> 0 | J30: =SUMIFS('Lista pracowników'!$A$5:$A$3576,'Lista pracowników'!$G$5:$G$3576,J$4,'Lista pracowników'!$B$5:$B$3576,$B30) -> 0 | K30: =SUMIFS('Lista pracowników'!$A$5:$A$3576,'Lista pracowników'!$G$5:$G$3576,K$4,'Lista pracowników'!$B$5:$B$3576,$B30) -> 0 | L30: =SUMIFS('Lista pracowników'!$A$5:$A$3576,'Lista pracowników'!$G$5:$G$3576,L$4,'Lista pracowników'!$B$5:$B$3576,$B30) -> 0 | M30: =SUMIFS('Lista pracowników'!$A$5:$A$3576,'Lista pracowników'!$G$5:$G$3576,M$4,'Lista pracowników'!$B$5:$B$3576,$B30) -> 0 | N30: =SUMIFS('Lista pracowników'!$A$5:$A$3576,'Lista pracowników'!$G$5:$G$3576,N$4,'Lista pracowników'!$B$5:$B$3576,$B30) -> 0 | P30: =IFERROR(((SUMIFS('Lista pracowników'!$A$5:$A$3576,'Lista pracowników'!$G$5:$G$3576,P$4,'Lista pracowników'!$B$5:$B$3576,$B30))/SUM($I30:$N30)),"-") -> - | Q30: =IFERROR(((SUMIFS('Lista pracowników'!$A$5:$A$3576,'Lista pracowników'!$G$5:$G$3576,Q$4,'Lista pracowników'!$B$5:$B$3576,$B30))/SUM($I30:$N30)),"-") -> - | R30: =IFERROR(((SUMIFS('Lista pracowników'!$A$5:$A$3576,'Lista pracowników'!$G$5:$G$3576,R$4,'Lista pracowników'!$B$5:$B$3576,$B30))/(SUM($I30:$N30))),"-") -> - | S30: =IFERROR(((SUMIFS('Lista pracowników'!$A$5:$A$3576,'Lista pracowników'!$G$5:$G$3576,S$4,'Lista pracowników'!$B$5:$B$3576,$B30))/SUM($I30:$N30)),"-") -> - | T30: =IFERROR(((SUMIFS('Lista pracowników'!$A$5:$A$3576,'Lista pracowników'!$G$5:$G$3576,T$4,'Lista pracowników'!$B$5:$B$3576,$B30))/SUM($I30:$N30)),"-") -> - | U30: =IFERROR(((SUMIFS('Lista pracowników'!$A$5:$A$3576,'Lista pracowników'!$G$5:$G$3576,U$4,'Lista pracowników'!$B$5:$B$3576,$B30))/SUM($I30:$N30)),"-") -> -
A31: 26 | F31: =IF(E31>'Lista pracowników'!$M$4,"-",VLOOKUP($E31,'Siatka płac'!$B$6:$E$17,3,FALSE)) -> 0 | G31: =IF(E31>'Lista pracowników'!$M$4,"-",VLOOKUP($E31,'Siatka płac'!$B$6:$E$17,4,FALSE)) -> 0 | H31: =SUMIFS('Lista pracowników'!$A$5:$A$8386,'Lista pracowników'!$B$5:$B$8386,$B31) -> 0 | I31: =SUMIFS('Lista pracowników'!$A$5:$A$3576,'Lista pracowników'!$G$5:$G$3576,I$4,'Lista pracowników'!$B$5:$B$3576,$B31) -> 0 | J31: =SUMIFS('Lista pracowników'!$A$5:$A$3576,'Lista pracowników'!$G$5:$G$3576,J$4,'Lista pracowników'!$B$5:$B$3576,$B31) -> 0 | K31: =SUMIFS('Lista pracowników'!$A$5:$A$3576,'Lista pracowników'!$G$5:$G$3576,K$4,'Lista pracowników'!$B$5:$B$3576,$B31) -> 0 | L31: =SUMIFS('Lista pracowników'!$A$5:$A$3576,'Lista pracowników'!$G$5:$G$3576,L$4,'Lista pracowników'!$B$5:$B$3576,$B31) -> 0 | M31: =SUMIFS('Lista pracowników'!$A$5:$A$3576,'Lista pracowników'!$G$5:$G$3576,M$4,'Lista pracowników'!$B$5:$B$3576,$B31) -> 0 | N31: =SUMIFS('Lista pracowników'!$A$5:$A$3576,'Lista pracowników'!$G$5:$G$3576,N$4,'Lista pracowników'!$B$5:$B$3576,$B31) -> 0 | P31: =IFERROR(((SUMIFS('Lista pracowników'!$A$5:$A$3576,'Lista pracowników'!$G$5:$G$3576,P$4,'Lista pracowników'!$B$5:$B$3576,$B31))/SUM($I31:$N31)),"-") -> - | Q31: =IFERROR(((SUMIFS('Lista pracowników'!$A$5:$A$3576,'Lista pracowników'!$G$5:$G$3576,Q$4,'Lista pracowników'!$B$5:$B$3576,$B31))/SUM($I31:$N31)),"-") -> - | R31: =IFERROR(((SUMIFS('Lista pracowników'!$A$5:$A$3576,'Lista pracowników'!$G$5:$G$3576,R$4,'Lista pracowników'!$B$5:$B$3576,$B31))/(SUM($I31:$N31))),"-") -> - | S31: =IFERROR(((SUMIFS('Lista pracowników'!$A$5:$A$3576,'Lista pracowników'!$G$5:$G$3576,S$4,'Lista pracowników'!$B$5:$B$3576,$B31))/SUM($I31:$N31)),"-") -> - | T31: =IFERROR(((SUMIFS('Lista pracowników'!$A$5:$A$3576,'Lista pracowników'!$G$5:$G$3576,T$4,'Lista pracowników'!$B$5:$B$3576,$B31))/SUM($I31:$N31)),"-") -> - | U31: =IFERROR(((SUMIFS('Lista pracowników'!$A$5:$A$3576,'Lista pracowników'!$G$5:$G$3576,U$4,'Lista pracowników'!$B$5:$B$3576,$B31))/SUM($I31:$N31)),"-") -> -
A32: 27 | F32: =IF(E32>'Lista pracowników'!$M$4,"-",VLOOKUP($E32,'Siatka płac'!$B$6:$E$17,3,FALSE)) -> 0 | G32: =IF(E32>'Lista pracowników'!$M$4,"-",VLOOKUP($E32,'Siatka płac'!$B$6:$E$17,4,FALSE)) -> 0 | H32: =SUMIFS('Lista pracowników'!$A$5:$A$8386,'Lista pracowników'!$B$5:$B$8386,$B32) -> 0 | I32: =SUMIFS('Lista pracowników'!$A$5:$A$3576,'Lista pracowników'!$G$5:$G$3576,I$4,'Lista pracowników'!$B$5:$B$3576,$B32) -> 0 | J32: =SUMIFS('Lista pracowników'!$A$5:$A$3576,'Lista pracowników'!$G$5:$G$3576,J$4,'Lista pracowników'!$B$5:$B$3576,$B32) -> 0 | K32: =SUMIFS('Lista pracowników'!$A$5:$A$3576,'Lista pracowników'!$G$5:$G$3576,K$4,'Lista pracowników'!$B$5:$B$3576,$B32) -> 0 | L32: =SUMIFS('Lista pracowników'!$A$5:$A$3576,'Lista pracowników'!$G$5:$G$3576,L$4,'Lista pracowników'!$B$5:$B$3576,$B32) -> 0 | M32: =SUMIFS('Lista pracowników'!$A$5:$A$3576,'Lista pracowników'!$G$5:$G$3576,M$4,'Lista pracowników'!$B$5:$B$3576,$B32) -> 0 | N32: =SUMIFS('Lista pracowników'!$A$5:$A$3576,'Lista pracowników'!$G$5:$G$3576,N$4,'Lista pracowników'!$B$5:$B$3576,$B32) -> 0 | P32: =IFERROR(((SUMIFS('Lista pracowników'!$A$5:$A$3576,'Lista pracowników'!$G$5:$G$3576,P$4,'Lista pracowników'!$B$5:$B$3576,$B32))/SUM($I32:$N32)),"-") -> - | Q32: =IFERROR(((SUMIFS('Lista pracowników'!$A$5:$A$3576,'Lista pracowników'!$G$5:$G$3576,Q$4,'Lista pracowników'!$B$5:$B$3576,$B32))/SUM($I32:$N32)),"-") -> - | R32: =IFERROR(((SUMIFS('Lista pracowników'!$A$5:$A$3576,'Lista pracowników'!$G$5:$G$3576,R$4,'Lista pracowników'!$B$5:$B$3576,$B32))/(SUM($I32:$N32))),"-") -> - | S32: =IFERROR(((SUMIFS('Lista pracowników'!$A$5:$A$3576,'Lista pracowników'!$G$5:$G$3576,S$4,'Lista pracowników'!$B$5:$B$3576,$B32))/SUM($I32:$N32)),"-") -> - | T32: =IFERROR(((SUMIFS('Lista pracowników'!$A$5:$A$3576,'Lista pracowników'!$G$5:$G$3576,T$4,'Lista pracowników'!$B$5:$B$3576,$B32))/SUM($I32:$N32)),"-") -> - | U32: =IFERROR(((SUMIFS('Lista pracowników'!$A$5:$A$3576,'Lista pracowników'!$G$5:$G$3576,U$4,'Lista pracowników'!$B$5:$B$3576,$B32))/SUM($I32:$N32)),"-") -> -
A33: 28 | F33: =IF(E33>'Lista pracowników'!$M$4,"-",VLOOKUP($E33,'Siatka płac'!$B$6:$E$17,3,FALSE)) -> 0 | G33: =IF(E33>'Lista pracowników'!$M$4,"-",VLOOKUP($E33,'Siatka płac'!$B$6:$E$17,4,FALSE)) -> 0 | H33: =SUMIFS('Lista pracowników'!$A$5:$A$8386,'Lista pracowników'!$B$5:$B$8386,$B33) -> 0 | I33: =SUMIFS('Lista pracowników'!$A$5:$A$3576,'Lista pracowników'!$G$5:$G$3576,I$4,'Lista pracowników'!$B$5:$B$3576,$B33) -> 0 | J33: =SUMIFS('Lista pracowników'!$A$5:$A$3576,'Lista pracowników'!$G$5:$G$3576,J$4,'Lista pracowników'!$B$5:$B$3576,$B33) -> 0 | K33: =SUMIFS('Lista pracowników'!$A$5:$A$3576,'Lista pracowników'!$G$5:$G$3576,K$4,'Lista pracowników'!$B$5:$B$3576,$B33) -> 0 | L33: =SUMIFS('Lista pracowników'!$A$5:$A$3576,'Lista pracowników'!$G$5:$G$3576,L$4,'Lista pracowników'!$B$5:$B$3576,$B33) -> 0 | M33: =SUMIFS('Lista pracowników'!$A$5:$A$3576,'Lista pracowników'!$G$5:$G$3576,M$4,'Lista pracowników'!$B$5:$B$3576,$B33) -> 0 | N33: =SUMIFS('Lista pracowników'!$A$5:$A$3576,'Lista pracowników'!$G$5:$G$3576,N$4,'Lista pracowników'!$B$5:$B$3576,$B33) -> 0 | P33: =IFERROR(((SUMIFS('Lista pracowników'!$A$5:$A$3576,'Lista pracowników'!$G$5:$G$3576,P$4,'Lista pracowników'!$B$5:$B$3576,$B33))/SUM($I33:$N33)),"-") -> - | Q33: =IFERROR(((SUMIFS('Lista pracowników'!$A$5:$A$3576,'Lista pracowników'!$G$5:$G$3576,Q$4,'Lista pracowników'!$B$5:$B$3576,$B33))/SUM($I33:$N33)),"-") -> - | R33: =IFERROR(((SUMIFS('Lista pracowników'!$A$5:$A$3576,'Lista pracowników'!$G$5:$G$3576,R$4,'Lista pracowników'!$B$5:$B$3576,$B33))/(SUM($I33:$N33))),"-") -> - | S33: =IFERROR(((SUMIFS('Lista pracowników'!$A$5:$A$3576,'Lista pracowników'!$G$5:$G$3576,S$4,'Lista pracowników'!$B$5:$B$3576,$B33))/SUM($I33:$N33)),"-") -> - | T33: =IFERROR(((SUMIFS('Lista pracowników'!$A$5:$A$3576,'Lista pracowników'!$G$5:$G$3576,T$4,'Lista pracowników'!$B$5:$B$3576,$B33))/SUM($I33:$N33)),"-") -> - | U33: =IFERROR(((SUMIFS('Lista pracowników'!$A$5:$A$3576,'Lista pracowników'!$G$5:$G$3576,U$4,'Lista pracowników'!$B$5:$B$3576,$B33))/SUM($I33:$N33)),"-") -> -
A34: 29 | F34: =IF(E34>'Lista pracowników'!$M$4,"-",VLOOKUP($E34,'Siatka płac'!$B$6:$E$17,3,FALSE)) -> 0 | G34: =IF(E34>'Lista pracowników'!$M$4,"-",VLOOKUP($E34,'Siatka płac'!$B$6:$E$17,4,FALSE)) -> 0 | H34: =SUMIFS('Lista pracowników'!$A$5:$A$8386,'Lista pracowników'!$B$5:$B$8386,$B34) -> 0 | I34: =SUMIFS('Lista pracowników'!$A$5:$A$3576,'Lista pracowników'!$G$5:$G$3576,I$4,'Lista pracowników'!$B$5:$B$3576,$B34) -> 0 | J34: =SUMIFS('Lista pracowników'!$A$5:$A$3576,'Lista pracowników'!$G$5:$G$3576,J$4,'Lista pracowników'!$B$5:$B$3576,$B34) -> 0 | K34: =SUMIFS('Lista pracowników'!$A$5:$A$3576,'Lista pracowników'!$G$5:$G$3576,K$4,'Lista pracowników'!$B$5:$B$3576,$B34) -> 0 | L34: =SUMIFS('Lista pracowników'!$A$5:$A$3576,'Lista pracowników'!$G$5:$G$3576,L$4,'Lista pracowników'!$B$5:$B$3576,$B34) -> 0 | M34: =SUMIFS('Lista pracowników'!$A$5:$A$3576,'Lista pracowników'!$G$5:$G$3576,M$4,'Lista pracowników'!$B$5:$B$3576,$B34) -> 0 | N34: =SUMIFS('Lista pracowników'!$A$5:$A$3576,'Lista pracowników'!$G$5:$G$3576,N$4,'Lista pracowników'!$B$5:$B$3576,$B34) -> 0 | P34: =IFERROR(((SUMIFS('Lista pracowników'!$A$5:$A$3576,'Lista pracowników'!$G$5:$G$3576,P$4,'Lista pracowników'!$B$5:$B$3576,$B34))/SUM($I34:$N34)),"-") -> - | Q34: =IFERROR(((SUMIFS('Lista pracowników'!$A$5:$A$3576,'Lista pracowników'!$G$5:$G$3576,Q$4,'Lista pracowników'!$B$5:$B$3576,$B34))/SUM($I34:$N34)),"-") -> - | R34: =IFERROR(((SUMIFS('Lista pracowników'!$A$5:$A$3576,'Lista pracowników'!$G$5:$G$3576,R$4,'Lista pracowników'!$B$5:$B$3576,$B34))/(SUM($I34:$N34))),"-") -> - | S34: =IFERROR(((SUMIFS('Lista pracowników'!$A$5:$A$3576,'Lista pracowników'!$G$5:$G$3576,S$4,'Lista pracowników'!$B$5:$B$3576,$B34))/SUM($I34:$N34)),"-") -> - | T34: =IFERROR(((SUMIFS('Lista pracowników'!$A$5:$A$3576,'Lista pracowników'!$G$5:$G$3576,T$4,'Lista pracowników'!$B$5:$B$3576,$B34))/SUM($I34:$N34)),"-") -> - | U34: =IFERROR(((SUMIFS('Lista pracowników'!$A$5:$A$3576,'Lista pracowników'!$G$5:$G$3576,U$4,'Lista pracowników'!$B$5:$B$3576,$B34))/SUM($I34:$N34)),"-") -> -
A35: 30 | F35: =IF(E35>'Lista pracowników'!$M$4,"-",VLOOKUP($E35,'Siatka płac'!$B$6:$E$17,3,FALSE)) -> 0 | G35: =IF(E35>'Lista pracowników'!$M$4,"-",VLOOKUP($E35,'Siatka płac'!$B$6:$E$17,4,FALSE)) -> 0 | H35: =SUMIFS('Lista pracowników'!$A$5:$A$8386,'Lista pracowników'!$B$5:$B$8386,$B35) -> 0 | I35: =SUMIFS('Lista pracowników'!$A$5:$A$3576,'Lista pracowników'!$G$5:$G$3576,I$4,'Lista pracowników'!$B$5:$B$3576,$B35) -> 0 | J35: =SUMIFS('Lista pracowników'!$A$5:$A$3576,'Lista pracowników'!$G$5:$G$3576,J$4,'Lista pracowników'!$B$5:$B$3576,$B35) -> 0 | K35: =SUMIFS('Lista pracowników'!$A$5:$A$3576,'Lista pracowników'!$G$5:$G$3576,K$4,'Lista pracowników'!$B$5:$B$3576,$B35) -> 0 | L35: =SUMIFS('Lista pracowników'!$A$5:$A$3576,'Lista pracowników'!$G$5:$G$3576,L$4,'Lista pracowników'!$B$5:$B$3576,$B35) -> 0 | M35: =SUMIFS('Lista pracowników'!$A$5:$A$3576,'Lista pracowników'!$G$5:$G$3576,M$4,'Lista pracowników'!$B$5:$B$3576,$B35) -> 0 | N35: =SUMIFS('Lista pracowników'!$A$5:$A$3576,'Lista pracowników'!$G$5:$G$3576,N$4,'Lista pracowników'!$B$5:$B$3576,$B35) -> 0 | P35: =IFERROR(((SUMIFS('Lista pracowników'!$A$5:$A$3576,'Lista pracowników'!$G$5:$G$3576,P$4,'Lista pracowników'!$B$5:$B$3576,$B35))/SUM($I35:$N35)),"-") -> - | Q35: =IFERROR(((SUMIFS('Lista pracowników'!$A$5:$A$3576,'Lista pracowników'!$G$5:$G$3576,Q$4,'Lista pracowników'!$B$5:$B$3576,$B35))/SUM($I35:$N35)),"-") -> - | R35: =IFERROR(((SUMIFS('Lista pracowników'!$A$5:$A$3576,'Lista pracowników'!$G$5:$G$3576,R$4,'Lista pracowników'!$B$5:$B$3576,$B35))/(SUM($I35:$N35))),"-") -> - | S35: =IFERROR(((SUMIFS('Lista pracowników'!$A$5:$A$3576,'Lista pracowników'!$G$5:$G$3576,S$4,'Lista pracowników'!$B$5:$B$3576,$B35))/SUM($I35:$N35)),"-") -> - | T35: =IFERROR(((SUMIFS('Lista pracowników'!$A$5:$A$3576,'Lista pracowników'!$G$5:$G$3576,T$4,'Lista pracowników'!$B$5:$B$3576,$B35))/SUM($I35:$N35)),"-") -> - | U35: =IFERROR(((SUMIFS('Lista pracowników'!$A$5:$A$3576,'Lista pracowników'!$G$5:$G$3576,U$4,'Lista pracowników'!$B$5:$B$3576,$B35))/SUM($I35:$N35)),"-") -> -
A36: 31 | F36: =IF(E36>'Lista pracowników'!$M$4,"-",VLOOKUP($E36,'Siatka płac'!$B$6:$E$17,3,FALSE)) -> 0 | G36: =IF(E36>'Lista pracowników'!$M$4,"-",VLOOKUP($E36,'Siatka płac'!$B$6:$E$17,4,FALSE)) -> 0 | H36: =SUMIFS('Lista pracowników'!$A$5:$A$8386,'Lista pracowników'!$B$5:$B$8386,$B36) -> 0 | I36: =SUMIFS('Lista pracowników'!$A$5:$A$3576,'Lista pracowników'!$G$5:$G$3576,I$4,'Lista pracowników'!$B$5:$B$3576,$B36) -> 0 | J36: =SUMIFS('Lista pracowników'!$A$5:$A$3576,'Lista pracowników'!$G$5:$G$3576,J$4,'Lista pracowników'!$B$5:$B$3576,$B36) -> 0 | K36: =SUMIFS('Lista pracowników'!$A$5:$A$3576,'Lista pracowników'!$G$5:$G$3576,K$4,'Lista pracowników'!$B$5:$B$3576,$B36) -> 0 | L36: =SUMIFS('Lista pracowników'!$A$5:$A$3576,'Lista pracowników'!$G$5:$G$3576,L$4,'Lista pracowników'!$B$5:$B$3576,$B36) -> 0 | M36: =SUMIFS('Lista pracowników'!$A$5:$A$3576,'Lista pracowników'!$G$5:$G$3576,M$4,'Lista pracowników'!$B$5:$B$3576,$B36) -> 0 | N36: =SUMIFS('Lista pracowników'!$A$5:$A$3576,'Lista pracowników'!$G$5:$G$3576,N$4,'Lista pracowników'!$B$5:$B$3576,$B36) -> 0 | P36: =IFERROR(((SUMIFS('Lista pracowników'!$A$5:$A$3576,'Lista pracowników'!$G$5:$G$3576,P$4,'Lista pracowników'!$B$5:$B$3576,$B36))/SUM($I36:$N36)),"-") -> - | Q36: =IFERROR(((SUMIFS('Lista pracowników'!$A$5:$A$3576,'Lista pracowników'!$G$5:$G$3576,Q$4,'Lista pracowników'!$B$5:$B$3576,$B36))/SUM($I36:$N36)),"-") -> - | R36: =IFERROR(((SUMIFS('Lista pracowników'!$A$5:$A$3576,'Lista pracowników'!$G$5:$G$3576,R$4,'Lista pracowników'!$B$5:$B$3576,$B36))/(SUM($I36:$N36))),"-") -> - | S36: =IFERROR(((SUMIFS('Lista pracowników'!$A$5:$A$3576,'Lista pracowników'!$G$5:$G$3576,S$4,'Lista pracowników'!$B$5:$B$3576,$B36))/SUM($I36:$N36)),"-") -> - | T36: =IFERROR(((SUMIFS('Lista pracowników'!$A$5:$A$3576,'Lista pracowników'!$G$5:$G$3576,T$4,'Lista pracowników'!$B$5:$B$3576,$B36))/SUM($I36:$N36)),"-") -> - | U36: =IFERROR(((SUMIFS('Lista pracowników'!$A$5:$A$3576,'Lista pracowników'!$G$5:$G$3576,U$4,'Lista pracowników'!$B$5:$B$3576,$B36))/SUM($I36:$N36)),"-") -> -
A37: 32 | F37: =IF(E37>'Lista pracowników'!$M$4,"-",VLOOKUP($E37,'Siatka płac'!$B$6:$E$17,3,FALSE)) -> 0 | G37: =IF(E37>'Lista pracowników'!$M$4,"-",VLOOKUP($E37,'Siatka płac'!$B$6:$E$17,4,FALSE)) -> 0 | H37: =SUMIFS('Lista pracowników'!$A$5:$A$8386,'Lista pracowników'!$B$5:$B$8386,$B37) -> 0 | I37: =SUMIFS('Lista pracowników'!$A$5:$A$3576,'Lista pracowników'!$G$5:$G$3576,I$4,'Lista pracowników'!$B$5:$B$3576,$B37) -> 0 | J37: =SUMIFS('Lista pracowników'!$A$5:$A$3576,'Lista pracowników'!$G$5:$G$3576,J$4,'Lista pracowników'!$B$5:$B$3576,$B37) -> 0 | K37: =SUMIFS('Lista pracowników'!$A$5:$A$3576,'Lista pracowników'!$G$5:$G$3576,K$4,'Lista pracowników'!$B$5:$B$3576,$B37) -> 0 | L37: =SUMIFS('Lista pracowników'!$A$5:$A$3576,'Lista pracowników'!$G$5:$G$3576,L$4,'Lista pracowników'!$B$5:$B$3576,$B37) -> 0 | M37: =SUMIFS('Lista pracowników'!$A$5:$A$3576,'Lista pracowników'!$G$5:$G$3576,M$4,'Lista pracowników'!$B$5:$B$3576,$B37) -> 0 | N37: =SUMIFS('Lista pracowników'!$A$5:$A$3576,'Lista pracowników'!$G$5:$G$3576,N$4,'Lista pracowników'!$B$5:$B$3576,$B37) -> 0 | P37: =IFERROR(((SUMIFS('Lista pracowników'!$A$5:$A$3576,'Lista pracowników'!$G$5:$G$3576,P$4,'Lista pracowników'!$B$5:$B$3576,$B37))/SUM($I37:$N37)),"-") -> - | Q37: =IFERROR(((SUMIFS('Lista pracowników'!$A$5:$A$3576,'Lista pracowników'!$G$5:$G$3576,Q$4,'Lista pracowników'!$B$5:$B$3576,$B37))/SUM($I37:$N37)),"-") -> - | R37: =IFERROR(((SUMIFS('Lista pracowników'!$A$5:$A$3576,'Lista pracowników'!$G$5:$G$3576,R$4,'Lista pracowników'!$B$5:$B$3576,$B37))/(SUM($I37:$N37))),"-") -> - | S37: =IFERROR(((SUMIFS('Lista pracowników'!$A$5:$A$3576,'Lista pracowników'!$G$5:$G$3576,S$4,'Lista pracowników'!$B$5:$B$3576,$B37))/SUM($I37:$N37)),"-") -> - | T37: =IFERROR(((SUMIFS('Lista pracowników'!$A$5:$A$3576,'Lista pracowników'!$G$5:$G$3576,T$4,'Lista pracowników'!$B$5:$B$3576,$B37))/SUM($I37:$N37)),"-") -> - | U37: =IFERROR(((SUMIFS('Lista pracowników'!$A$5:$A$3576,'Lista pracowników'!$G$5:$G$3576,U$4,'Lista pracowników'!$B$5:$B$3576,$B37))/SUM($I37:$N37)),"-") -> -
A38: 33 | F38: =IF(E38>'Lista pracowników'!$M$4,"-",VLOOKUP($E38,'Siatka płac'!$B$6:$E$17,3,FALSE)) -> 0 | G38: =IF(E38>'Lista pracowników'!$M$4,"-",VLOOKUP($E38,'Siatka płac'!$B$6:$E$17,4,FALSE)) -> 0 | H38: =SUMIFS('Lista pracowników'!$A$5:$A$8386,'Lista pracowników'!$B$5:$B$8386,$B38) -> 0 | I38: =SUMIFS('Lista pracowników'!$A$5:$A$3576,'Lista pracowników'!$G$5:$G$3576,I$4,'Lista pracowników'!$B$5:$B$3576,$B38) -> 0 | J38: =SUMIFS('Lista pracowników'!$A$5:$A$3576,'Lista pracowników'!$G$5:$G$3576,J$4,'Lista pracowników'!$B$5:$B$3576,$B38) -> 0 | K38: =SUMIFS('Lista pracowników'!$A$5:$A$3576,'Lista pracowników'!$G$5:$G$3576,K$4,'Lista pracowników'!$B$5:$B$3576,$B38) -> 0 | L38: =SUMIFS('Lista pracowników'!$A$5:$A$3576,'Lista pracowników'!$G$5:$G$3576,L$4,'Lista pracowników'!$B$5:$B$3576,$B38) -> 0 | M38: =SUMIFS('Lista pracowników'!$A$5:$A$3576,'Lista pracowników'!$G$5:$G$3576,M$4,'Lista pracowników'!$B$5:$B$3576,$B38) -> 0 | N38: =SUMIFS('Lista pracowników'!$A$5:$A$3576,'Lista pracowników'!$G$5:$G$3576,N$4,'Lista pracowników'!$B$5:$B$3576,$B38) -> 0 | P38: =IFERROR(((SUMIFS('Lista pracowników'!$A$5:$A$3576,'Lista pracowników'!$G$5:$G$3576,P$4,'Lista pracowników'!$B$5:$B$3576,$B38))/SUM($I38:$N38)),"-") -> - | Q38: =IFERROR(((SUMIFS('Lista pracowników'!$A$5:$A$3576,'Lista pracowników'!$G$5:$G$3576,Q$4,'Lista pracowników'!$B$5:$B$3576,$B38))/SUM($I38:$N38)),"-") -> - | R38: =IFERROR(((SUMIFS('Lista pracowników'!$A$5:$A$3576,'Lista pracowników'!$G$5:$G$3576,R$4,'Lista pracowników'!$B$5:$B$3576,$B38))/(SUM($I38:$N38))),"-") -> - | S38: =IFERROR(((SUMIFS('Lista pracowników'!$A$5:$A$3576,'Lista pracowników'!$G$5:$G$3576,S$4,'Lista pracowników'!$B$5:$B$3576,$B38))/SUM($I38:$N38)),"-") -> - | T38: =IFERROR(((SUMIFS('Lista pracowników'!$A$5:$A$3576,'Lista pracowników'!$G$5:$G$3576,T$4,'Lista pracowników'!$B$5:$B$3576,$B38))/SUM($I38:$N38)),"-") -> - | U38: =IFERROR(((SUMIFS('Lista pracowników'!$A$5:$A$3576,'Lista pracowników'!$G$5:$G$3576,U$4,'Lista pracowników'!$B$5:$B$3576,$B38))/SUM($I38:$N38)),"-") -> -
A39: 34 | F39: =IF(E39>'Lista pracowników'!$M$4,"-",VLOOKUP($E39,'Siatka płac'!$B$6:$E$17,3,FALSE)) -> 0 | G39: =IF(E39>'Lista pracowników'!$M$4,"-",VLOOKUP($E39,'Siatka płac'!$B$6:$E$17,4,FALSE)) -> 0 | H39: =SUMIFS('Lista pracowników'!$A$5:$A$8386,'Lista pracowników'!$B$5:$B$8386,$B39) -> 0 | I39: =SUMIFS('Lista pracowników'!$A$5:$A$3576,'Lista pracowników'!$G$5:$G$3576,I$4,'Lista pracowników'!$B$5:$B$3576,$B39) -> 0 | J39: =SUMIFS('Lista pracowników'!$A$5:$A$3576,'Lista pracowników'!$G$5:$G$3576,J$4,'Lista pracowników'!$B$5:$B$3576,$B39) -> 0 | K39: =SUMIFS('Lista pracowników'!$A$5:$A$3576,'Lista pracowników'!$G$5:$G$3576,K$4,'Lista pracowników'!$B$5:$B$3576,$B39) -> 0 | L39: =SUMIFS('Lista pracowników'!$A$5:$A$3576,'Lista pracowników'!$G$5:$G$3576,L$4,'Lista pracowników'!$B$5:$B$3576,$B39) -> 0 | M39: =SUMIFS('Lista pracowników'!$A$5:$A$3576,'Lista pracowników'!$G$5:$G$3576,M$4,'Lista pracowników'!$B$5:$B$3576,$B39) -> 0 | N39: =SUMIFS('Lista pracowników'!$A$5:$A$3576,'Lista pracowników'!$G$5:$G$3576,N$4,'Lista pracowników'!$B$5:$B$3576,$B39) -> 0 | P39: =IFERROR(((SUMIFS('Lista pracowników'!$A$5:$A$3576,'Lista pracowników'!$G$5:$G$3576,P$4,'Lista pracowników'!$B$5:$B$3576,$B39))/SUM($I39:$N39)),"-") -> - | Q39: =IFERROR(((SUMIFS('Lista pracowników'!$A$5:$A$3576,'Lista pracowników'!$G$5:$G$3576,Q$4,'Lista pracowników'!$B$5:$B$3576,$B39))/SUM($I39:$N39)),"-") -> - | R39: =IFERROR(((SUMIFS('Lista pracowników'!$A$5:$A$3576,'Lista pracowników'!$G$5:$G$3576,R$4,'Lista pracowników'!$B$5:$B$3576,$B39))/(SUM($I39:$N39))),"-") -> - | S39: =IFERROR(((SUMIFS('Lista pracowników'!$A$5:$A$3576,'Lista pracowników'!$G$5:$G$3576,S$4,'Lista pracowników'!$B$5:$B$3576,$B39))/SUM($I39:$N39)),"-") -> - | T39: =IFERROR(((SUMIFS('Lista pracowników'!$A$5:$A$3576,'Lista pracowników'!$G$5:$G$3576,T$4,'Lista pracowników'!$B$5:$B$3576,$B39))/SUM($I39:$N39)),"-") -> - | U39: =IFERROR(((SUMIFS('Lista pracowników'!$A$5:$A$3576,'Lista pracowników'!$G$5:$G$3576,U$4,'Lista pracowników'!$B$5:$B$3576,$B39))/SUM($I39:$N39)),"-") -> -
A40: 35 | F40: =IF(E40>'Lista pracowników'!$M$4,"-",VLOOKUP($E40,'Siatka płac'!$B$6:$E$17,3,FALSE)) -> 0 | G40: =IF(E40>'Lista pracowników'!$M$4,"-",VLOOKUP($E40,'Siatka płac'!$B$6:$E$17,4,FALSE)) -> 0 | H40: =SUMIFS('Lista pracowników'!$A$5:$A$8386,'Lista pracowników'!$B$5:$B$8386,$B40) -> 0 | I40: =SUMIFS('Lista pracowników'!$A$5:$A$3576,'Lista pracowników'!$G$5:$G$3576,I$4,'Lista pracowników'!$B$5:$B$3576,$B40) -> 0 | J40: =SUMIFS('Lista pracowników'!$A$5:$A$3576,'Lista pracowników'!$G$5:$G$3576,J$4,'Lista pracowników'!$B$5:$B$3576,$B40) -> 0 | K40: =SUMIFS('Lista pracowników'!$A$5:$A$3576,'Lista pracowników'!$G$5:$G$3576,K$4,'Lista pracowników'!$B$5:$B$3576,$B40) -> 0 | L40: =SUMIFS('Lista pracowników'!$A$5:$A$3576,'Lista pracowników'!$G$5:$G$3576,L$4,'Lista pracowników'!$B$5:$B$3576,$B40) -> 0 | M40: =SUMIFS('Lista pracowników'!$A$5:$A$3576,'Lista pracowników'!$G$5:$G$3576,M$4,'Lista pracowników'!$B$5:$B$3576,$B40) -> 0 | N40: =SUMIFS('Lista pracowników'!$A$5:$A$3576,'Lista pracowników'!$G$5:$G$3576,N$4,'Lista pracowników'!$B$5:$B$3576,$B40) -> 0 | P40: =IFERROR(((SUMIFS('Lista pracowników'!$A$5:$A$3576,'Lista pracowników'!$G$5:$G$3576,P$4,'Lista pracowników'!$B$5:$B$3576,$B40))/SUM($I40:$N40)),"-") -> - | Q40: =IFERROR(((SUMIFS('Lista pracowników'!$A$5:$A$3576,'Lista pracowników'!$G$5:$G$3576,Q$4,'Lista pracowników'!$B$5:$B$3576,$B40))/SUM($I40:$N40)),"-") -> - | R40: =IFERROR(((SUMIFS('Lista pracowników'!$A$5:$A$3576,'Lista pracowników'!$G$5:$G$3576,R$4,'Lista pracowników'!$B$5:$B$3576,$B40))/(SUM($I40:$N40))),"-") -> - | S40: =IFERROR(((SUMIFS('Lista pracowników'!$A$5:$A$3576,'Lista pracowników'!$G$5:$G$3576,S$4,'Lista pracowników'!$B$5:$B$3576,$B40))/SUM($I40:$N40)),"-") -> - | T40: =IFERROR(((SUMIFS('Lista pracowników'!$A$5:$A$3576,'Lista pracowników'!$G$5:$G$3576,T$4,'Lista pracowników'!$B$5:$B$3576,$B40))/SUM($I40:$N40)),"-") -> - | U40: =IFERROR(((SUMIFS('Lista pracowników'!$A$5:$A$3576,'Lista pracowników'!$G$5:$G$3576,U$4,'Lista pracowników'!$B$5:$B$3576,$B40))/SUM($I40:$N40)),"-") -> -
A41: 36 | F41: =IF(E41>'Lista pracowników'!$M$4,"-",VLOOKUP($E41,'Siatka płac'!$B$6:$E$17,3,FALSE)) -> 0 | G41: =IF(E41>'Lista pracowników'!$M$4,"-",VLOOKUP($E41,'Siatka płac'!$B$6:$E$17,4,FALSE)) -> 0 | H41: =SUMIFS('Lista pracowników'!$A$5:$A$8386,'Lista pracowników'!$B$5:$B$8386,$B41) -> 0 | I41: =SUMIFS('Lista pracowników'!$A$5:$A$3576,'Lista pracowników'!$G$5:$G$3576,I$4,'Lista pracowników'!$B$5:$B$3576,$B41) -> 0 | J41: =SUMIFS('Lista pracowników'!$A$5:$A$3576,'Lista pracowników'!$G$5:$G$3576,J$4,'Lista pracowników'!$B$5:$B$3576,$B41) -> 0 | K41: =SUMIFS('Lista pracowników'!$A$5:$A$3576,'Lista pracowników'!$G$5:$G$3576,K$4,'Lista pracowników'!$B$5:$B$3576,$B41) -> 0 | L41: =SUMIFS('Lista pracowników'!$A$5:$A$3576,'Lista pracowników'!$G$5:$G$3576,L$4,'Lista pracowników'!$B$5:$B$3576,$B41) -> 0 | M41: =SUMIFS('Lista pracowników'!$A$5:$A$3576,'Lista pracowników'!$G$5:$G$3576,M$4,'Lista pracowników'!$B$5:$B$3576,$B41) -> 0 | N41: =SUMIFS('Lista pracowników'!$A$5:$A$3576,'Lista pracowników'!$G$5:$G$3576,N$4,'Lista pracowników'!$B$5:$B$3576,$B41) -> 0 | P41: =IFERROR(((SUMIFS('Lista pracowników'!$A$5:$A$3576,'Lista pracowników'!$G$5:$G$3576,P$4,'Lista pracowników'!$B$5:$B$3576,$B41))/SUM($I41:$N41)),"-") -> - | Q41: =IFERROR(((SUMIFS('Lista pracowników'!$A$5:$A$3576,'Lista pracowników'!$G$5:$G$3576,Q$4,'Lista pracowników'!$B$5:$B$3576,$B41))/SUM($I41:$N41)),"-") -> - | R41: =IFERROR(((SUMIFS('Lista pracowników'!$A$5:$A$3576,'Lista pracowników'!$G$5:$G$3576,R$4,'Lista pracowników'!$B$5:$B$3576,$B41))/(SUM($I41:$N41))),"-") -> - | S41: =IFERROR(((SUMIFS('Lista pracowników'!$A$5:$A$3576,'Lista pracowników'!$G$5:$G$3576,S$4,'Lista pracowników'!$B$5:$B$3576,$B41))/SUM($I41:$N41)),"-") -> - | T41: =IFERROR(((SUMIFS('Lista pracowników'!$A$5:$A$3576,'Lista pracowników'!$G$5:$G$3576,T$4,'Lista pracowników'!$B$5:$B$3576,$B41))/SUM($I41:$N41)),"-") -> - | U41: =IFERROR(((SUMIFS('Lista pracowników'!$A$5:$A$3576,'Lista pracowników'!$G$5:$G$3576,U$4,'Lista pracowników'!$B$5:$B$3576,$B41))/SUM($I41:$N41)),"-") -> -
A42: 37 | F42: =IF(E42>'Lista pracowników'!$M$4,"-",VLOOKUP($E42,'Siatka płac'!$B$6:$E$17,3,FALSE)) -> 0 | G42: =IF(E42>'Lista pracowników'!$M$4,"-",VLOOKUP($E42,'Siatka płac'!$B$6:$E$17,4,FALSE)) -> 0 | H42: =SUMIFS('Lista pracowników'!$A$5:$A$8386,'Lista pracowników'!$B$5:$B$8386,$B42) -> 0 | I42: =SUMIFS('Lista pracowników'!$A$5:$A$3576,'Lista pracowników'!$G$5:$G$3576,I$4,'Lista pracowników'!$B$5:$B$3576,$B42) -> 0 | J42: =SUMIFS('Lista pracowników'!$A$5:$A$3576,'Lista pracowników'!$G$5:$G$3576,J$4,'Lista pracowników'!$B$5:$B$3576,$B42) -> 0 | K42: =SUMIFS('Lista pracowników'!$A$5:$A$3576,'Lista pracowników'!$G$5:$G$3576,K$4,'Lista pracowników'!$B$5:$B$3576,$B42) -> 0 | L42: =SUMIFS('Lista pracowników'!$A$5:$A$3576,'Lista pracowników'!$G$5:$G$3576,L$4,'Lista pracowników'!$B$5:$B$3576,$B42) -> 0 | M42: =SUMIFS('Lista pracowników'!$A$5:$A$3576,'Lista pracowników'!$G$5:$G$3576,M$4,'Lista pracowników'!$B$5:$B$3576,$B42) -> 0 | N42: =SUMIFS('Lista pracowników'!$A$5:$A$3576,'Lista pracowników'!$G$5:$G$3576,N$4,'Lista pracowników'!$B$5:$B$3576,$B42) -> 0 | P42: =IFERROR(((SUMIFS('Lista pracowników'!$A$5:$A$3576,'Lista pracowników'!$G$5:$G$3576,P$4,'Lista pracowników'!$B$5:$B$3576,$B42))/SUM($I42:$N42)),"-") -> - | Q42: =IFERROR(((SUMIFS('Lista pracowników'!$A$5:$A$3576,'Lista pracowników'!$G$5:$G$3576,Q$4,'Lista pracowników'!$B$5:$B$3576,$B42))/SUM($I42:$N42)),"-") -> - | R42: =IFERROR(((SUMIFS('Lista pracowników'!$A$5:$A$3576,'Lista pracowników'!$G$5:$G$3576,R$4,'Lista pracowników'!$B$5:$B$3576,$B42))/(SUM($I42:$N42))),"-") -> - | S42: =IFERROR(((SUMIFS('Lista pracowników'!$A$5:$A$3576,'Lista pracowników'!$G$5:$G$3576,S$4,'Lista pracowników'!$B$5:$B$3576,$B42))/SUM($I42:$N42)),"-") -> - | T42: =IFERROR(((SUMIFS('Lista pracowników'!$A$5:$A$3576,'Lista pracowników'!$G$5:$G$3576,T$4,'Lista pracowników'!$B$5:$B$3576,$B42))/SUM($I42:$N42)),"-") -> - | U42: =IFERROR(((SUMIFS('Lista pracowników'!$A$5:$A$3576,'Lista pracowników'!$G$5:$G$3576,U$4,'Lista pracowników'!$B$5:$B$3576,$B42))/SUM($I42:$N42)),"-") -> -
A43: 38 | F43: =IF(E43>'Lista pracowników'!$M$4,"-",VLOOKUP($E43,'Siatka płac'!$B$6:$E$17,3,FALSE)) -> 0 | G43: =IF(E43>'Lista pracowników'!$M$4,"-",VLOOKUP($E43,'Siatka płac'!$B$6:$E$17,4,FALSE)) -> 0 | H43: =SUMIFS('Lista pracowników'!$A$5:$A$8386,'Lista pracowników'!$B$5:$B$8386,$B43) -> 0 | I43: =SUMIFS('Lista pracowników'!$A$5:$A$3576,'Lista pracowników'!$G$5:$G$3576,I$4,'Lista pracowników'!$B$5:$B$3576,$B43) -> 0 | J43: =SUMIFS('Lista pracowników'!$A$5:$A$3576,'Lista pracowników'!$G$5:$G$3576,J$4,'Lista pracowników'!$B$5:$B$3576,$B43) -> 0 | K43: =SUMIFS('Lista pracowników'!$A$5:$A$3576,'Lista pracowników'!$G$5:$G$3576,K$4,'Lista pracowników'!$B$5:$B$3576,$B43) -> 0 | L43: =SUMIFS('Lista pracowników'!$A$5:$A$3576,'Lista pracowników'!$G$5:$G$3576,L$4,'Lista pracowników'!$B$5:$B$3576,$B43) -> 0 | M43: =SUMIFS('Lista pracowników'!$A$5:$A$3576,'Lista pracowników'!$G$5:$G$3576,M$4,'Lista pracowników'!$B$5:$B$3576,$B43) -> 0 | N43: =SUMIFS('Lista pracowników'!$A$5:$A$3576,'Lista pracowników'!$G$5:$G$3576,N$4,'Lista pracowników'!$B$5:$B$3576,$B43) -> 0 | P43: =IFERROR(((SUMIFS('Lista pracowników'!$A$5:$A$3576,'Lista pracowników'!$G$5:$G$3576,P$4,'Lista pracowników'!$B$5:$B$3576,$B43))/SUM($I43:$N43)),"-") -> - | Q43: =IFERROR(((SUMIFS('Lista pracowników'!$A$5:$A$3576,'Lista pracowników'!$G$5:$G$3576,Q$4,'Lista pracowników'!$B$5:$B$3576,$B43))/SUM($I43:$N43)),"-") -> - | R43: =IFERROR(((SUMIFS('Lista pracowników'!$A$5:$A$3576,'Lista pracowników'!$G$5:$G$3576,R$4,'Lista pracowników'!$B$5:$B$3576,$B43))/(SUM($I43:$N43))),"-") -> - | S43: =IFERROR(((SUMIFS('Lista pracowników'!$A$5:$A$3576,'Lista pracowników'!$G$5:$G$3576,S$4,'Lista pracowników'!$B$5:$B$3576,$B43))/SUM($I43:$N43)),"-") -> - | T43: =IFERROR(((SUMIFS('Lista pracowników'!$A$5:$A$3576,'Lista pracowników'!$G$5:$G$3576,T$4,'Lista pracowników'!$B$5:$B$3576,$B43))/SUM($I43:$N43)),"-") -> - | U43: =IFERROR(((SUMIFS('Lista pracowników'!$A$5:$A$3576,'Lista pracowników'!$G$5:$G$3576,U$4,'Lista pracowników'!$B$5:$B$3576,$B43))/SUM($I43:$N43)),"-") -> -
A44: 39 | F44: =IF(E44>'Lista pracowników'!$M$4,"-",VLOOKUP($E44,'Siatka płac'!$B$6:$E$17,3,FALSE)) -> 0 | G44: =IF(E44>'Lista pracowników'!$M$4,"-",VLOOKUP($E44,'Siatka płac'!$B$6:$E$17,4,FALSE)) -> 0 | H44: =SUMIFS('Lista pracowników'!$A$5:$A$8386,'Lista pracowników'!$B$5:$B$8386,$B44) -> 0 | I44: =SUMIFS('Lista pracowników'!$A$5:$A$3576,'Lista pracowników'!$G$5:$G$3576,I$4,'Lista pracowników'!$B$5:$B$3576,$B44) -> 0 | J44: =SUMIFS('Lista pracowników'!$A$5:$A$3576,'Lista pracowników'!$G$5:$G$3576,J$4,'Lista pracowników'!$B$5:$B$3576,$B44) -> 0 | K44: =SUMIFS('Lista pracowników'!$A$5:$A$3576,'Lista pracowników'!$G$5:$G$3576,K$4,'Lista pracowników'!$B$5:$B$3576,$B44) -> 0 | L44: =SUMIFS('Lista pracowników'!$A$5:$A$3576,'Lista pracowników'!$G$5:$G$3576,L$4,'Lista pracowników'!$B$5:$B$3576,$B44) -> 0 | M44: =SUMIFS('Lista pracowników'!$A$5:$A$3576,'Lista pracowników'!$G$5:$G$3576,M$4,'Lista pracowników'!$B$5:$B$3576,$B44) -> 0 | N44: =SUMIFS('Lista pracowników'!$A$5:$A$3576,'Lista pracowników'!$G$5:$G$3576,N$4,'Lista pracowników'!$B$5:$B$3576,$B44) -> 0 | P44: =IFERROR(((SUMIFS('Lista pracowników'!$A$5:$A$3576,'Lista pracowników'!$G$5:$G$3576,P$4,'Lista pracowników'!$B$5:$B$3576,$B44))/SUM($I44:$N44)),"-") -> - | Q44: =IFERROR(((SUMIFS('Lista pracowników'!$A$5:$A$3576,'Lista pracowników'!$G$5:$G$3576,Q$4,'Lista pracowników'!$B$5:$B$3576,$B44))/SUM($I44:$N44)),"-") -> - | R44: =IFERROR(((SUMIFS('Lista pracowników'!$A$5:$A$3576,'Lista pracowników'!$G$5:$G$3576,R$4,'Lista pracowników'!$B$5:$B$3576,$B44))/(SUM($I44:$N44))),"-") -> - | S44: =IFERROR(((SUMIFS('Lista pracowników'!$A$5:$A$3576,'Lista pracowników'!$G$5:$G$3576,S$4,'Lista pracowników'!$B$5:$B$3576,$B44))/SUM($I44:$N44)),"-") -> - | T44: =IFERROR(((SUMIFS('Lista pracowników'!$A$5:$A$3576,'Lista pracowników'!$G$5:$G$3576,T$4,'Lista pracowników'!$B$5:$B$3576,$B44))/SUM($I44:$N44)),"-") -> - | U44: =IFERROR(((SUMIFS('Lista pracowników'!$A$5:$A$3576,'Lista pracowników'!$G$5:$G$3576,U$4,'Lista pracowników'!$B$5:$B$3576,$B44))/SUM($I44:$N44)),"-") -> -
A45: 40 | F45: =IF(E45>'Lista pracowników'!$M$4,"-",VLOOKUP($E45,'Siatka płac'!$B$6:$E$17,3,FALSE)) -> 0 | G45: =IF(E45>'Lista pracowników'!$M$4,"-",VLOOKUP($E45,'Siatka płac'!$B$6:$E$17,4,FALSE)) -> 0 | H45: =SUMIFS('Lista pracowników'!$A$5:$A$8386,'Lista pracowników'!$B$5:$B$8386,$B45) -> 0 | I45: =SUMIFS('Lista pracowników'!$A$5:$A$3576,'Lista pracowników'!$G$5:$G$3576,I$4,'Lista pracowników'!$B$5:$B$3576,$B45) -> 0 | J45: =SUMIFS('Lista pracowników'!$A$5:$A$3576,'Lista pracowników'!$G$5:$G$3576,J$4,'Lista pracowników'!$B$5:$B$3576,$B45) -> 0 | K45: =SUMIFS('Lista pracowników'!$A$5:$A$3576,'Lista pracowników'!$G$5:$G$3576,K$4,'Lista pracowników'!$B$5:$B$3576,$B45) -> 0 | L45: =SUMIFS('Lista pracowników'!$A$5:$A$3576,'Lista pracowników'!$G$5:$G$3576,L$4,'Lista pracowników'!$B$5:$B$3576,$B45) -> 0 | M45: =SUMIFS('Lista pracowników'!$A$5:$A$3576,'Lista pracowników'!$G$5:$G$3576,M$4,'Lista pracowników'!$B$5:$B$3576,$B45) -> 0 | N45: =SUMIFS('Lista pracowników'!$A$5:$A$3576,'Lista pracowników'!$G$5:$G$3576,N$4,'Lista pracowników'!$B$5:$B$3576,$B45) -> 0 | P45: =IFERROR(((SUMIFS('Lista pracowników'!$A$5:$A$3576,'Lista pracowników'!$G$5:$G$3576,P$4,'Lista pracowników'!$B$5:$B$3576,$B45))/SUM($I45:$N45)),"-") -> - | Q45: =IFERROR(((SUMIFS('Lista pracowników'!$A$5:$A$3576,'Lista pracowników'!$G$5:$G$3576,Q$4,'Lista pracowników'!$B$5:$B$3576,$B45))/SUM($I45:$N45)),"-") -> - | R45: =IFERROR(((SUMIFS('Lista pracowników'!$A$5:$A$3576,'Lista pracowników'!$G$5:$G$3576,R$4,'Lista pracowników'!$B$5:$B$3576,$B45))/(SUM($I45:$N45))),"-") -> - | S45: =IFERROR(((SUMIFS('Lista pracowników'!$A$5:$A$3576,'Lista pracowników'!$G$5:$G$3576,S$4,'Lista pracowników'!$B$5:$B$3576,$B45))/SUM($I45:$N45)),"-") -> - | T45: =IFERROR(((SUMIFS('Lista pracowników'!$A$5:$A$3576,'Lista pracowników'!$G$5:$G$3576,T$4,'Lista pracowników'!$B$5:$B$3576,$B45))/SUM($I45:$N45)),"-") -> - | U45: =IFERROR(((SUMIFS('Lista pracowników'!$A$5:$A$3576,'Lista pracowników'!$G$5:$G$3576,U$4,'Lista pracowników'!$B$5:$B$3576,$B45))/SUM($I45:$N45)),"-") -> -
A46: 41 | F46: =IF(E46>'Lista pracowników'!$M$4,"-",VLOOKUP($E46,'Siatka płac'!$B$6:$E$17,3,FALSE)) -> 0 | G46: =IF(E46>'Lista pracowników'!$M$4,"-",VLOOKUP($E46,'Siatka płac'!$B$6:$E$17,4,FALSE)) -> 0 | H46: =SUMIFS('Lista pracowników'!$A$5:$A$8386,'Lista pracowników'!$B$5:$B$8386,$B46) -> 0 | I46: =SUMIFS('Lista pracowników'!$A$5:$A$3576,'Lista pracowników'!$G$5:$G$3576,I$4,'Lista pracowników'!$B$5:$B$3576,$B46) -> 0 | J46: =SUMIFS('Lista pracowników'!$A$5:$A$3576,'Lista pracowników'!$G$5:$G$3576,J$4,'Lista pracowników'!$B$5:$B$3576,$B46) -> 0 | K46: =SUMIFS('Lista pracowników'!$A$5:$A$3576,'Lista pracowników'!$G$5:$G$3576,K$4,'Lista pracowników'!$B$5:$B$3576,$B46) -> 0 | L46: =SUMIFS('Lista pracowników'!$A$5:$A$3576,'Lista pracowników'!$G$5:$G$3576,L$4,'Lista pracowników'!$B$5:$B$3576,$B46) -> 0 | M46: =SUMIFS('Lista pracowników'!$A$5:$A$3576,'Lista pracowników'!$G$5:$G$3576,M$4,'Lista pracowników'!$B$5:$B$3576,$B46) -> 0 | N46: =SUMIFS('Lista pracowników'!$A$5:$A$3576,'Lista pracowników'!$G$5:$G$3576,N$4,'Lista pracowników'!$B$5:$B$3576,$B46) -> 0 | P46: =IFERROR(((SUMIFS('Lista pracowników'!$A$5:$A$3576,'Lista pracowników'!$G$5:$G$3576,P$4,'Lista pracowników'!$B$5:$B$3576,$B46))/SUM($I46:$N46)),"-") -> - | Q46: =IFERROR(((SUMIFS('Lista pracowników'!$A$5:$A$3576,'Lista pracowników'!$G$5:$G$3576,Q$4,'Lista pracowników'!$B$5:$B$3576,$B46))/SUM($I46:$N46)),"-") -> - | R46: =IFERROR(((SUMIFS('Lista pracowników'!$A$5:$A$3576,'Lista pracowników'!$G$5:$G$3576,R$4,'Lista pracowników'!$B$5:$B$3576,$B46))/(SUM($I46:$N46))),"-") -> - | S46: =IFERROR(((SUMIFS('Lista pracowników'!$A$5:$A$3576,'Lista pracowników'!$G$5:$G$3576,S$4,'Lista pracowników'!$B$5:$B$3576,$B46))/SUM($I46:$N46)),"-") -> - | T46: =IFERROR(((SUMIFS('Lista pracowników'!$A$5:$A$3576,'Lista pracowników'!$G$5:$G$3576,T$4,'Lista pracowników'!$B$5:$B$3576,$B46))/SUM($I46:$N46)),"-") -> - | U46: =IFERROR(((SUMIFS('Lista pracowników'!$A$5:$A$3576,'Lista pracowników'!$G$5:$G$3576,U$4,'Lista pracowników'!$B$5:$B$3576,$B46))/SUM($I46:$N46)),"-") -> -
A47: 42 | F47: =IF(E47>'Lista pracowników'!$M$4,"-",VLOOKUP($E47,'Siatka płac'!$B$6:$E$17,3,FALSE)) -> 0 | G47: =IF(E47>'Lista pracowników'!$M$4,"-",VLOOKUP($E47,'Siatka płac'!$B$6:$E$17,4,FALSE)) -> 0 | H47: =SUMIFS('Lista pracowników'!$A$5:$A$8386,'Lista pracowników'!$B$5:$B$8386,$B47) -> 0 | I47: =SUMIFS('Lista pracowników'!$A$5:$A$3576,'Lista pracowników'!$G$5:$G$3576,I$4,'Lista pracowników'!$B$5:$B$3576,$B47) -> 0 | J47: =SUMIFS('Lista pracowników'!$A$5:$A$3576,'Lista pracowników'!$G$5:$G$3576,J$4,'Lista pracowników'!$B$5:$B$3576,$B47) -> 0 | K47: =SUMIFS('Lista pracowników'!$A$5:$A$3576,'Lista pracowników'!$G$5:$G$3576,K$4,'Lista pracowników'!$B$5:$B$3576,$B47) -> 0 | L47: =SUMIFS('Lista pracowników'!$A$5:$A$3576,'Lista pracowników'!$G$5:$G$3576,L$4,'Lista pracowników'!$B$5:$B$3576,$B47) -> 0 | M47: =SUMIFS('Lista pracowników'!$A$5:$A$3576,'Lista pracowników'!$G$5:$G$3576,M$4,'Lista pracowników'!$B$5:$B$3576,$B47) -> 0 | N47: =SUMIFS('Lista pracowników'!$A$5:$A$3576,'Lista pracowników'!$G$5:$G$3576,N$4,'Lista pracowników'!$B$5:$B$3576,$B47) -> 0 | P47: =IFERROR(((SUMIFS('Lista pracowników'!$A$5:$A$3576,'Lista pracowników'!$G$5:$G$3576,P$4,'Lista pracowników'!$B$5:$B$3576,$B47))/SUM($I47:$N47)),"-") -> - | Q47: =IFERROR(((SUMIFS('Lista pracowników'!$A$5:$A$3576,'Lista pracowników'!$G$5:$G$3576,Q$4,'Lista pracowników'!$B$5:$B$3576,$B47))/SUM($I47:$N47)),"-") -> - | R47: =IFERROR(((SUMIFS('Lista pracowników'!$A$5:$A$3576,'Lista pracowników'!$G$5:$G$3576,R$4,'Lista pracowników'!$B$5:$B$3576,$B47))/(SUM($I47:$N47))),"-") -> - | S47: =IFERROR(((SUMIFS('Lista pracowników'!$A$5:$A$3576,'Lista pracowników'!$G$5:$G$3576,S$4,'Lista pracowników'!$B$5:$B$3576,$B47))/SUM($I47:$N47)),"-") -> - | T47: =IFERROR(((SUMIFS('Lista pracowników'!$A$5:$A$3576,'Lista pracowników'!$G$5:$G$3576,T$4,'Lista pracowników'!$B$5:$B$3576,$B47))/SUM($I47:$N47)),"-") -> - | U47: =IFERROR(((SUMIFS('Lista pracowników'!$A$5:$A$3576,'Lista pracowników'!$G$5:$G$3576,U$4,'Lista pracowników'!$B$5:$B$3576,$B47))/SUM($I47:$N47)),"-") -> -
A48: 43 | F48: =IF(E48>'Lista pracowników'!$M$4,"-",VLOOKUP($E48,'Siatka płac'!$B$6:$E$17,3,FALSE)) -> 0 | G48: =IF(E48>'Lista pracowników'!$M$4,"-",VLOOKUP($E48,'Siatka płac'!$B$6:$E$17,4,FALSE)) -> 0 | H48: =SUMIFS('Lista pracowników'!$A$5:$A$8386,'Lista pracowników'!$B$5:$B$8386,$B48) -> 0 | I48: =SUMIFS('Lista pracowników'!$A$5:$A$3576,'Lista pracowników'!$G$5:$G$3576,I$4,'Lista pracowników'!$B$5:$B$3576,$B48) -> 0 | J48: =SUMIFS('Lista pracowników'!$A$5:$A$3576,'Lista pracowników'!$G$5:$G$3576,J$4,'Lista pracowników'!$B$5:$B$3576,$B48) -> 0 | K48: =SUMIFS('Lista pracowników'!$A$5:$A$3576,'Lista pracowników'!$G$5:$G$3576,K$4,'Lista pracowników'!$B$5:$B$3576,$B48) -> 0 | L48: =SUMIFS('Lista pracowników'!$A$5:$A$3576,'Lista pracowników'!$G$5:$G$3576,L$4,'Lista pracowników'!$B$5:$B$3576,$B48) -> 0 | M48: =SUMIFS('Lista pracowników'!$A$5:$A$3576,'Lista pracowników'!$G$5:$G$3576,M$4,'Lista pracowników'!$B$5:$B$3576,$B48) -> 0 | N48: =SUMIFS('Lista pracowników'!$A$5:$A$3576,'Lista pracowników'!$G$5:$G$3576,N$4,'Lista pracowników'!$B$5:$B$3576,$B48) -> 0 | P48: =IFERROR(((SUMIFS('Lista pracowników'!$A$5:$A$3576,'Lista pracowników'!$G$5:$G$3576,P$4,'Lista pracowników'!$B$5:$B$3576,$B48))/SUM($I48:$N48)),"-") -> - | Q48: =IFERROR(((SUMIFS('Lista pracowników'!$A$5:$A$3576,'Lista pracowników'!$G$5:$G$3576,Q$4,'Lista pracowników'!$B$5:$B$3576,$B48))/SUM($I48:$N48)),"-") -> - | R48: =IFERROR(((SUMIFS('Lista pracowników'!$A$5:$A$3576,'Lista pracowników'!$G$5:$G$3576,R$4,'Lista pracowników'!$B$5:$B$3576,$B48))/(SUM($I48:$N48))),"-") -> - | S48: =IFERROR(((SUMIFS('Lista pracowników'!$A$5:$A$3576,'Lista pracowników'!$G$5:$G$3576,S$4,'Lista pracowników'!$B$5:$B$3576,$B48))/SUM($I48:$N48)),"-") -> - | T48: =IFERROR(((SUMIFS('Lista pracowników'!$A$5:$A$3576,'Lista pracowników'!$G$5:$G$3576,T$4,'Lista pracowników'!$B$5:$B$3576,$B48))/SUM($I48:$N48)),"-") -> - | U48: =IFERROR(((SUMIFS('Lista pracowników'!$A$5:$A$3576,'Lista pracowników'!$G$5:$G$3576,U$4,'Lista pracowników'!$B$5:$B$3576,$B48))/SUM($I48:$N48)),"-") -> -
A49: 44 | F49: =IF(E49>'Lista pracowników'!$M$4,"-",VLOOKUP($E49,'Siatka płac'!$B$6:$E$17,3,FALSE)) -> 0 | G49: =IF(E49>'Lista pracowników'!$M$4,"-",VLOOKUP($E49,'Siatka płac'!$B$6:$E$17,4,FALSE)) -> 0 | H49: =SUMIFS('Lista pracowników'!$A$5:$A$8386,'Lista pracowników'!$B$5:$B$8386,$B49) -> 0 | I49: =SUMIFS('Lista pracowników'!$A$5:$A$3576,'Lista pracowników'!$G$5:$G$3576,I$4,'Lista pracowników'!$B$5:$B$3576,$B49) -> 0 | J49: =SUMIFS('Lista pracowników'!$A$5:$A$3576,'Lista pracowników'!$G$5:$G$3576,J$4,'Lista pracowników'!$B$5:$B$3576,$B49) -> 0 | K49: =SUMIFS('Lista pracowników'!$A$5:$A$3576,'Lista pracowników'!$G$5:$G$3576,K$4,'Lista pracowników'!$B$5:$B$3576,$B49) -> 0 | L49: =SUMIFS('Lista pracowników'!$A$5:$A$3576,'Lista pracowników'!$G$5:$G$3576,L$4,'Lista pracowników'!$B$5:$B$3576,$B49) -> 0 | M49: =SUMIFS('Lista pracowników'!$A$5:$A$3576,'Lista pracowników'!$G$5:$G$3576,M$4,'Lista pracowników'!$B$5:$B$3576,$B49) -> 0 | N49: =SUMIFS('Lista pracowników'!$A$5:$A$3576,'Lista pracowników'!$G$5:$G$3576,N$4,'Lista pracowników'!$B$5:$B$3576,$B49) -> 0 | P49: =IFERROR(((SUMIFS('Lista pracowników'!$A$5:$A$3576,'Lista pracowników'!$G$5:$G$3576,P$4,'Lista pracowników'!$B$5:$B$3576,$B49))/SUM($I49:$N49)),"-") -> - | Q49: =IFERROR(((SUMIFS('Lista pracowników'!$A$5:$A$3576,'Lista pracowników'!$G$5:$G$3576,Q$4,'Lista pracowników'!$B$5:$B$3576,$B49))/SUM($I49:$N49)),"-") -> - | R49: =IFERROR(((SUMIFS('Lista pracowników'!$A$5:$A$3576,'Lista pracowników'!$G$5:$G$3576,R$4,'Lista pracowników'!$B$5:$B$3576,$B49))/(SUM($I49:$N49))),"-") -> - | S49: =IFERROR(((SUMIFS('Lista pracowników'!$A$5:$A$3576,'Lista pracowników'!$G$5:$G$3576,S$4,'Lista pracowników'!$B$5:$B$3576,$B49))/SUM($I49:$N49)),"-") -> - | T49: =IFERROR(((SUMIFS('Lista pracowników'!$A$5:$A$3576,'Lista pracowników'!$G$5:$G$3576,T$4,'Lista pracowników'!$B$5:$B$3576,$B49))/SUM($I49:$N49)),"-") -> - | U49: =IFERROR(((SUMIFS('Lista pracowników'!$A$5:$A$3576,'Lista pracowników'!$G$5:$G$3576,U$4,'Lista pracowników'!$B$5:$B$3576,$B49))/SUM($I49:$N49)),"-") -> -
A50: 45 | F50: =IF(E50>'Lista pracowników'!$M$4,"-",VLOOKUP($E50,'Siatka płac'!$B$6:$E$17,3,FALSE)) -> 0 | G50: =IF(E50>'Lista pracowników'!$M$4,"-",VLOOKUP($E50,'Siatka płac'!$B$6:$E$17,4,FALSE)) -> 0 | H50: =SUMIFS('Lista pracowników'!$A$5:$A$8386,'Lista pracowników'!$B$5:$B$8386,$B50) -> 0 | I50: =SUMIFS('Lista pracowników'!$A$5:$A$3576,'Lista pracowników'!$G$5:$G$3576,I$4,'Lista pracowników'!$B$5:$B$3576,$B50) -> 0 | J50: =SUMIFS('Lista pracowników'!$A$5:$A$3576,'Lista pracowników'!$G$5:$G$3576,J$4,'Lista pracowników'!$B$5:$B$3576,$B50) -> 0 | K50: =SUMIFS('Lista pracowników'!$A$5:$A$3576,'Lista pracowników'!$G$5:$G$3576,K$4,'Lista pracowników'!$B$5:$B$3576,$B50) -> 0 | L50: =SUMIFS('Lista pracowników'!$A$5:$A$3576,'Lista pracowników'!$G$5:$G$3576,L$4,'Lista pracowników'!$B$5:$B$3576,$B50) -> 0 | M50: =SUMIFS('Lista pracowników'!$A$5:$A$3576,'Lista pracowników'!$G$5:$G$3576,M$4,'Lista pracowników'!$B$5:$B$3576,$B50) -> 0 | N50: =SUMIFS('Lista pracowników'!$A$5:$A$3576,'Lista pracowników'!$G$5:$G$3576,N$4,'Lista pracowników'!$B$5:$B$3576,$B50) -> 0 | P50: =IFERROR(((SUMIFS('Lista pracowników'!$A$5:$A$3576,'Lista pracowników'!$G$5:$G$3576,P$4,'Lista pracowników'!$B$5:$B$3576,$B50))/SUM($I50:$N50)),"-") -> - | Q50: =IFERROR(((SUMIFS('Lista pracowników'!$A$5:$A$3576,'Lista pracowników'!$G$5:$G$3576,Q$4,'Lista pracowników'!$B$5:$B$3576,$B50))/SUM($I50:$N50)),"-") -> - | R50: =IFERROR(((SUMIFS('Lista pracowników'!$A$5:$A$3576,'Lista pracowników'!$G$5:$G$3576,R$4,'Lista pracowników'!$B$5:$B$3576,$B50))/(SUM($I50:$N50))),"-") -> - | S50: =IFERROR(((SUMIFS('Lista pracowników'!$A$5:$A$3576,'Lista pracowników'!$G$5:$G$3576,S$4,'Lista pracowników'!$B$5:$B$3576,$B50))/SUM($I50:$N50)),"-") -> - | T50: =IFERROR(((SUMIFS('Lista pracowników'!$A$5:$A$3576,'Lista pracowników'!$G$5:$G$3576,T$4,'Lista pracowników'!$B$5:$B$3576,$B50))/SUM($I50:$N50)),"-") -> - | U50: =IFERROR(((SUMIFS('Lista pracowników'!$A$5:$A$3576,'Lista pracowników'!$G$5:$G$3576,U$4,'Lista pracowników'!$B$5:$B$3576,$B50))/SUM($I50:$N50)),"-") -> -
A51: 46 | F51: =IF(E51>'Lista pracowników'!$M$4,"-",VLOOKUP($E51,'Siatka płac'!$B$6:$E$17,3,FALSE)) -> 0 | G51: =IF(E51>'Lista pracowników'!$M$4,"-",VLOOKUP($E51,'Siatka płac'!$B$6:$E$17,4,FALSE)) -> 0 | H51: =SUMIFS('Lista pracowników'!$A$5:$A$8386,'Lista pracowników'!$B$5:$B$8386,$B51) -> 0 | I51: =SUMIFS('Lista pracowników'!$A$5:$A$3576,'Lista pracowników'!$G$5:$G$3576,I$4,'Lista pracowników'!$B$5:$B$3576,$B51) -> 0 | J51: =SUMIFS('Lista pracowników'!$A$5:$A$3576,'Lista pracowników'!$G$5:$G$3576,J$4,'Lista pracowników'!$B$5:$B$3576,$B51) -> 0 | K51: =SUMIFS('Lista pracowników'!$A$5:$A$3576,'Lista pracowników'!$G$5:$G$3576,K$4,'Lista pracowników'!$B$5:$B$3576,$B51) -> 0 | L51: =SUMIFS('Lista pracowników'!$A$5:$A$3576,'Lista pracowników'!$G$5:$G$3576,L$4,'Lista pracowników'!$B$5:$B$3576,$B51) -> 0 | M51: =SUMIFS('Lista pracowników'!$A$5:$A$3576,'Lista pracowników'!$G$5:$G$3576,M$4,'Lista pracowników'!$B$5:$B$3576,$B51) -> 0 | N51: =SUMIFS('Lista pracowników'!$A$5:$A$3576,'Lista pracowników'!$G$5:$G$3576,N$4,'Lista pracowników'!$B$5:$B$3576,$B51) -> 0 | P51: =IFERROR(((SUMIFS('Lista pracowników'!$A$5:$A$3576,'Lista pracowników'!$G$5:$G$3576,P$4,'Lista pracowników'!$B$5:$B$3576,$B51))/SUM($I51:$N51)),"-") -> - | Q51: =IFERROR(((SUMIFS('Lista pracowników'!$A$5:$A$3576,'Lista pracowników'!$G$5:$G$3576,Q$4,'Lista pracowników'!$B$5:$B$3576,$B51))/SUM($I51:$N51)),"-") -> - | R51: =IFERROR(((SUMIFS('Lista pracowników'!$A$5:$A$3576,'Lista pracowników'!$G$5:$G$3576,R$4,'Lista pracowników'!$B$5:$B$3576,$B51))/(SUM($I51:$N51))),"-") -> - | S51: =IFERROR(((SUMIFS('Lista pracowników'!$A$5:$A$3576,'Lista pracowników'!$G$5:$G$3576,S$4,'Lista pracowników'!$B$5:$B$3576,$B51))/SUM($I51:$N51)),"-") -> - | T51: =IFERROR(((SUMIFS('Lista pracowników'!$A$5:$A$3576,'Lista pracowników'!$G$5:$G$3576,T$4,'Lista pracowników'!$B$5:$B$3576,$B51))/SUM($I51:$N51)),"-") -> - | U51: =IFERROR(((SUMIFS('Lista pracowników'!$A$5:$A$3576,'Lista pracowników'!$G$5:$G$3576,U$4,'Lista pracowników'!$B$5:$B$3576,$B51))/SUM($I51:$N51)),"-") -> -
A52: 47 | F52: =IF(E52>'Lista pracowników'!$M$4,"-",VLOOKUP($E52,'Siatka płac'!$B$6:$E$17,3,FALSE)) -> 0 | G52: =IF(E52>'Lista pracowników'!$M$4,"-",VLOOKUP($E52,'Siatka płac'!$B$6:$E$17,4,FALSE)) -> 0 | H52: =SUMIFS('Lista pracowników'!$A$5:$A$8386,'Lista pracowników'!$B$5:$B$8386,$B52) -> 0 | I52: =SUMIFS('Lista pracowników'!$A$5:$A$3576,'Lista pracowników'!$G$5:$G$3576,I$4,'Lista pracowników'!$B$5:$B$3576,$B52) -> 0 | J52: =SUMIFS('Lista pracowników'!$A$5:$A$3576,'Lista pracowników'!$G$5:$G$3576,J$4,'Lista pracowników'!$B$5:$B$3576,$B52) -> 0 | K52: =SUMIFS('Lista pracowników'!$A$5:$A$3576,'Lista pracowników'!$G$5:$G$3576,K$4,'Lista pracowników'!$B$5:$B$3576,$B52) -> 0 | L52: =SUMIFS('Lista pracowników'!$A$5:$A$3576,'Lista pracowników'!$G$5:$G$3576,L$4,'Lista pracowników'!$B$5:$B$3576,$B52) -> 0 | M52: =SUMIFS('Lista pracowników'!$A$5:$A$3576,'Lista pracowników'!$G$5:$G$3576,M$4,'Lista pracowników'!$B$5:$B$3576,$B52) -> 0 | N52: =SUMIFS('Lista pracowników'!$A$5:$A$3576,'Lista pracowników'!$G$5:$G$3576,N$4,'Lista pracowników'!$B$5:$B$3576,$B52) -> 0 | P52: =IFERROR(((SUMIFS('Lista pracowników'!$A$5:$A$3576,'Lista pracowników'!$G$5:$G$3576,P$4,'Lista pracowników'!$B$5:$B$3576,$B52))/SUM($I52:$N52)),"-") -> - | Q52: =IFERROR(((SUMIFS('Lista pracowników'!$A$5:$A$3576,'Lista pracowników'!$G$5:$G$3576,Q$4,'Lista pracowników'!$B$5:$B$3576,$B52))/SUM($I52:$N52)),"-") -> - | R52: =IFERROR(((SUMIFS('Lista pracowników'!$A$5:$A$3576,'Lista pracowników'!$G$5:$G$3576,R$4,'Lista pracowników'!$B$5:$B$3576,$B52))/(SUM($I52:$N52))),"-") -> - | S52: =IFERROR(((SUMIFS('Lista pracowników'!$A$5:$A$3576,'Lista pracowników'!$G$5:$G$3576,S$4,'Lista pracowników'!$B$5:$B$3576,$B52))/SUM($I52:$N52)),"-") -> - | T52: =IFERROR(((SUMIFS('Lista pracowników'!$A$5:$A$3576,'Lista pracowników'!$G$5:$G$3576,T$4,'Lista pracowników'!$B$5:$B$3576,$B52))/SUM($I52:$N52)),"-") -> - | U52: =IFERROR(((SUMIFS('Lista pracowników'!$A$5:$A$3576,'Lista pracowników'!$G$5:$G$3576,U$4,'Lista pracowników'!$B$5:$B$3576,$B52))/SUM($I52:$N52)),"-") -> -
A53: 48 | F53: =IF(E53>'Lista pracowników'!$M$4,"-",VLOOKUP($E53,'Siatka płac'!$B$6:$E$17,3,FALSE)) -> 0 | G53: =IF(E53>'Lista pracowników'!$M$4,"-",VLOOKUP($E53,'Siatka płac'!$B$6:$E$17,4,FALSE)) -> 0 | H53: =SUMIFS('Lista pracowników'!$A$5:$A$8386,'Lista pracowników'!$B$5:$B$8386,$B53) -> 0 | I53: =SUMIFS('Lista pracowników'!$A$5:$A$3576,'Lista pracowników'!$G$5:$G$3576,I$4,'Lista pracowników'!$B$5:$B$3576,$B53) -> 0 | J53: =SUMIFS('Lista pracowników'!$A$5:$A$3576,'Lista pracowników'!$G$5:$G$3576,J$4,'Lista pracowników'!$B$5:$B$3576,$B53) -> 0 | K53: =SUMIFS('Lista pracowników'!$A$5:$A$3576,'Lista pracowników'!$G$5:$G$3576,K$4,'Lista pracowników'!$B$5:$B$3576,$B53) -> 0 | L53: =SUMIFS('Lista pracowników'!$A$5:$A$3576,'Lista pracowników'!$G$5:$G$3576,L$4,'Lista pracowników'!$B$5:$B$3576,$B53) -> 0 | M53: =SUMIFS('Lista pracowników'!$A$5:$A$3576,'Lista pracowników'!$G$5:$G$3576,M$4,'Lista pracowników'!$B$5:$B$3576,$B53) -> 0 | N53: =SUMIFS('Lista pracowników'!$A$5:$A$3576,'Lista pracowników'!$G$5:$G$3576,N$4,'Lista pracowników'!$B$5:$B$3576,$B53) -> 0 | P53: =IFERROR(((SUMIFS('Lista pracowników'!$A$5:$A$3576,'Lista pracowników'!$G$5:$G$3576,P$4,'Lista pracowników'!$B$5:$B$3576,$B53))/SUM($I53:$N53)),"-") -> - | Q53: =IFERROR(((SUMIFS('Lista pracowników'!$A$5:$A$3576,'Lista pracowników'!$G$5:$G$3576,Q$4,'Lista pracowników'!$B$5:$B$3576,$B53))/SUM($I53:$N53)),"-") -> - | R53: =IFERROR(((SUMIFS('Lista pracowników'!$A$5:$A$3576,'Lista pracowników'!$G$5:$G$3576,R$4,'Lista pracowników'!$B$5:$B$3576,$B53))/(SUM($I53:$N53))),"-") -> - | S53: =IFERROR(((SUMIFS('Lista pracowników'!$A$5:$A$3576,'Lista pracowników'!$G$5:$G$3576,S$4,'Lista pracowników'!$B$5:$B$3576,$B53))/SUM($I53:$N53)),"-") -> - | T53: =IFERROR(((SUMIFS('Lista pracowników'!$A$5:$A$3576,'Lista pracowników'!$G$5:$G$3576,T$4,'Lista pracowników'!$B$5:$B$3576,$B53))/SUM($I53:$N53)),"-") -> - | U53: =IFERROR(((SUMIFS('Lista pracowników'!$A$5:$A$3576,'Lista pracowników'!$G$5:$G$3576,U$4,'Lista pracowników'!$B$5:$B$3576,$B53))/SUM($I53:$N53)),"-") -> -
A54: 49 | F54: =IF(E54>'Lista pracowników'!$M$4,"-",VLOOKUP($E54,'Siatka płac'!$B$6:$E$17,3,FALSE)) -> 0 | G54: =IF(E54>'Lista pracowników'!$M$4,"-",VLOOKUP($E54,'Siatka płac'!$B$6:$E$17,4,FALSE)) -> 0 | H54: =SUMIFS('Lista pracowników'!$A$5:$A$8386,'Lista pracowników'!$B$5:$B$8386,$B54) -> 0 | I54: =SUMIFS('Lista pracowników'!$A$5:$A$3576,'Lista pracowników'!$G$5:$G$3576,I$4,'Lista pracowników'!$B$5:$B$3576,$B54) -> 0 | J54: =SUMIFS('Lista pracowników'!$A$5:$A$3576,'Lista pracowników'!$G$5:$G$3576,J$4,'Lista pracowników'!$B$5:$B$3576,$B54) -> 0 | K54: =SUMIFS('Lista pracowników'!$A$5:$A$3576,'Lista pracowników'!$G$5:$G$3576,K$4,'Lista pracowników'!$B$5:$B$3576,$B54) -> 0 | L54: =SUMIFS('Lista pracowników'!$A$5:$A$3576,'Lista pracowników'!$G$5:$G$3576,L$4,'Lista pracowników'!$B$5:$B$3576,$B54) -> 0 | M54: =SUMIFS('Lista pracowników'!$A$5:$A$3576,'Lista pracowników'!$G$5:$G$3576,M$4,'Lista pracowników'!$B$5:$B$3576,$B54) -> 0 | N54: =SUMIFS('Lista pracowników'!$A$5:$A$3576,'Lista pracowników'!$G$5:$G$3576,N$4,'Lista pracowników'!$B$5:$B$3576,$B54) -> 0 | P54: =IFERROR(((SUMIFS('Lista pracowników'!$A$5:$A$3576,'Lista pracowników'!$G$5:$G$3576,P$4,'Lista pracowników'!$B$5:$B$3576,$B54))/SUM($I54:$N54)),"-") -> - | Q54: =IFERROR(((SUMIFS('Lista pracowników'!$A$5:$A$3576,'Lista pracowników'!$G$5:$G$3576,Q$4,'Lista pracowników'!$B$5:$B$3576,$B54))/SUM($I54:$N54)),"-") -> - | R54: =IFERROR(((SUMIFS('Lista pracowników'!$A$5:$A$3576,'Lista pracowników'!$G$5:$G$3576,R$4,'Lista pracowników'!$B$5:$B$3576,$B54))/(SUM($I54:$N54))),"-") -> - | S54: =IFERROR(((SUMIFS('Lista pracowników'!$A$5:$A$3576,'Lista pracowników'!$G$5:$G$3576,S$4,'Lista pracowników'!$B$5:$B$3576,$B54))/SUM($I54:$N54)),"-") -> - | T54: =IFERROR(((SUMIFS('Lista pracowników'!$A$5:$A$3576,'Lista pracowników'!$G$5:$G$3576,T$4,'Lista pracowników'!$B$5:$B$3576,$B54))/SUM($I54:$N54)),"-") -> - | U54: =IFERROR(((SUMIFS('Lista pracowników'!$A$5:$A$3576,'Lista pracowników'!$G$5:$G$3576,U$4,'Lista pracowników'!$B$5:$B$3576,$B54))/SUM($I54:$N54)),"-") -> -
A55: 50 | F55: =IF(E55>'Lista pracowników'!$M$4,"-",VLOOKUP($E55,'Siatka płac'!$B$6:$E$17,3,FALSE)) -> 0 | G55: =IF(E55>'Lista pracowników'!$M$4,"-",VLOOKUP($E55,'Siatka płac'!$B$6:$E$17,4,FALSE)) -> 0 | H55: =SUMIFS('Lista pracowników'!$A$5:$A$8386,'Lista pracowników'!$B$5:$B$8386,$B55) -> 0 | I55: =SUMIFS('Lista pracowników'!$A$5:$A$3576,'Lista pracowników'!$G$5:$G$3576,I$4,'Lista pracowników'!$B$5:$B$3576,$B55) -> 0 | J55: =SUMIFS('Lista pracowników'!$A$5:$A$3576,'Lista pracowników'!$G$5:$G$3576,J$4,'Lista pracowników'!$B$5:$B$3576,$B55) -> 0 | K55: =SUMIFS('Lista pracowników'!$A$5:$A$3576,'Lista pracowników'!$G$5:$G$3576,K$4,'Lista pracowników'!$B$5:$B$3576,$B55) -> 0 | L55: =SUMIFS('Lista pracowników'!$A$5:$A$3576,'Lista pracowników'!$G$5:$G$3576,L$4,'Lista pracowników'!$B$5:$B$3576,$B55) -> 0 | M55: =SUMIFS('Lista pracowników'!$A$5:$A$3576,'Lista pracowników'!$G$5:$G$3576,M$4,'Lista pracowników'!$B$5:$B$3576,$B55) -> 0 | N55: =SUMIFS('Lista pracowników'!$A$5:$A$3576,'Lista pracowników'!$G$5:$G$3576,N$4,'Lista pracowników'!$B$5:$B$3576,$B55) -> 0 | P55: =IFERROR(((SUMIFS('Lista pracowników'!$A$5:$A$3576,'Lista pracowników'!$G$5:$G$3576,P$4,'Lista pracowników'!$B$5:$B$3576,$B55))/SUM($I55:$N55)),"-") -> - | Q55: =IFERROR(((SUMIFS('Lista pracowników'!$A$5:$A$3576,'Lista pracowników'!$G$5:$G$3576,Q$4,'Lista pracowników'!$B$5:$B$3576,$B55))/SUM($I55:$N55)),"-") -> - | R55: =IFERROR(((SUMIFS('Lista pracowników'!$A$5:$A$3576,'Lista pracowników'!$G$5:$G$3576,R$4,'Lista pracowników'!$B$5:$B$3576,$B55))/(SUM($I55:$N55))),"-") -> - | S55: =IFERROR(((SUMIFS('Lista pracowników'!$A$5:$A$3576,'Lista pracowników'!$G$5:$G$3576,S$4,'Lista pracowników'!$B$5:$B$3576,$B55))/SUM($I55:$N55)),"-") -> - | T55: =IFERROR(((SUMIFS('Lista pracowników'!$A$5:$A$3576,'Lista pracowników'!$G$5:$G$3576,T$4,'Lista pracowników'!$B$5:$B$3576,$B55))/SUM($I55:$N55)),"-") -> - | U55: =IFERROR(((SUMIFS('Lista pracowników'!$A$5:$A$3576,'Lista pracowników'!$G$5:$G$3576,U$4,'Lista pracowników'!$B$5:$B$3576,$B55))/SUM($I55:$N55)),"-") -> -
A56: 51 | F56: =IF(E56>'Lista pracowników'!$M$4,"-",VLOOKUP($E56,'Siatka płac'!$B$6:$E$17,3,FALSE)) -> 0 | G56: =IF(E56>'Lista pracowników'!$M$4,"-",VLOOKUP($E56,'Siatka płac'!$B$6:$E$17,4,FALSE)) -> 0 | H56: =SUMIFS('Lista pracowników'!$A$5:$A$8386,'Lista pracowników'!$B$5:$B$8386,$B56) -> 0 | I56: =SUMIFS('Lista pracowników'!$A$5:$A$3576,'Lista pracowników'!$G$5:$G$3576,I$4,'Lista pracowników'!$B$5:$B$3576,$B56) -> 0 | J56: =SUMIFS('Lista pracowników'!$A$5:$A$3576,'Lista pracowników'!$G$5:$G$3576,J$4,'Lista pracowników'!$B$5:$B$3576,$B56) -> 0 | K56: =SUMIFS('Lista pracowników'!$A$5:$A$3576,'Lista pracowników'!$G$5:$G$3576,K$4,'Lista pracowników'!$B$5:$B$3576,$B56) -> 0 | L56: =SUMIFS('Lista pracowników'!$A$5:$A$3576,'Lista pracowników'!$G$5:$G$3576,L$4,'Lista pracowników'!$B$5:$B$3576,$B56) -> 0 | M56: =SUMIFS('Lista pracowników'!$A$5:$A$3576,'Lista pracowników'!$G$5:$G$3576,M$4,'Lista pracowników'!$B$5:$B$3576,$B56) -> 0 | N56: =SUMIFS('Lista pracowników'!$A$5:$A$3576,'Lista pracowników'!$G$5:$G$3576,N$4,'Lista pracowników'!$B$5:$B$3576,$B56) -> 0 | P56: =IFERROR(((SUMIFS('Lista pracowników'!$A$5:$A$3576,'Lista pracowników'!$G$5:$G$3576,P$4,'Lista pracowników'!$B$5:$B$3576,$B56))/SUM($I56:$N56)),"-") -> - | Q56: =IFERROR(((SUMIFS('Lista pracowników'!$A$5:$A$3576,'Lista pracowników'!$G$5:$G$3576,Q$4,'Lista pracowników'!$B$5:$B$3576,$B56))/SUM($I56:$N56)),"-") -> - | R56: =IFERROR(((SUMIFS('Lista pracowników'!$A$5:$A$3576,'Lista pracowników'!$G$5:$G$3576,R$4,'Lista pracowników'!$B$5:$B$3576,$B56))/(SUM($I56:$N56))),"-") -> - | S56: =IFERROR(((SUMIFS('Lista pracowników'!$A$5:$A$3576,'Lista pracowników'!$G$5:$G$3576,S$4,'Lista pracowników'!$B$5:$B$3576,$B56))/SUM($I56:$N56)),"-") -> - | T56: =IFERROR(((SUMIFS('Lista pracowników'!$A$5:$A$3576,'Lista pracowników'!$G$5:$G$3576,T$4,'Lista pracowników'!$B$5:$B$3576,$B56))/SUM($I56:$N56)),"-") -> - | U56: =IFERROR(((SUMIFS('Lista pracowników'!$A$5:$A$3576,'Lista pracowników'!$G$5:$G$3576,U$4,'Lista pracowników'!$B$5:$B$3576,$B56))/SUM($I56:$N56)),"-") -> -
A57: 52 | F57: =IF(E57>'Lista pracowników'!$M$4,"-",VLOOKUP($E57,'Siatka płac'!$B$6:$E$17,3,FALSE)) -> 0 | G57: =IF(E57>'Lista pracowników'!$M$4,"-",VLOOKUP($E57,'Siatka płac'!$B$6:$E$17,4,FALSE)) -> 0 | H57: =SUMIFS('Lista pracowników'!$A$5:$A$8386,'Lista pracowników'!$B$5:$B$8386,$B57) -> 0 | I57: =SUMIFS('Lista pracowników'!$A$5:$A$3576,'Lista pracowników'!$G$5:$G$3576,I$4,'Lista pracowników'!$B$5:$B$3576,$B57) -> 0 | J57: =SUMIFS('Lista pracowników'!$A$5:$A$3576,'Lista pracowników'!$G$5:$G$3576,J$4,'Lista pracowników'!$B$5:$B$3576,$B57) -> 0 | K57: =SUMIFS('Lista pracowników'!$A$5:$A$3576,'Lista pracowników'!$G$5:$G$3576,K$4,'Lista pracowników'!$B$5:$B$3576,$B57) -> 0 | L57: =SUMIFS('Lista pracowników'!$A$5:$A$3576,'Lista pracowników'!$G$5:$G$3576,L$4,'Lista pracowników'!$B$5:$B$3576,$B57) -> 0 | M57: =SUMIFS('Lista pracowników'!$A$5:$A$3576,'Lista pracowników'!$G$5:$G$3576,M$4,'Lista pracowników'!$B$5:$B$3576,$B57) -> 0 | N57: =SUMIFS('Lista pracowników'!$A$5:$A$3576,'Lista pracowników'!$G$5:$G$3576,N$4,'Lista pracowników'!$B$5:$B$3576,$B57) -> 0 | P57: =IFERROR(((SUMIFS('Lista pracowników'!$A$5:$A$3576,'Lista pracowników'!$G$5:$G$3576,P$4,'Lista pracowników'!$B$5:$B$3576,$B57))/SUM($I57:$N57)),"-") -> - | Q57: =IFERROR(((SUMIFS('Lista pracowników'!$A$5:$A$3576,'Lista pracowników'!$G$5:$G$3576,Q$4,'Lista pracowników'!$B$5:$B$3576,$B57))/SUM($I57:$N57)),"-") -> - | R57: =IFERROR(((SUMIFS('Lista pracowników'!$A$5:$A$3576,'Lista pracowników'!$G$5:$G$3576,R$4,'Lista pracowników'!$B$5:$B$3576,$B57))/(SUM($I57:$N57))),"-") -> - | S57: =IFERROR(((SUMIFS('Lista pracowników'!$A$5:$A$3576,'Lista pracowników'!$G$5:$G$3576,S$4,'Lista pracowników'!$B$5:$B$3576,$B57))/SUM($I57:$N57)),"-") -> - | T57: =IFERROR(((SUMIFS('Lista pracowników'!$A$5:$A$3576,'Lista pracowników'!$G$5:$G$3576,T$4,'Lista pracowników'!$B$5:$B$3576,$B57))/SUM($I57:$N57)),"-") -> - | U57: =IFERROR(((SUMIFS('Lista pracowników'!$A$5:$A$3576,'Lista pracowników'!$G$5:$G$3576,U$4,'Lista pracowników'!$B$5:$B$3576,$B57))/SUM($I57:$N57)),"-") -> -
A58: 53 | F58: =IF(E58>'Lista pracowników'!$M$4,"-",VLOOKUP($E58,'Siatka płac'!$B$6:$E$17,3,FALSE)) -> 0 | G58: =IF(E58>'Lista pracowników'!$M$4,"-",VLOOKUP($E58,'Siatka płac'!$B$6:$E$17,4,FALSE)) -> 0 | H58: =SUMIFS('Lista pracowników'!$A$5:$A$8386,'Lista pracowników'!$B$5:$B$8386,$B58) -> 0 | I58: =SUMIFS('Lista pracowników'!$A$5:$A$3576,'Lista pracowników'!$G$5:$G$3576,I$4,'Lista pracowników'!$B$5:$B$3576,$B58) -> 0 | J58: =SUMIFS('Lista pracowników'!$A$5:$A$3576,'Lista pracowników'!$G$5:$G$3576,J$4,'Lista pracowników'!$B$5:$B$3576,$B58) -> 0 | K58: =SUMIFS('Lista pracowników'!$A$5:$A$3576,'Lista pracowników'!$G$5:$G$3576,K$4,'Lista pracowników'!$B$5:$B$3576,$B58) -> 0 | L58: =SUMIFS('Lista pracowników'!$A$5:$A$3576,'Lista pracowników'!$G$5:$G$3576,L$4,'Lista pracowników'!$B$5:$B$3576,$B58) -> 0 | M58: =SUMIFS('Lista pracowników'!$A$5:$A$3576,'Lista pracowników'!$G$5:$G$3576,M$4,'Lista pracowników'!$B$5:$B$3576,$B58) -> 0 | N58: =SUMIFS('Lista pracowników'!$A$5:$A$3576,'Lista pracowników'!$G$5:$G$3576,N$4,'Lista pracowników'!$B$5:$B$3576,$B58) -> 0 | P58: =IFERROR(((SUMIFS('Lista pracowników'!$A$5:$A$3576,'Lista pracowników'!$G$5:$G$3576,P$4,'Lista pracowników'!$B$5:$B$3576,$B58))/SUM($I58:$N58)),"-") -> - | Q58: =IFERROR(((SUMIFS('Lista pracowników'!$A$5:$A$3576,'Lista pracowników'!$G$5:$G$3576,Q$4,'Lista pracowników'!$B$5:$B$3576,$B58))/SUM($I58:$N58)),"-") -> - | R58: =IFERROR(((SUMIFS('Lista pracowników'!$A$5:$A$3576,'Lista pracowników'!$G$5:$G$3576,R$4,'Lista pracowników'!$B$5:$B$3576,$B58))/(SUM($I58:$N58))),"-") -> - | S58: =IFERROR(((SUMIFS('Lista pracowników'!$A$5:$A$3576,'Lista pracowników'!$G$5:$G$3576,S$4,'Lista pracowników'!$B$5:$B$3576,$B58))/SUM($I58:$N58)),"-") -> - | T58: =IFERROR(((SUMIFS('Lista pracowników'!$A$5:$A$3576,'Lista pracowników'!$G$5:$G$3576,T$4,'Lista pracowników'!$B$5:$B$3576,$B58))/SUM($I58:$N58)),"-") -> - | U58: =IFERROR(((SUMIFS('Lista pracowników'!$A$5:$A$3576,'Lista pracowników'!$G$5:$G$3576,U$4,'Lista pracowników'!$B$5:$B$3576,$B58))/SUM($I58:$N58)),"-") -> -
A59: 54 | F59: =IF(E59>'Lista pracowników'!$M$4,"-",VLOOKUP($E59,'Siatka płac'!$B$6:$E$17,3,FALSE)) -> 0 | G59: =IF(E59>'Lista pracowników'!$M$4,"-",VLOOKUP($E59,'Siatka płac'!$B$6:$E$17,4,FALSE)) -> 0 | H59: =SUMIFS('Lista pracowników'!$A$5:$A$8386,'Lista pracowników'!$B$5:$B$8386,$B59) -> 0 | I59: =SUMIFS('Lista pracowników'!$A$5:$A$3576,'Lista pracowników'!$G$5:$G$3576,I$4,'Lista pracowników'!$B$5:$B$3576,$B59) -> 0 | J59: =SUMIFS('Lista pracowników'!$A$5:$A$3576,'Lista pracowników'!$G$5:$G$3576,J$4,'Lista pracowników'!$B$5:$B$3576,$B59) -> 0 | K59: =SUMIFS('Lista pracowników'!$A$5:$A$3576,'Lista pracowników'!$G$5:$G$3576,K$4,'Lista pracowników'!$B$5:$B$3576,$B59) -> 0 | L59: =SUMIFS('Lista pracowników'!$A$5:$A$3576,'Lista pracowników'!$G$5:$G$3576,L$4,'Lista pracowników'!$B$5:$B$3576,$B59) -> 0 | M59: =SUMIFS('Lista pracowników'!$A$5:$A$3576,'Lista pracowników'!$G$5:$G$3576,M$4,'Lista pracowników'!$B$5:$B$3576,$B59) -> 0 | N59: =SUMIFS('Lista pracowników'!$A$5:$A$3576,'Lista pracowników'!$G$5:$G$3576,N$4,'Lista pracowników'!$B$5:$B$3576,$B59) -> 0 | P59: =IFERROR(((SUMIFS('Lista pracowników'!$A$5:$A$3576,'Lista pracowników'!$G$5:$G$3576,P$4,'Lista pracowników'!$B$5:$B$3576,$B59))/SUM($I59:$N59)),"-") -> - | Q59: =IFERROR(((SUMIFS('Lista pracowników'!$A$5:$A$3576,'Lista pracowników'!$G$5:$G$3576,Q$4,'Lista pracowników'!$B$5:$B$3576,$B59))/SUM($I59:$N59)),"-") -> - | R59: =IFERROR(((SUMIFS('Lista pracowników'!$A$5:$A$3576,'Lista pracowników'!$G$5:$G$3576,R$4,'Lista pracowników'!$B$5:$B$3576,$B59))/(SUM($I59:$N59))),"-") -> - | S59: =IFERROR(((SUMIFS('Lista pracowników'!$A$5:$A$3576,'Lista pracowników'!$G$5:$G$3576,S$4,'Lista pracowników'!$B$5:$B$3576,$B59))/SUM($I59:$N59)),"-") -> - | T59: =IFERROR(((SUMIFS('Lista pracowników'!$A$5:$A$3576,'Lista pracowników'!$G$5:$G$3576,T$4,'Lista pracowników'!$B$5:$B$3576,$B59))/SUM($I59:$N59)),"-") -> - | U59: =IFERROR(((SUMIFS('Lista pracowników'!$A$5:$A$3576,'Lista pracowników'!$G$5:$G$3576,U$4,'Lista pracowników'!$B$5:$B$3576,$B59))/SUM($I59:$N59)),"-") -> -
A60: 55 | F60: =IF(E60>'Lista pracowników'!$M$4,"-",VLOOKUP($E60,'Siatka płac'!$B$6:$E$17,3,FALSE)) -> 0 | G60: =IF(E60>'Lista pracowników'!$M$4,"-",VLOOKUP($E60,'Siatka płac'!$B$6:$E$17,4,FALSE)) -> 0 | H60: =SUMIFS('Lista pracowników'!$A$5:$A$8386,'Lista pracowników'!$B$5:$B$8386,$B60) -> 0 | I60: =SUMIFS('Lista pracowników'!$A$5:$A$3576,'Lista pracowników'!$G$5:$G$3576,I$4,'Lista pracowników'!$B$5:$B$3576,$B60) -> 0 | J60: =SUMIFS('Lista pracowników'!$A$5:$A$3576,'Lista pracowników'!$G$5:$G$3576,J$4,'Lista pracowników'!$B$5:$B$3576,$B60) -> 0 | K60: =SUMIFS('Lista pracowników'!$A$5:$A$3576,'Lista pracowników'!$G$5:$G$3576,K$4,'Lista pracowników'!$B$5:$B$3576,$B60) -> 0 | L60: =SUMIFS('Lista pracowników'!$A$5:$A$3576,'Lista pracowników'!$G$5:$G$3576,L$4,'Lista pracowników'!$B$5:$B$3576,$B60) -> 0 | M60: =SUMIFS('Lista pracowników'!$A$5:$A$3576,'Lista pracowników'!$G$5:$G$3576,M$4,'Lista pracowników'!$B$5:$B$3576,$B60) -> 0 | N60: =SUMIFS('Lista pracowników'!$A$5:$A$3576,'Lista pracowników'!$G$5:$G$3576,N$4,'Lista pracowników'!$B$5:$B$3576,$B60) -> 0 | P60: =IFERROR(((SUMIFS('Lista pracowników'!$A$5:$A$3576,'Lista pracowników'!$G$5:$G$3576,P$4,'Lista pracowników'!$B$5:$B$3576,$B60))/SUM($I60:$N60)),"-") -> - | Q60: =IFERROR(((SUMIFS('Lista pracowników'!$A$5:$A$3576,'Lista pracowników'!$G$5:$G$3576,Q$4,'Lista pracowników'!$B$5:$B$3576,$B60))/SUM($I60:$N60)),"-") -> - | R60: =IFERROR(((SUMIFS('Lista pracowników'!$A$5:$A$3576,'Lista pracowników'!$G$5:$G$3576,R$4,'Lista pracowników'!$B$5:$B$3576,$B60))/(SUM($I60:$N60))),"-") -> - | S60: =IFERROR(((SUMIFS('Lista pracowników'!$A$5:$A$3576,'Lista pracowników'!$G$5:$G$3576,S$4,'Lista pracowników'!$B$5:$B$3576,$B60))/SUM($I60:$N60)),"-") -> - | T60: =IFERROR(((SUMIFS('Lista pracowników'!$A$5:$A$3576,'Lista pracowników'!$G$5:$G$3576,T$4,'Lista pracowników'!$B$5:$B$3576,$B60))/SUM($I60:$N60)),"-") -> - | U60: =IFERROR(((SUMIFS('Lista pracowników'!$A$5:$A$3576,'Lista pracowników'!$G$5:$G$3576,U$4,'Lista pracowników'!$B$5:$B$3576,$B60))/SUM($I60:$N60)),"-") -> -
A61: 56 | F61: =IF(E61>'Lista pracowników'!$M$4,"-",VLOOKUP($E61,'Siatka płac'!$B$6:$E$17,3,FALSE)) -> 0 | G61: =IF(E61>'Lista pracowników'!$M$4,"-",VLOOKUP($E61,'Siatka płac'!$B$6:$E$17,4,FALSE)) -> 0 | H61: =SUMIFS('Lista pracowników'!$A$5:$A$8386,'Lista pracowników'!$B$5:$B$8386,$B61) -> 0 | I61: =SUMIFS('Lista pracowników'!$A$5:$A$3576,'Lista pracowników'!$G$5:$G$3576,I$4,'Lista pracowników'!$B$5:$B$3576,$B61) -> 0 | J61: =SUMIFS('Lista pracowników'!$A$5:$A$3576,'Lista pracowników'!$G$5:$G$3576,J$4,'Lista pracowników'!$B$5:$B$3576,$B61) -> 0 | K61: =SUMIFS('Lista pracowników'!$A$5:$A$3576,'Lista pracowników'!$G$5:$G$3576,K$4,'Lista pracowników'!$B$5:$B$3576,$B61) -> 0 | L61: =SUMIFS('Lista pracowników'!$A$5:$A$3576,'Lista pracowników'!$G$5:$G$3576,L$4,'Lista pracowników'!$B$5:$B$3576,$B61) -> 0 | M61: =SUMIFS('Lista pracowników'!$A$5:$A$3576,'Lista pracowników'!$G$5:$G$3576,M$4,'Lista pracowników'!$B$5:$B$3576,$B61) -> 0 | N61: =SUMIFS('Lista pracowników'!$A$5:$A$3576,'Lista pracowników'!$G$5:$G$3576,N$4,'Lista pracowników'!$B$5:$B$3576,$B61) -> 0 | P61: =IFERROR(((SUMIFS('Lista pracowników'!$A$5:$A$3576,'Lista pracowników'!$G$5:$G$3576,P$4,'Lista pracowników'!$B$5:$B$3576,$B61))/SUM($I61:$N61)),"-") -> - | Q61: =IFERROR(((SUMIFS('Lista pracowników'!$A$5:$A$3576,'Lista pracowników'!$G$5:$G$3576,Q$4,'Lista pracowników'!$B$5:$B$3576,$B61))/SUM($I61:$N61)),"-") -> - | R61: =IFERROR(((SUMIFS('Lista pracowników'!$A$5:$A$3576,'Lista pracowników'!$G$5:$G$3576,R$4,'Lista pracowników'!$B$5:$B$3576,$B61))/(SUM($I61:$N61))),"-") -> - | S61: =IFERROR(((SUMIFS('Lista pracowników'!$A$5:$A$3576,'Lista pracowników'!$G$5:$G$3576,S$4,'Lista pracowników'!$B$5:$B$3576,$B61))/SUM($I61:$N61)),"-") -> - | T61: =IFERROR(((SUMIFS('Lista pracowników'!$A$5:$A$3576,'Lista pracowników'!$G$5:$G$3576,T$4,'Lista pracowników'!$B$5:$B$3576,$B61))/SUM($I61:$N61)),"-") -> - | U61: =IFERROR(((SUMIFS('Lista pracowników'!$A$5:$A$3576,'Lista pracowników'!$G$5:$G$3576,U$4,'Lista pracowników'!$B$5:$B$3576,$B61))/SUM($I61:$N61)),"-") -> -
A62: 57 | F62: =IF(E62>'Lista pracowników'!$M$4,"-",VLOOKUP($E62,'Siatka płac'!$B$6:$E$17,3,FALSE)) -> 0 | G62: =IF(E62>'Lista pracowników'!$M$4,"-",VLOOKUP($E62,'Siatka płac'!$B$6:$E$17,4,FALSE)) -> 0 | H62: =SUMIFS('Lista pracowników'!$A$5:$A$8386,'Lista pracowników'!$B$5:$B$8386,$B62) -> 0 | I62: =SUMIFS('Lista pracowników'!$A$5:$A$3576,'Lista pracowników'!$G$5:$G$3576,I$4,'Lista pracowników'!$B$5:$B$3576,$B62) -> 0 | J62: =SUMIFS('Lista pracowników'!$A$5:$A$3576,'Lista pracowników'!$G$5:$G$3576,J$4,'Lista pracowników'!$B$5:$B$3576,$B62) -> 0 | K62: =SUMIFS('Lista pracowników'!$A$5:$A$3576,'Lista pracowników'!$G$5:$G$3576,K$4,'Lista pracowników'!$B$5:$B$3576,$B62) -> 0 | L62: =SUMIFS('Lista pracowników'!$A$5:$A$3576,'Lista pracowników'!$G$5:$G$3576,L$4,'Lista pracowników'!$B$5:$B$3576,$B62) -> 0 | M62: =SUMIFS('Lista pracowników'!$A$5:$A$3576,'Lista pracowników'!$G$5:$G$3576,M$4,'Lista pracowników'!$B$5:$B$3576,$B62) -> 0 | N62: =SUMIFS('Lista pracowników'!$A$5:$A$3576,'Lista pracowników'!$G$5:$G$3576,N$4,'Lista pracowników'!$B$5:$B$3576,$B62) -> 0 | P62: =IFERROR(((SUMIFS('Lista pracowników'!$A$5:$A$3576,'Lista pracowników'!$G$5:$G$3576,P$4,'Lista pracowników'!$B$5:$B$3576,$B62))/SUM($I62:$N62)),"-") -> - | Q62: =IFERROR(((SUMIFS('Lista pracowników'!$A$5:$A$3576,'Lista pracowników'!$G$5:$G$3576,Q$4,'Lista pracowników'!$B$5:$B$3576,$B62))/SUM($I62:$N62)),"-") -> - | R62: =IFERROR(((SUMIFS('Lista pracowników'!$A$5:$A$3576,'Lista pracowników'!$G$5:$G$3576,R$4,'Lista pracowników'!$B$5:$B$3576,$B62))/(SUM($I62:$N62))),"-") -> - | S62: =IFERROR(((SUMIFS('Lista pracowników'!$A$5:$A$3576,'Lista pracowników'!$G$5:$G$3576,S$4,'Lista pracowników'!$B$5:$B$3576,$B62))/SUM($I62:$N62)),"-") -> - | T62: =IFERROR(((SUMIFS('Lista pracowników'!$A$5:$A$3576,'Lista pracowników'!$G$5:$G$3576,T$4,'Lista pracowników'!$B$5:$B$3576,$B62))/SUM($I62:$N62)),"-") -> - | U62: =IFERROR(((SUMIFS('Lista pracowników'!$A$5:$A$3576,'Lista pracowników'!$G$5:$G$3576,U$4,'Lista pracowników'!$B$5:$B$3576,$B62))/SUM($I62:$N62)),"-") -> -
A63: 58 | F63: =IF(E63>'Lista pracowników'!$M$4,"-",VLOOKUP($E63,'Siatka płac'!$B$6:$E$17,3,FALSE)) -> 0 | G63: =IF(E63>'Lista pracowników'!$M$4,"-",VLOOKUP($E63,'Siatka płac'!$B$6:$E$17,4,FALSE)) -> 0 | H63: =SUMIFS('Lista pracowników'!$A$5:$A$8386,'Lista pracowników'!$B$5:$B$8386,$B63) -> 0 | I63: =SUMIFS('Lista pracowników'!$A$5:$A$3576,'Lista pracowników'!$G$5:$G$3576,I$4,'Lista pracowników'!$B$5:$B$3576,$B63) -> 0 | J63: =SUMIFS('Lista pracowników'!$A$5:$A$3576,'Lista pracowników'!$G$5:$G$3576,J$4,'Lista pracowników'!$B$5:$B$3576,$B63) -> 0 | K63: =SUMIFS('Lista pracowników'!$A$5:$A$3576,'Lista pracowników'!$G$5:$G$3576,K$4,'Lista pracowników'!$B$5:$B$3576,$B63) -> 0 | L63: =SUMIFS('Lista pracowników'!$A$5:$A$3576,'Lista pracowników'!$G$5:$G$3576,L$4,'Lista pracowników'!$B$5:$B$3576,$B63) -> 0 | M63: =SUMIFS('Lista pracowników'!$A$5:$A$3576,'Lista pracowników'!$G$5:$G$3576,M$4,'Lista pracowników'!$B$5:$B$3576,$B63) -> 0 | N63: =SUMIFS('Lista pracowników'!$A$5:$A$3576,'Lista pracowników'!$G$5:$G$3576,N$4,'Lista pracowników'!$B$5:$B$3576,$B63) -> 0 | P63: =IFERROR(((SUMIFS('Lista pracowników'!$A$5:$A$3576,'Lista pracowników'!$G$5:$G$3576,P$4,'Lista pracowników'!$B$5:$B$3576,$B63))/SUM($I63:$N63)),"-") -> - | Q63: =IFERROR(((SUMIFS('Lista pracowników'!$A$5:$A$3576,'Lista pracowników'!$G$5:$G$3576,Q$4,'Lista pracowników'!$B$5:$B$3576,$B63))/SUM($I63:$N63)),"-") -> - | R63: =IFERROR(((SUMIFS('Lista pracowników'!$A$5:$A$3576,'Lista pracowników'!$G$5:$G$3576,R$4,'Lista pracowników'!$B$5:$B$3576,$B63))/(SUM($I63:$N63))),"-") -> - | S63: =IFERROR(((SUMIFS('Lista pracowników'!$A$5:$A$3576,'Lista pracowników'!$G$5:$G$3576,S$4,'Lista pracowników'!$B$5:$B$3576,$B63))/SUM($I63:$N63)),"-") -> - | T63: =IFERROR(((SUMIFS('Lista pracowników'!$A$5:$A$3576,'Lista pracowników'!$G$5:$G$3576,T$4,'Lista pracowników'!$B$5:$B$3576,$B63))/SUM($I63:$N63)),"-") -> - | U63: =IFERROR(((SUMIFS('Lista pracowników'!$A$5:$A$3576,'Lista pracowników'!$G$5:$G$3576,U$4,'Lista pracowników'!$B$5:$B$3576,$B63))/SUM($I63:$N63)),"-") -> -
A64: 59 | F64: =IF(E64>'Lista pracowników'!$M$4,"-",VLOOKUP($E64,'Siatka płac'!$B$6:$E$17,3,FALSE)) -> 0 | G64: =IF(E64>'Lista pracowników'!$M$4,"-",VLOOKUP($E64,'Siatka płac'!$B$6:$E$17,4,FALSE)) -> 0 | H64: =SUMIFS('Lista pracowników'!$A$5:$A$8386,'Lista pracowników'!$B$5:$B$8386,$B64) -> 0 | I64: =SUMIFS('Lista pracowników'!$A$5:$A$3576,'Lista pracowników'!$G$5:$G$3576,I$4,'Lista pracowników'!$B$5:$B$3576,$B64) -> 0 | J64: =SUMIFS('Lista pracowników'!$A$5:$A$3576,'Lista pracowników'!$G$5:$G$3576,J$4,'Lista pracowników'!$B$5:$B$3576,$B64) -> 0 | K64: =SUMIFS('Lista pracowników'!$A$5:$A$3576,'Lista pracowników'!$G$5:$G$3576,K$4,'Lista pracowników'!$B$5:$B$3576,$B64) -> 0 | L64: =SUMIFS('Lista pracowników'!$A$5:$A$3576,'Lista pracowników'!$G$5:$G$3576,L$4,'Lista pracowników'!$B$5:$B$3576,$B64) -> 0 | M64: =SUMIFS('Lista pracowników'!$A$5:$A$3576,'Lista pracowników'!$G$5:$G$3576,M$4,'Lista pracowników'!$B$5:$B$3576,$B64) -> 0 | N64: =SUMIFS('Lista pracowników'!$A$5:$A$3576,'Lista pracowników'!$G$5:$G$3576,N$4,'Lista pracowników'!$B$5:$B$3576,$B64) -> 0 | P64: =IFERROR(((SUMIFS('Lista pracowników'!$A$5:$A$3576,'Lista pracowników'!$G$5:$G$3576,P$4,'Lista pracowników'!$B$5:$B$3576,$B64))/SUM($I64:$N64)),"-") -> - | Q64: =IFERROR(((SUMIFS('Lista pracowników'!$A$5:$A$3576,'Lista pracowników'!$G$5:$G$3576,Q$4,'Lista pracowników'!$B$5:$B$3576,$B64))/SUM($I64:$N64)),"-") -> - | R64: =IFERROR(((SUMIFS('Lista pracowników'!$A$5:$A$3576,'Lista pracowników'!$G$5:$G$3576,R$4,'Lista pracowników'!$B$5:$B$3576,$B64))/(SUM($I64:$N64))),"-") -> - | S64: =IFERROR(((SUMIFS('Lista pracowników'!$A$5:$A$3576,'Lista pracowników'!$G$5:$G$3576,S$4,'Lista pracowników'!$B$5:$B$3576,$B64))/SUM($I64:$N64)),"-") -> - | T64: =IFERROR(((SUMIFS('Lista pracowników'!$A$5:$A$3576,'Lista pracowników'!$G$5:$G$3576,T$4,'Lista pracowników'!$B$5:$B$3576,$B64))/SUM($I64:$N64)),"-") -> - | U64: =IFERROR(((SUMIFS('Lista pracowników'!$A$5:$A$3576,'Lista pracowników'!$G$5:$G$3576,U$4,'Lista pracowników'!$B$5:$B$3576,$B64))/SUM($I64:$N64)),"-") -> -
A65: 60 | F65: =IF(E65>'Lista pracowników'!$M$4,"-",VLOOKUP($E65,'Siatka płac'!$B$6:$E$17,3,FALSE)) -> 0 | G65: =IF(E65>'Lista pracowników'!$M$4,"-",VLOOKUP($E65,'Siatka płac'!$B$6:$E$17,4,FALSE)) -> 0 | H65: =SUMIFS('Lista pracowników'!$A$5:$A$8386,'Lista pracowników'!$B$5:$B$8386,$B65) -> 0 | I65: =SUMIFS('Lista pracowników'!$A$5:$A$3576,'Lista pracowników'!$G$5:$G$3576,I$4,'Lista pracowników'!$B$5:$B$3576,$B65) -> 0 | J65: =SUMIFS('Lista pracowników'!$A$5:$A$3576,'Lista pracowników'!$G$5:$G$3576,J$4,'Lista pracowników'!$B$5:$B$3576,$B65) -> 0 | K65: =SUMIFS('Lista pracowników'!$A$5:$A$3576,'Lista pracowników'!$G$5:$G$3576,K$4,'Lista pracowników'!$B$5:$B$3576,$B65) -> 0 | L65: =SUMIFS('Lista pracowników'!$A$5:$A$3576,'Lista pracowników'!$G$5:$G$3576,L$4,'Lista pracowników'!$B$5:$B$3576,$B65) -> 0 | M65: =SUMIFS('Lista pracowników'!$A$5:$A$3576,'Lista pracowników'!$G$5:$G$3576,M$4,'Lista pracowników'!$B$5:$B$3576,$B65) -> 0 | N65: =SUMIFS('Lista pracowników'!$A$5:$A$3576,'Lista pracowników'!$G$5:$G$3576,N$4,'Lista pracowników'!$B$5:$B$3576,$B65) -> 0 | P65: =IFERROR(((SUMIFS('Lista pracowników'!$A$5:$A$3576,'Lista pracowników'!$G$5:$G$3576,P$4,'Lista pracowników'!$B$5:$B$3576,$B65))/SUM($I65:$N65)),"-") -> - | Q65: =IFERROR(((SUMIFS('Lista pracowników'!$A$5:$A$3576,'Lista pracowników'!$G$5:$G$3576,Q$4,'Lista pracowników'!$B$5:$B$3576,$B65))/SUM($I65:$N65)),"-") -> - | R65: =IFERROR(((SUMIFS('Lista pracowników'!$A$5:$A$3576,'Lista pracowników'!$G$5:$G$3576,R$4,'Lista pracowników'!$B$5:$B$3576,$B65))/(SUM($I65:$N65))),"-") -> - | S65: =IFERROR(((SUMIFS('Lista pracowników'!$A$5:$A$3576,'Lista pracowników'!$G$5:$G$3576,S$4,'Lista pracowników'!$B$5:$B$3576,$B65))/SUM($I65:$N65)),"-") -> - | T65: =IFERROR(((SUMIFS('Lista pracowników'!$A$5:$A$3576,'Lista pracowników'!$G$5:$G$3576,T$4,'Lista pracowników'!$B$5:$B$3576,$B65))/SUM($I65:$N65)),"-") -> - | U65: =IFERROR(((SUMIFS('Lista pracowników'!$A$5:$A$3576,'Lista pracowników'!$G$5:$G$3576,U$4,'Lista pracowników'!$B$5:$B$3576,$B65))/SUM($I65:$N65)),"-") -> -

Sheet Zestawienie objaśnienia
B1: Zestawienie stanowisk | F1: Od którego miesiąca wprowadza się siatkę: | H1: 12 | J1: Koszt jednorazowego podniesienia wynagrodzenia pracownikom, którzy są poniżej wynagrodzenia minimalnego w swojej kategorii. Koszt "roczny" zależy do miesiąca wdrożenia siatki. Np. jeśli to lipiec to koszt podniesienia wynagrodzeń do minimium mnożony jest przez 6
F2: Koszt wdrożenia siatki płac do końca roku bieżącego: | H2: =SUM('Lista pracowników'!$H$5:$H$650) -> 700
B3: Menu | C3: Siatka płac | D3: Zestawienie stanowisk | I3: Liczebności pracowników w kwartylach | P3: % liczeność pracowników w kwartylach
B4: tekst | C4: =MAX('Siatka płac'!B6:B17) -> 7 | I4: poniżej min. | J4: I | K4: II | L4: III | M4: IV | N4: powyżej maks. | P4: poniżej min. | Q4: I | R4: II | S4: III | T4: IV | U4: powyżej maks.
A5: Lp | B5: Stanowisko | C5: Pion | D5: Poziom stanowiska | E5: Kategoria zaszeregowania | F5: Minimum kategorii w siatce płac | G5: Maksimum kategorii w siatce płac | H5: Liczba pracowników na stanowisku | I5: 2 | J5: 89 | K5: 81 | L5: 104 | M5: 65 | N5: 83 | P5: 0.004716981132 | Q5: 0.2099056604 | R5: 0.1910377358 | S5: 0.2452830189 | T5: 0.1533018868 | U5: 0.195754717
A6: 1 | B6: Monter | E6: 1 | F6: 2000 | G6: 4000 | H6: 158 | I6: 1 | J6: 59 | K6: 31 | L6: 67 | M6: 0 | N6: 0 | P6: 0.006329113924 | Q6: 0.3734177215 | R6: 0.1962025316 | S6: 0.4240506329 | T6: 0 | U6: 0
A7: 2 | B7: Operator | E7: 8 | F7: 2000 | G7: 4000 | H7: 50 | I7: 0 | J7: 30 | K7: 13 | L7: 6 | M7: 1 | N7: 0 | P7: 0 | Q7: 0.6 | R7: 0.26 | S7: 0.12 | T7: 0.02 | U7: 0
C12: Pola edytowalne Dla ułatwienia przy ustalaniu Siatki Płac można pokategoryzować dowolnie stanowiska | F12: Dane wyliczane automatycznie | J12: Statystyki rozkładu wynagrodzeń pracowników w przypisanej kategorii zaszeregownia pozwolą optymalnie dopasować kategorie zaszeregowania do stanowiska.
D16: Pole edytowalne Wyższy numer kategorii zaszeregowania oznacza wyższe wynagrodzenie. Rozpiętość i zakresy kategorii zaszeregowania określa się w zakładce "Siatka Płac"
D20: 8 | E20: czerwony kolor oznacza, że nie ma danych dla tej kategorii zaszeregowania
E21: Należy w zakładce "Siatka Płac" określić parametry dla tej kategorii
E22: lub
E23: w tym miejscu wpisać numer kategorii z określonymi już parametrami

Sheet Siatka płac
B1: Siatka płac
B3: Zestawienie stanowisk | D3: Lista pracowników | E3: Menu
B5: Kategoria zaszeregowania | C5: Rozpiętość kategorii | D5: Minimum kategorii | E5: Maximum kategorii
B6: =IF(NOT(OR(ISBLANK(C6),ISBLANK(D6))),1,0) -> 1 | C6: 2000 | D6: 2000 | E6: =D6+C6 -> 4000
B7: =IF(NOT(AND(ISBLANK(C7),ISBLANK(D7))),1+B6,0) -> 2 | C7: 2200 | D7: 2500 | E7: =D7+C7 -> 4700
B8: 3 | C8: 2500 | D8: 3000 | E8: 5500
B9: 4 | C9: 2800 | D9: 3200 | E9: 6000
B10: 5 | C10: 3000 | D10: 3500 | E10: 6500
B11: 6 | C11: 3200 | D11: 3800 | E11: 7000
B12: 7 | C12: 4000 | D12: 5000 | E12: 9000
B13: =IF(NOT(AND(ISBLANK(C13),ISBLANK(D13))),1+B12,0) -> 0 | E13: 0
B14: 0 | E14: 0
B15: 0 | E15: 0
B16: 0 | E16: 0
B17: 0 | E17: 0
C20: pola edytowalne
B22: 12 | C22: - maksymalna liczba kategorii zaszeregowania
